Workbook

Sheet ISB (hidden)
A1: Budget Code | C1: FUND-01 | D1: FUND-02 | F1: FY 23/24
A2: Description | C2: Funding Installment (Revenue) | D2: 1.Trumpington - Basic Entitlement (AWPU)
A3: Cambridgeshire County Council | C3: 0 | D3: 0 | H3: Committed
A4: Abbots Ripton CofE Primary Schoo... | B4: 3373 | C4: 532704 | D4: 0 | H4: Properly Assigned
A5: Alconbury CofE Primary School (C... | B5: 3061 | C5: 952849 | D5: 0
A6: Alderman Payne Primary School (C... | B6: 2083 | C6: 611425 | D6: 0
A7: Arbury Primary School (Cambridge... | B7: 2118 | C7: 1824937 | D7: 0
A8: Barnabas Oley CofE Primary Schoo... | B8: 3067 | C8: 701347 | D8: 0
A9: Barrington CofE VC Primary Schoo... | B9: 3001 | C9: 676941 | D9: 0
A10: Barton CofE VA Primary School (C... | B10: 3301 | C10: 539717 | D10: 0
A11: Bassingbourn Primary School (Cam... | B11: 2002 | C11: 1733401 | D11: 0
A12: Beaupre Community Primary School... | B12: 2082 | C12: 934013 | D12: 0
A13: Benwick Primary School (Cambridg... | B13: 2060 | C13: 628210 | D13: 0
A14: Bewick Bridge Community Primary ... | B14: 2312 | C14: 902724 | D14: 0
A15: Brampton Village Primary School ... | B15: 3942 | C15: 2703156 | D15: 0
A16: Brington CofE Primary School (Ca... | B16: 3081 | C16: 575300 | D16: 0
A17: Brunswick Nursery School (Cambri... | B17: 1005 | C17: 419156 | D17: 0
A18: Burrough Green CofE Primary Scho... | B18: 3004 | C18: 523120 | D18: 0
A19: Burwell Village College (Cambrid... | B19: 2327 | C19: 1788941 | D19: 0
A20: Bushmead Primary School (Cambrid... | B20: 2452 | C20: 1694990 | D20: 0
A21: Caldecote Primary School (Cambri... | B21: 2004 | C21: 899805 | D21: 0
A22: Castle Camps CofE Primary School... | B22: 3008 | C22: 645043 | D22: 0
A23: Castle School (Cambridgeshire) | B23: 7026 | C23: 2437356 | D23: 0
A24: Cherry Hinton CofE Primary Schoo... | B24: 3050 | C24: 1017916 | D24: 0
A25: Cheveley CofE Primary School (Ca... | B25: 3009 | C25: 679769 | D25: 0
A26: Clarkson Infants School (Cambrid... | B26: 2091 | C26: 988546 | D26: 0
A27: Coates Primary School (Cambridge... | B27: 2065 | C27: 914637 | D27: 0
A28: Colleges Nursery School (Cambrid... | B28: 1006 | C28: 561193 | D28: 0
A29: Colville Primary School (Cambrid... | B29: 2119 | C29: 1107120 | D29: 0
A30: Coton CofE Primary School (Cambr... | B30: 3011 | C30: 612414 | D30: 0
A31: Cottenham Primary School (Cambri... | B31: 2006 | C31: 2179295 | D31: 0
A32: Dry Drayton CofE (C) Primary Sch... | B32: 3012 | C32: 454276 | D32: 0
A33: Duxford CofE Community Primary S... | B33: 3041 | C33: 863661 | D33: 0
A34: Eastfield Infant and Nursery Sch... | B34: 2246 | C34: 942276 | D34: 0
A35: Elsworth CofE VA Primary School ... | B35: 3308 | C35: 641240 | D35: 0
A36: Ely St John's Community Primary ... | B36: 2444 | C36: 1679139 | D36: 0
A37: Eynesbury CofE C Primary School ... | B37: 3074 | C37: 922550 | D37: 0
A38: Fen Drayton Primary School (Camb... | B38: 2010 | C38: 585587 | D38: 0
A39: Fenstanton and Hilton Primary Sc... | B39: 2208 | C39: 969108 | D39: 0
A40: Folksworth CofE Primary School (... | B40: 3065 | C40: 507261 | D40: 0
A41: Fordham CofE Primary School (Cam... | B41: 3014 | C41: 1856101 | D41: 0
A42: Fourfields Community Primary Sch... | B42: 2321 | C42: 2020607 | D42: 0
A43: Fowlmere Primary School (Cambrid... | B43: 2011 | C43: 476068 | D43: 0
A44: Foxton Primary School (Cambridge... | B44: 2012 | C44: 581833 | D44: 0
A45: Friday Bridge Community Primary ... | B45: 2068 | C45: 520146 | D45: 0
A46: Fulbourn Primary School (Cambrid... | B46: 2328 | C46: 1296800 | D46: 0
A47: Granta School (Cambridgeshire) | B47: 7025 | C47: 1825821 | D47: 0
A48: Great Abington Primary School (C... | B48: 2016 | C48: 686249 | D48: 0
A49: Great Paxton CofE Primary School... | B49: 3068 | C49: 589333 | D49: 0
A50: Great Wilbraham CofE Primary Sch... | B50: 3017 | C50: 525315 | D50: 0
A51: Great and Little Shelford CofE (... | B51: 3310 | C51: 917685 | D51: 0
A52: Hardwick and Cambourne Community... | B52: 2315 | C52: 2299643 | D52: 0
A53: Harston and Newton Community Pri... | B53: 2018 | C53: 623885 | D53: 0
A54: Haslingfield Endowed Primary Sch... | B54: 3035 | C54: 688701.46 | D54: 0
A55: Hauxton Primary School (Cambridg... | B55: 2205 | C55: 520624 | D55: 0
A56: Hemingford Grey Primary School (... | B56: 2211 | C56: 1255859 | D56: 0
A57: Histon Early Years Centre (Cambr... | B57: 1003 | C57: 447820.51 | D57: 0
A58: Holywell CofE Primary School (Ca... | B58: 3071 | C58: 917996 | D58: 0
A59: Homerton Early Years Centre (Cam... | B59: 1002 | C59: 489018 | D59: 0
A60: Houghton Primary School (Cambrid... | B60: 2212 | C60: 822607 | D60: 0
A61: Huntingdon Nursery School (Cambr... | B61: 1007 | C61: 478848 | D61: 0
A62: Huntingdon Primary School (Cambr... | B62: 3945 | C62: 1897316 | D62: 0
A63: Isleham Church of England Primar... | B63: 3022 | C63: 945920 | D63: 0
A64: Kettlefields Primary School (Cam... | B64: 2442 | C64: 587459 | D64: 0
A65: Kinderley Primary School (Cambri... | B65: 2331 | C65: 559768 | D65: 0
A66: King’s Hedges Educational Fede... | B66: 2446 | C66: =1985307+D66 -> 2331550 | D66: 346243
A67: Linton CofE Infant School (Cambr... | B67: 3317 | C67: 756943 | D67: 0
A68: Lionel Walden Primary School (Ca... | B68: 2066 | C68: 936317 | D68: 0
A69: Little Paxton Primary School (Ca... | B69: 2293 | C69: 1482396.96 | D69: 0
A70: Little Thetford CofE Primary Sch... | B70: 3053 | C70: 524670 | D70: 0
A71: Littleport Community Primary Sch... | B71: 2074 | C71: 1863966 | D71: 0
A72: Manea Community Primary School (... | B72: 2075 | C72: 1177928 | D72: 0
A73: Mayfield Primary School (Cambrid... | B73: 2121 | C73: 1838517 | D73: 0
A74: Melbourn Primary School (Cambrid... | B74: 2028 | C74: 1794187 | D74: 0
A75: Meldreth Primary School (Cambrid... | B75: 2029 | C75: 947852 | D75: 0
A76: Meridian Primary School (Cambrid... | B76: 2059 | C76: 955066 | D76: 0
A77: Milton Road Primary School (Camb... | B77: 3386 | C77: 1906614 | D77: 0
A78: Monkfield Park Primary School (C... | B78: 2449 | C78: 1870550 | D78: 0
A79: Morley Memorial Primary School (... | B79: 2107 | C79: 1791510 | D79: 0
A80: Newnham Croft Primary School (Ca... | B80: 2109 | C80: 1058317 | D80: 0
A81: Orchard Park Community Primary S... | B81: 3390 | C81: 940576 | D81: 0
A82: Over Primary School (Cambridgesh... | B82: 2031 | C82: 964519.4 | D82: 0
A83: Park Street CofE Primary School ... | B83: 3350 | C83: 606442 | D83: 0
A84: Pendragon Community Primary Scho... | B84: 2033 | C84: 1644947 | D84: 0
A85: Petersfield CofE Aided Primary S... | B85: 3331 | C85: 654004 | D85: 0
A86: Priory Junior School (Cambridges... | B86: 2239 | C86: 1475426 | D86: 0
A87: Priory Park Infant School and Pl... | B87: 2219 | C87: 1130139 | D87: 0
A88: Queens’ Federation (Cambridge... | B88: 2333 | C88: =2221990.76+D88 -> 3758144 | D88: 1536153.24
A89: Ridgefield Primary School (Cambr... | B89: 2453 | C89: 1096062 | D89: 0
A90: Robert Arkenstall Primary School... | B90: 2070 | C90: 1278724 | D90: 0
A91: Samuel Pepys School (Cambridgesh... | B91: 7023 | C91: 1155539 | D91: 0
A92: Sawtry Infants' School (Cambridg... | B92: 2255 | C92: 892890 | D92: 0
A93: Shirley Community Primary School... | B93: 2115 | C93: 1962070 | D93: 0
A94: Spring Meadow Infant School (Cam... | B94: 2329 | C94: 807300 | D94: 0
A95: St Alban's Catholic Primary Scho... | B95: 3360 | C95: 959900 | D95: 0
A96: St Anne's CofE Primary School (C... | B96: 3384 | C96: 946248 | D96: 0
A97: St Helen's Primary School (Cambr... | B97: 5200 | C97: 823475 | D97: 0
A98: St Matthew's Primary School (Cam... | B98: 2317 | C98: 2816534 | D98: 0
A99: St Pauls CofE VA Primary School ... | B99: 3356 | C99: 824179 | D99: 0
A100: St Philip's CofE Aided Primary S... | B100: 3358 | C100: 1233859 | D100: 0
A101: Steeple Morden CofE VC Primary S... | B101: 3029 | C101: 837452 | D101: 0
A102: Stretham Community Primary Schoo... | B102: 2084 | C102: 874693 | D102: 0
A103: Stukeley Meadows Primary School ... | B103: 2443 | C103: 1806862 | D103: 0
A104: Sutton CofE VC Primary School (C... | B104: 3052 | C104: 1213916 | D104: 0
A105: Swavesey Primary School (Cambrid... | B105: 2046 | C105: 1361022 | D105: 0
A106: Teversham CofE VA Primary School... | B106: 3325 | C106: 919627 | D106: 0
A107: The Ashbeach Primary School (Cam... | B107: 2217 | C107: 666729 | D107: 0
A108: The Bellbird Primary School (Cam... | B108: 3943 | C108: 1904295 | D108: 0
A109: The Elton CofE Primary School | B109: 3368 | C109: 669468 | D109: 0
A110: The Fields Nursery School (Cambr... | B110: 1001 | C110: 430822 | D110: 0
A111: The Grove Primary School (Cambri... | B111: 2123 | C111: 1189869 | D111: 0
A112: The Newton Community Primary Sch... | B112: 2260 | C112: 411894 | D112: 0
A113: The Rackham Church of England Pr... | B113: 3058 | C113: 1320699 | D113: 0
A114: The Spinney Primary School (Camb... | B114: 2335 | C114: 960820 | D114: 0
A115: The Trumpington Federation (Camb... | B115: 2000 | C115: =1741155.16+D115 -> 3096202.16 | D115: 1355047
A116: The Vine Inter-Church Primary Sc... | B116: 3389 | C116: 1783646 | D116: 0
A117: Thorndown Primary School (Cambri... | B117: 2001 | C117: 2323715 | D117: 0
A118: Townley Primary School (Cambridg... | B118: 2064 | C118: 600116 | D118: 0
A119: Waterbeach Community Primary Sch... | B119: 2048 | C119: 2075173.07 | D119: 127831.93
A120: Westfield Junior School (Cambrid... | B120: 2232 | C120: 1222923 | D120: 0
A121: Wheatfields Primary School (Camb... | B121: 3392 | C121: 1473466.82 | D121: 0
A122: Wilburton CofE Primary School (C... | B122: 3054 | C122: 640882 | D122: 0
A123: William Westley Church of Englan... | B123: 3032 | C123: 920147 | D123: 0
A124: Willingham Primary School (Cambr... | B124: 2054 | C124: 1594398 | D124: 0
A125: Wyton on the Hill Community Prim... | B125: 2240 | C125: 811171 | D125: 0
A126: Yaxley Infant School (Cambridges... | B126: 2254 | C126: 671808 | D126: 0
A127: Total | C127: 137101471.2 | D127: 3365275.17
C129: =SUM(C3:C126) -> 140171723.4

Sheet Mar24ContactList@24.4+HistonAdj (hidden)
A1: SMER Log - March 2024 as at 09:49am on 24/4/24
B2: FED | BP2: 10493772.32 | BQ2: -392587.43 | BR2: 851122.96 | BS2: 0 | BT2: 14301.92 | BU2: 0 | BV2: 829505.92
B3: 127 Schools | D3: Emails Saved | E3: 124 | F3: Checked | G3: 124 | H3: Published | I3: 124 | J3: Not Published | K3: 0 | CB3: Issues | CC3: 3 | CF3: 0 | CK3: Prepared | CL3: 124 | CM3: 122 | CN3: 122 | CO3: 124 | CQ3: 100 | CS3: 0
B4: 124 Returns | G4: 0 | CB4: No Issue | CC4: 118 | CF4: 121 | CG4: WHAT DOES Y MEAN? | CK4: Remaining | CL4: 0 | CQ4: 23 | CS4: 123
B5: Unavailable for some or all of the school holidays | CC5: Issue (Yes), No Issue (No) | CL5: Standard | CM5: Reversing | CN5: Reversing
D6: Schools Email Submission | F6: SSCT Member | H6: School Month End Reconciliation Form (SMERF) | T6: SBS Online | BD6: Feedback | BH6: Year End Checks | BP6: YEAR END ONLY - Revenue Balances (Per YE Declaration tab - as appears) Deficit as Negatives. Surplus as Positives | BX6: YEAR END ONLY - Capital Balances (Per YE Declaration tab - as appears) Deficit as Negatives. Surplus as Positives | CL6: Journals | CY6: check to see if contact sheet had changed since 24.5.24 below Is contact list as at 3.5.24
A7: DfE No | B7: School Name | C7: Platform | D7: Email Saved | E7: Date School Submitted SMER | F7: Initials | G7: Date Checked | H7: SMERF Saved | I7: Cumulative Expense Analysis (CEA) Report | J7: Trial Balance Report | K7: Fund Review | L7: 1. School Information | M7: 2. VAT Owed Reconciliation | N7: 3. NatWest Reconciliation | O7: 4. Payrol Control Reconciliation | P7: 5. Opening Balances | Q7: 6. Confirmation | R7: Is the name of 'Fixed' Budget showing latest Forecast/Projected Outturn in SBS at the time of completing this SMER listed in Section 6, Fixed on SBS? | S7: Any additional notes relating to the SMER | T7: Is there an agreed and fixed budget for 2023/24 | U7: Export the CFR Budget Monitoring report showing the latest projected year end figures that were fixed when completing this SMER & paste onto 'CFR Budget Monitoring' tab. | V7: Is there an updated forecast included in the exported CFR Budget Monitor report? | W7: I01 - Formula Funding | X7: I02 - Sixth Form Funding | Y7: I03 - SEN Funding | Z7: I05 - Pupil Premium Funding | AA7: I18C - Income From Grants Provided in Relation To Coronavirus (COVID-19) Catch-up Activity | AB7: I18D - Income From Other Additional Grants | AC7: CI01 DFC Funding | AD7: Check budget / ledger codes use the correct 'Fund' | AE7: Check all Income CFR's | AF7: Check all Expenditure CFR's | AG7: On the CFR Budget Monitor download, is the Income as a "-"? | AH7: Fund 01 Projected YE | AI7: Fund 02 Projected YE | AJ7: Fund 08 Nursery (Day Care) Projected YE | AK7: Fund 22 Childrens Centre Projected YE | AL7: Fund 24 Community Focused Projected YE | AM7: Fund 21 Extended Schools Projected YE | AN7: Fund 23 Cluster Activities Projected YE | AO7: Fund 04 DFC Projected YE | AP7: Fund 06 DFC Projected YE | AQ7: Fund 05 Other Capital Projected YE | AR7: Non CFR F05 Projected YE | AS7: Fund 18 Cap Revenue Projected YE | AT7: Total Projected YE | AU7: VAT Submital reports | AV7: VAT Data Input Summary | AW7: Are the Accruals & Prepayments codes Clear/Zero? | AX7: Are these codes zero? SUSPENSE-01, Contingency Fund - 47570750-01, Contribution to Reserves - 47570600-01, Unallocated - 47570700-01? | AY7: What is the Trial Balance - Balance sheet total? | AZ7: FOR FMS, SAGE,XERO & (ACCESS?) - What is the total Revenue Income & Spend figure on the SBS Budget Monitor report excluding cfwds? FOR BROMCOM -What is the total Revenue Income & Spend figure on the SBS Budget Monitor report? | BA7: Difference between Trial Balance - Balance sheet total & Total Revenue Income & Spend Figures | BB7: Can school close 22/23? If done, what date was it done? | BC7: Any additional notes relating to SBS | BD7: Additional Feedback | BE7: Copied in FA? | BF7: Date Feedback Sent | BG7: Feedback Email Saved | BH7: Received Aged Debt & Creditors report? | BI7: Received Bank Statement as at COP 22/3/24? | BJ7: Included a unreconciled bank items report? | BK7: Included a Q4 Short summary as at 22/3/24? | BL7: Has the Y/E Declaration tab been completed? | BM7: Have schools completed the Accrue & Prepayments tabs ? | BN7: Do the Accrue & Prepayment tab totals match the CEA Accrue & Prepay code? | BO7: Does section 6 list the fixed budget profile as - 23/24 Final Closedown Figures? | BP7: Fund 01& 02 Balances | BQ7: Fund 02 Balance | BR7: Fund 08 Nursery (Day Care) Balance | BS7: Fund 21 Extended Schools Balance | BT7: Fund 22 Childrens Centre Balance | BU7: Fund 23 Cluster Activities Balance | BV7: Fund 24 Community Focused Balance | BW7: TOTAL REVENUE | BX7: Fund 04 Devolved Formula Capital (DFC) Balance | BY7: Fund 06 DFC Balance | BZ7: Fund 05 Other Capital Balance | CA7: Fund 18 Capitalised Revenue Balance | CB7: TOTAL CAPITAL | CC7: SMER OK / Issue? | CD7: Problems/Issues Details | CE7: Email reply to school? | CF7: Where is feedback email? Ok or Issues folder | CG7: If all ok and marked as 23/24 Final Closedown Figures budget profile in SBS as published? | CH7: Date marked as Published by SSCT | CI7: Blank | CJ7: Financial Advisor | CK7: School availability (date until?) | CL7: Capital/Revenue Saved to Journal Template - Ready to Upload Y/N | CM7: Balance Sheet Journal entries prepared on working paper | CN7: Balance Sheet Journals Saved to Journal Template - Ready to Upload Y/N | CO7: Revenue Journal Posted Y - add JNL number /N - leave blank | CP7: Leave blank for pasting in of revenue journal number (goes over two cells) | CQ7: Capital Journal Posted Y/N (N/A when there is nothing to post). Enter Journal number when posted | CR7: Leave blank for pasting in capital journal number (Goes over 2 cells) | CS7: Balance Sheet Journal Posted Y/N (When posted, record journal number here) | CT7: leave blank for pasting in balance sheet journal number (goes over 2 cells) | CV7: Journals that didn’t post correctly - abbeys due to permissions (Per Richard Keans email 15.4.24) | CZ7: Fund 04 Devolved Formula Capital (DFC) Balance | DA7: Fund 06 DFC Balance | DB7: Fund 05 Other Capital Balance | DC7: Fund 18 Capitalised Revenue Balance | DD7: TOTAL CAPITAL
A8: 3373 | B8: Abbots Ripton CofE Primary School | C8: FMS | D8: Y | E8: 2024-03-25 | F8: KW | G8: 2024-03-26 | H8: Y | I8: Y | J8: Y | K8: Y | L8: Y | M8: Y | N8: Y | O8: Y | P8: Y | Q8: Y | R8: Y | T8: Y | U8: 23/24 Final closedown figures' | V8: N | W8: Y | Y8: Y | Z8: Y | AA8: Y | AB8: Y | AD8: Y | AE8: Y | AF8: Y | AG8: Y | AU8: Y | AV8: Y | AW8: N | AX8: Y | AY8: -24473.42 | AZ8: 24473.42 | BA8: 0 | BB8: 2024-01-15 | BE8: Y | BF8: 2024-03-26 | BG8: Y | BH8: N | BI8: Y | BJ8: Y | BK8: Y | BL8: Y | BM8: Y | BN8: Y | BO8: N - However this has been used. | BP8: 73237.27 | BS8: 0 | BW8: 73237.27 | CB8: 0 | CC8: Ok | CE8: Y | CF8: OK | CG8: Y | CH8: 2024-03-26 | CJ8: Jane Green | CL8: Y | CM8: Y | CN8: Y | CO8: see comment | CQ8: N/A | CV8: see comment | CY8: Abbots Ripton CofE Primary School | DD8: 0 | DE8: =CY8=B8 -> TRUE | DF8: =CZ8=BX8 -> TRUE | DG8: =BY8=DA8 -> TRUE | DH8: =DB8=BZ8 -> TRUE | DI8: =DC8=CA8 -> TRUE | DJ8: =DD8=CB8 -> TRUE
A9: 3061 | B9: Alconbury CofE Primary School | C9: ACCESS | D9: Y | E9: 2024-03-26 | F9: SK | G9: 2024-04-11 | H9: Y | I9: Y | J9: Y | K9: N | L9: Y | M9: N - 68p variance (historic) | N9: Y | O9: Y | P9: Y | Q9: N | R9: No budget named | S9: Check your figures? | T9: Y - Original submitted budget 2023/24 | U9: Y | V9: Y | W9: Y | X9: N/A | Y9: Y | Z9: Y | AA9: Y | AB9: Y | AC9: Y | AD9: Y | AE9: Y | AF9: N - two positive values. Comments added from Dec SMER | AG9: Y | AU9: Y | AV9: Y | AW9: N | AX9: Y | AY9: -25403.86 | AZ9: 25403.86 | BA9: 0 | BB9: 2024-02-16 | BC9: School to check their accrual figures | BD9: Y | BE9: Y | BF9: 2024-04-11 | BG9: Y | BH9: Y | BI9: Y | BJ9: Y | BK9: Y | BL9: Y | BM9: Y | BN9: Y | BO9: Y | BP9: 45725.23 | BW9: 45725.23 | BX9: 8350.62 | BZ9: 0 | CB9: 8350.62 | CC9: OK | CD9: N/A | CE9: Y | CF9: OK | CG9: Y | CH9: 2024-04-11 | CJ9: Jane Green | CL9: Y | CM9: Y | CN9: Y | CO9: see comment | CQ9: 14300060436 | CV9: see comment | CY9: Alconbury CofE Primary School | CZ9: 8350.62 | DB9: 0 | DD9: 8350.62 | DE9: =CY9=B9 -> TRUE | DF9: TRUE | DG9: =BY9=DA9 -> TRUE | DH9: =DB9=BZ9 -> TRUE | DI9: =DC9=CA9 -> TRUE | DJ9: =DD9=CB9 -> TRUE
A10: 2083 | B10: Alderman Payne Primary School | C10: FMS | D10: Y | E10: 2024-03-25 | F10: DU | G10: 2024-03-25 | H10: Y | I10: Y | J10: Y | K10: Y | L10: Y | M10: Y | N10: Y | O10: Y | P10: Y | Q10: Y | R10: y | T10: y | U10: y | V10: y | W10: y | X10: na | Y10: y | Z10: y | AA10: y | AB10: y | AC10: y | AD10: y | AE10: y | AF10: y | AG10: y | AU10: Y | AV10: Y | AX10: y | AY10: -27001.44 | AZ10: 27001.44 | BA10: 0 | BB10: 2024-01-23 | BE10: Annette Magnus | BF10: 2024-03-25 | BG10: Y | BH10: Y | BI10: Y | BJ10: Y | BK10: Y | BL10: N | BM10: Y | BN10: Y | BO10: No. Will set duplicated budget of FINAL as fixed when agreed figures are correct | BP10: 99583.98 | BW10: 99583.98 | BX10: 11051.98 | BY10: 0 | CB10: 11051.98 | CC10: OK | CE10: Y | CF10: OK | CG10: Y | CH10: 2024-03-25 | CJ10: Annette Magnus | CL10: Y | CM10: Y | CN10: Y | CO10: see comment | CQ10: 14300060438 | CU10: Not availble over Easter | CV10: see comment | CY10: Alderman Payne Primary School | CZ10: 11051.98 | DA10: 0 | DD10: 11051.98 | DE10: TRUE | DF10: TRUE | DG10: TRUE | DH10: TRUE | DI10: TRUE | DJ10: TRUE
A11: 2118 | B11: Arbury Primary School | C11: FMS | D11: Y | E11: 2024-03-26 | F11: AC | G11: 2024-04-05 | H11: Y | I11: Y | J11: Y | K11: Y | L11: Y | M11: Y | N11: Y | O11: Y | P11: Y | Q11: Y | R11: Y | S11: N/a | T11: Y | U11: Y | V11: Y | W11: Y | X11: N/a | Y11: Y | Z11: Y | AA11: Y | AB11: Y | AC11: Y | AD11: Y | AE11: Y | AF11: Y | AG11: Y | AU11: Y | AV11: Y | AW11: N | AX11: Y | AY11: -108143.33 | AZ11: 108143.33 | BA11: 0 | BB11: 2023-12-21 | BC11: N/a | BD11: N/a | BE11: Y | BF11: 2024-04-10 | BG11: Y | BH11: Y | BI11: Y | BJ11: Y | BK11: Y | BL11: Y | BM11: Y | BN11: Y | BO11: Y | BP11: 233341.58 | BW11: 233341.58 | BX11: 16154.58 | CB11: 16154.58 | CC11: Ok | CD11: N/a | CE11: Y | CF11: Ok | CG11: Y | CH11: 2024-04-10 | CJ11: Ray Byford | CL11: Y | CM11: Y | CN11: Y | CO11: see comment | CQ11: 14300060440 | CV11: see comment | CY11: Arbury Primary School | CZ11: 16154.58 | DD11: 16154.58 | DE11: TRUE | DF11: TRUE | DG11: TRUE | DH11: TRUE | DI11: TRUE | DJ11: TRUE
A12: 3067 | B12: Barnabas Oley CofE Primary school | C12: FMS | D12: Y | E12: 2024-03-26 | F12: DU | G12: 2024-04-03 | H12: Y | I12: Y | J12: Y | K12: Y | L12: Y | M12: Y | N12: Y | O12: Y | P12: Y | Q12: Y | R12: y | T12: y | U12: y | V12: y | W12: y | X12: na | Y12: y | Z12: y | AA12: y | AB12: y | AC12: y | AD12: y | AE12: y | AF12: y | AG12: y | AU12: Y | AV12: Y | AW12: y | AX12: y | AY12: -17714.68 | AZ12: 17714.68 | BA12: 0 | BB12: 2023-12-20 | BE12: Annette Magnus | BF12: 2024-04-08 | BG12: Y | BH12: Y | BI12: Y | BJ12: Y | BK12: Y | BL12: Y | BM12: Y | BN12: Y | BO12: Y | BP12: 144502.34 | BW12: 144502.34 | BX12: 2293.61 | BZ12: 0 | CB12: 2293.61 | CC12: OK | CE12: Y | CF12: OK | CG12: Y | CH12: 2024-04-03 | CJ12: Annette Magnus | CL12: Y | CM12: Y | CN12: Y | CO12: 14300060613 | CQ12: 14300060579 | CV12: 14300060613 | CY12: Barnabas Oley CofE Primary school | CZ12: 2293.61 | DB12: 0 | DD12: 2293.61 | DE12: TRUE | DF12: TRUE | DG12: TRUE | DH12: TRUE | DI12: TRUE | DJ12: TRUE
A13: 3001 | B13: Barrington CofE VC Primary School | C13: FMS | D13: Y | E13: 2024-04-26 | F13: KW | G13: 2024-04-05 | H13: Y | I13: Y | J13: Y | K13: Y | L13: Y | M13: Y | N13: Y | O13: Y | P13: Y | Q13: Y | R13: Y | T13: Y | U13: Y | V13: Y | W13: Y | X13: N/A | Y13: Y | Z13: Y | AA13: Y | AB13: Y | AC13: Y | AD13: Y | AE13: Y | AF13: Y | AG13: Y | AU13: Y | AW13: N | AX13: Y | AY13: -47537.47 | AZ13: 47537.47 | BA13: 0 | BB13: 2024-02-22 | BE13: Y | BF13: 2024-04-05 | BG13: Y | BH13: Y | BI13: Y | BJ13: Y | BK13: Y | BL13: Y | BM13: Y - Have added in figures from CEA as left blank | BN13: Y | BO13: Y | BP13: 23707.66 | BW13: 23707.66 | BX13: 10855.22 | CB13: 10855.22 | CC13: Ok | CE13: Y | CF13: OK | CG13: Y | CH13: 2024-04-05 | CJ13: Ray Byford | CL13: Y | CM13: Y | CN13: Y | CO13: see comment | CQ13: 14300060439 | CV13: see comment | CY13: Barrington CofE VC Primary School | CZ13: 10855.22 | DD13: 10855.22 | DE13: TRUE | DF13: TRUE | DG13: TRUE | DH13: TRUE | DI13: TRUE | DJ13: TRUE
A14: 3301 | B14: Barton CofE VA Primary School | C14: FMS | D14: Y | E14: 2024-03-25 | F14: AC | G14: 2024-04-04 | H14: Y | I14: Y | J14: Y | K14: Y | L14: Y | M14: Y | N14: Y | O14: Y | P14: Y | Q14: Y | R14: Y | S14: N/a | T14: Y | U14: Y | V14: Y | W14: Y | X14: N/a | Y14: Y | Z14: Y | AA14: Y | AB14: Y | AC14: N/a | AD14: Y | AE14: Y | AF14: Y | AG14: Y | AU14: Y | AV14: Y | AW14: N | AX14: Y | AY14: -6797.52 | AZ14: 6797.52 | BA14: 0 | BB14: 2024-01-12 | BC14: N/a | BD14: N/a | BE14: Ray | BF14: 2024-04-05 | BG14: Y | BH14: N/a | BI14: Y | BJ14: Y | BK14: Y | BL14: Y | BM14: Y | BN14: Y | BO14: Y | BP14: 51054.96 | BW14: 51054.96 | CB14: 0 | CC14: OK | CD14: N/a | CE14: Y | CF14: OK | CG14: Y | CH14: 2024-04-05 | CJ14: Ray Byford | CL14: Y | CM14: Y | CN14: Y | CO14: see comment | CQ14: N/A | CV14: see comment | CY14: Barton CofE VA Primary School | DD14: 0 | DE14: TRUE | DF14: TRUE | DG14: TRUE | DH14: TRUE | DI14: TRUE | DJ14: TRUE
A15: 2002 | B15: Bassingbourn Primary School | C15: Bromcom | D15: Y | E15: 2024-04-08 | F15: SW | G15: 2024-04-08 | H15: Y | I15: Y | J15: Y | K15: Y | L15: Y | M15: N - however is ok. Was signed off by David last month with same difference. Q1 VAT submittal £15672.23 (This is what was paid) but issue with output tax. To make balance have to enter input tax £15802.29. | N15: Y | O15: Y | P15: Y | Q15: Y | R15: Y | T15: Y | U15: Y | V15: N/A AS YEAR END | W15: Y | X15: N/A | Y15: Y | Z15: Y | AA15: Y | AB15: Y | AC15: Y | AD15: Y | AE15: Y | AF15: Y | AG15: Y | AH15: N/A AS YEAR END | AI15: N/A AS YEAR END | AJ15: N/A AS YEAR END | AK15: N/A AS YEAR END | AL15: N/A AS YEAR END | AM15: N/A AS YEAR END | AN15: N/A AS YEAR END | AO15: N/A AS YEAR END | AP15: N/A AS YEAR END | AQ15: N/A AS YEAR END | AR15: N/A AS YEAR END | AS15: N/A AS YEAR END | AT15: N/A AS YEAR END | AU15: Y | AW15: N/A AS YEAR END | AX15: Y | AY15: 274934.01 | AZ15: -274934.01 | BA15: 0 | BE15: Y | BF15: 2024-04-08 | BG15: Y | BH15: Y | BI15: Y | BJ15: N/A AS NOT NEEDED | BK15: Y | BL15: Y | BM15: Y | BN15: Y | BO15: Y | BP15: 249202.31 | BW15: 249202.31 | BX15: 25731.7 | CB15: 25731.7 | CC15: OK | CD15: n/a | CE15: Y | CF15: OK | CG15: Y | CH15: 2024-04-08 | CJ15: Gaynor Pope | CL15: Y | CM15: Y | CN15: Y | CO15: see comment | CQ15: N/A | CV15: see comment | CY15: Bassingbourn Primary School | CZ15: 25731.7 | DD15: 25731.7 | DE15: TRUE | DF15: TRUE | DG15: TRUE | DH15: TRUE | DI15: TRUE | DJ15: TRUE
A16: 2082 | B16: Beaupre Community Primary School | C16: ACCESS | D16: Y | E16: 2024-03-28 | F16: DU | G16: 2024-03-28 | H16: Y | I16: Y | J16: Y | K16: Y | L16: Y | M16: Y | N16: Y | O16: Y | P16: Y | Q16: Y | R16: TO BE FIXED BY SSCT | T16: y | U16: y | V16: y | W16: y | X16: na | Y16: y | Z16: y | AA16: y | AB16: y | AC16: y | AD16: y | AE16: y | AF16: y | AG16: y | AU16: Y | AV16: Y | AW16: y | AX16: y | AY16: -8852.25 | AZ16: 8852.25 | BA16: 0 | BB16: 2024-01-08 | BE16: Annette Magnus | BF16: 2024-03-28 | BG16: Y | BH16: Y | BI16: Y | BJ16: Y | BK16: Y | BL16: Y | BM16: Y | BN16: Y | BO16: Y | BP16: 119226.82 | BW16: 119226.82 | BX16: 10759.77 | CB16: 10759.77 | CC16: OK | CE16: Y | CF16: OK | CG16: Y | CH16: 2024-03-28 | CJ16: Annette Magnus | CL16: Y | CM16: Y | CN16: Y | CO16: see comment | CQ16: 14300060442 | CU16: Not available 3-4th April or 9th-12th | CV16: see comment | CY16: Beaupre Community Primary School | CZ16: 10759.77 | DD16: 10759.77 | DE16: TRUE | DF16: TRUE | DG16: TRUE | DH16: TRUE | DI16: TRUE | DJ16: TRUE
A17: 2060 | B17: Benwick Primary School | C17: FMS | D17: Y | E17: 2024-03-25 | F17: KW | G17: 2024-04-03 | H17: Y | I17: Y | J17: Y | K17: Y | L17: Y | M17: N - Includes £216 'historical' cost - However this will need to be looked at and correct in new F/Y | N17: Y | O17: Y | P17: Y | Q17: N | R17: No name | T17: Y | U17: Y | V17: N | W17: N | X17: N/A | Y17: Y | Z17: Y | AA17: Y | AB17: Y | AC17: Y | AD17: N - Fund 05 non CFR spend missing | AE17: Y | AF17: Y | AG17: Y | AU17: Y | AW17: N | AX17: Y | AY17: -13367.69 | AZ17: 13367.69 | BA17: 0 | BB17: 2024-02-02 | BD17: Please name the budget in section 6 | BE17: Y | BF17: 2024-04-03 | BG17: Y | BH17: Y | BI17: Y | BJ17: Y | BK17: Y | BL17: N | BM17: Y | BN17: Y | BO17: N | BP17: 112335 | BW17: 112335 | BX17: 6000.24 | BZ17: 15183.2 | CB17: 21183.44 | CC17: OK | CD17: YE Dec completed, 888s and 999s journalled correctly by Karen and reflected on BM. Fund 01 and rates also rectified | CE17: Y | CF17: OK | CG17: Y | CH17: 2024-04-11 | CJ17: Jane Green | CL17: Y | CM17: Y | CN17: Y | CO17: see comment | CQ17: 14300060460 | CV17: see comment | CY17: Benwick Primary School | CZ17: 6000.24 | DB17: 15183.2 | DD17: 21183.44 | DE17: TRUE | DF17: TRUE | DG17: TRUE | DH17: TRUE | DI17: TRUE | DJ17: TRUE
A18: 2312 | B18: Bewick Bridge Community Primary School | C18: ACCESS | D18: Y | E18: 2024-03-25 | F18: DU | G18: 2024-04-08 | H18: Y | I18: Y | J18: Y | K18: Y | L18: Y | M18: N | N18: Y | O18: Y | P18: N | Q18: Y | R18: y | T18: y | U18: y | V18: y | W18: y | X18: na | Y18: includes non explained external SEN | Z18: y | AA18: y | AB18: y | AC18: y | AD18: y | AE18: y | AF18: y | AG18: y | AU18: Y | AV18: Y | AW18: y | AX18: y | AY18: -29468.26 | AZ18: 29468.26 | BA18: 0 | BB18: 2024-02-07 | BE18: Ray Byford / Gaynor Pope | BF18: 2024-04-15 | BG18: Y | BJ18: Y | BK18: Y | BL18: Y | BM18: Y | BN18: Y | BO18: Y | BP18: 84994.4 | BV18: 11974.35 | BW18: 96968.75 | BX18: 26443.96 | CB18: 26443.96 | CC18: ok | CE18: Y | CF18: OK | CG18: Y | CH18: 2024-04-15 | CJ18: Ray Byford & Gaynor Pope | CL18: Y | CM18: Y | CN18: N | CO18: 14300060717 | CQ18: 14300060718 | CY18: Bewick Bridge Community Primary School | CZ18: 26443.96 | DD18: 26443.96 | DE18: TRUE | DF18: TRUE | DG18: TRUE | DH18: TRUE | DI18: TRUE | DJ18: TRUE
A19: 3942 | B19: Brampton Village Primary School | C19: FMS | D19: Y | E19: 2024-03-26 | F19: SW | G19: 2024-04-08 | H19: Y | I19: Y | J19: Y | K19: Y | L19: Y | M19: Y | N19: Y | O19: Y | P19: Y | Q19: Y | R19: Y | T19: Cant see quickly as archived most | U19: Y | V19: N/A as Yend | W19: Y | X19: N/A | Y19: Y | Z19: I05 difference between SBS Actuals and Funding statement - email sent to school 08.4.24 - Last months comment was: Includes £2320 from NCC. Did you receive an additional £500 in March that was from them/someone else? They replied 8.4.24: Yes, we did. | AA19: Y | AB19: Y | AC19: Y | AD19: Y | AE19: Y | AF19: Y | AG19: Y | AH19: N/A as Yend | AI19: N/A as Yend | AJ19: N/A as Yend | AK19: N/A as Yend | AL19: N/A as Yend | AM19: N/A as Yend | AN19: N/A as Yend | AO19: N/A as Yend | AP19: N/A as Yend | AQ19: N/A as Yend | AR19: N/A as Yend | AS19: N/A as Yend | AT19: N/A as Yend | AU19: Y | AW19: N/A as Yend | AX19: Y | AY19: 124119.71 | AZ19: -124119.71 | BA19: 0 | BE19: Y | BF19: 2024-04-08 | BG19: Y | BH19: Y | BI19: Y | BJ19: Y | BK19: Y | BL19: Y | BM19: Y | BN19: Y | BO19: Y | BP19: 691677.13 | BV19: 106841.25 | BW19: 798518.38 | BX19: 16638.33 | CB19: 16638.33 | CC19: N | CE19: Y | CF19: OK | CG19: Y | CH19: 2024-04-08 | CJ19: Ray Byford | CL19: Y | CM19: Y | CN19: Y | CO19: see comment | CQ19: 14300060444 | CV19: see comment | CY19: Brampton Village Primary School | CZ19: 16638.33 | DD19: 16638.33 | DE19: TRUE | DF19: TRUE | DG19: TRUE | DH19: TRUE | DI19: TRUE | DJ19: TRUE
A20: 3081 | B20: Brington CofE Primary School - JULY | C20: FMS | D20: Y | E20: 2024-03-25 | F20: SK | G20: 2024-04-02 | H20: Y | I20: Y | J20: Y | K20: Y | L20: Y | M20: Y | N20: Y | O20: N - 1p variance (historic) | P20: Y | Q20: Y | R20: Y | S20: N/A | T20: Y - Governors agreed budget 04/05/2023 | U20: Y | V20: Y | W20: Y | X20: N/A | Y20: Y | Z20: Y | AA20: Y | AB20: Y | AC20: Y | AD20: Y | AE20: Y | AF20: Y | AG20: Y | AU20: Y | AV20: Y | AW20: N | AX20: Y | AY20: -9341.2 | AZ20: 9341.2 | BA20: 0 | BB20: 2024-01-05 | BC20: N/A | BD20: Y | BE20: Y | BF20: 2024-04-02 | BG20: Y | BH20: Y | BI20: Y | BJ20: Y | BK20: Y | BL20: Y | BM20: Y | BN20: Y | BO20: Y | BP20: 47578 | BW20: 47578 | BX20: 23040.56 | BZ20: 0 | CB20: 23040.56 | CC20: OK | CD20: N/A | CE20: Y | CF20: OK | CG20: Y | CH20: 2024-04-02 | CJ20: Jane Green | CL20: Y | CM20: Y | CN20: Y | CO20: see comment | CQ20: 14300060445 | CV20: see comment | CY20: Brington CofE Primary School - JULY | CZ20: 23040.56 | DB20: 0 | DD20: 23040.56 | DE20: TRUE | DF20: TRUE | DG20: TRUE | DH20: TRUE | DI20: TRUE | DJ20: TRUE
A21: 1005 | B21: Brunswick Nursery School | C21: FMS | D21: Y | E21: 2024-04-10 | F21: SW | G21: 2024-04-11 | H21: Y | I21: Y | J21: Y | L21: Y | M21: Y | N21: Y | O21: Y | P21: Y | Q21: Y | S21: Not the correct version entered in section 6 by Karen but thats ok. Karen asked for me to upload the CEA into SBS. This has been done on 2023/24 Final Closedown Figures (V2 Created 8.4.24), uploaded by SW 11/4/24 & fixed | U21: Y | V21: N/A as Yend | W21: Y | X21: N/A | Y21: Y | Z21: N/A | AA21: N/A | AB21: N/A | AC21: Y | AD21: Y | AE21: Y | AF21: Y | AG21: Y | AH21: N/A as Yend | AI21: N/A as Yend | AJ21: N/A as Yend | AK21: N/A as Yend | AL21: N/A as Yend | AM21: N/A as Yend | AN21: N/A as Yend | AO21: N/A as Yend | AP21: N/A as Yend | AQ21: N/A as Yend | AR21: N/A as Yend | AS21: N/A as Yend | AT21: N/A as Yend | AU21: Y | AW21: N/A as Yend | AX21: Y | AY21: 7012.65 | AZ21: -7012.65 | BA21: -2.364686225e-11 | BE21: Y | BF21: 2024-04-11 | BG21: Y | BH21: Y | BI21: Y | BJ21: No as not needed | BK21: Y | BL21: Y | BM21: Y | BN21: Y | BO21: Not the correct version entered in section 6 by Karen but thats ok. Karen asked for me to upload the CEA into SBS. This has been done on 2023/24 Final Closedown Figures (V2 Created 8.4.24), uploaded by SW 11/4/24 & fixed | BP21: -78040.58 | BR21: 234058.07 | BW21: 156017.49 | BX21: 1015.6 | CB21: 1015.6 | CC21: ok | CD21: n/a | CE21: Y | CF21: OK | CG21: Y | CH21: 2024-04-11 | CJ21: Ray Byford | CL21: Y | CM21: Y | CN21: Y | CO21: see comment | CQ21: 14300060461 | CV21: see comment | CY21: Brunswick Nursery School | CZ21: 1015.6 | DD21: 1015.6 | DE21: TRUE | DF21: TRUE | DG21: TRUE | DH21: TRUE | DI21: TRUE | DJ21: TRUE
A22: 3004 | B22: Burrough Green CofE Primary School | C22: Bromcom | D22: Y | E22: 2024-03-25 | F22: AC | G22: 2024-04-04 | H22: Y | I22: Y | J22: Y | K22: Y | L22: Y | M22: Y | N22: Y | O22: Y - variance moved to 'other' due to explanation provided. | P22: Y | Q22: Y | R22: Y | S22: N/a | T22: Y | U22: Y | V22: Y | W22: Y | X22: N/a | Y22: Y | Z22: Y | AA22: Y | AB22: Y | AC22: Y | AD22: Y | AE22: Y | AF22: Y | AG22: Y | AU22: Y | AV22: Y | AW22: On CEA yes but £105.40 on accruals tab. | AX22: Y | AY22: -33712.18 | AZ22: 33733.78 | BA22: 21.6 | BB22: 2023-12-05 | BC22: The £21.60 will need to be investigated in the new financial year (from P6). | BD22: The £21.60 variance between the trial balance and budget monitoring report is still apparent, however having considered the value we will go forward with completing the accounts for 23/24 and the variance will need to be investigated in the new financial year. | BE22: Y | BF22: 2024-04-08 | BG22: Y | BH22: Y but both showing 0 despite value on creditor TB. | BI22: Y | BJ22: N/a | BK22: Y | BL22: Y | BM22: Y but accruals value (105.40) not on CEA. | BN22: N | BO22: 23/24 Draft Closedown Figures 05.04.24 | BP22: 41495.62 | BW22: 41495.62 | BX22: 4222.95 | BZ22: 0 | CB22: 4222.95 | CC22: OK | CD22: Ok but TB needs to be reviewed in new financial year. £21.60 has been identified but will be amended next year - see email in 'other issues' in March folder. | CE22: Y | CF22: OK | CG22: Y | CH22: 2024-04-08 | CJ22: Annette Magnus | CL22: Y | CM22: Y | CN22: Y | CO22: see comment | CQ22: 14300060446 | CV22: see comment | CY22: Burrough Green CofE Primary School | CZ22: 4222.95 | DB22: 0 | DD22: 4222.95 | DE22: TRUE | DF22: TRUE | DG22: TRUE | DH22: TRUE | DI22: TRUE | DJ22: TRUE
A23: 2327 | B23: Burwell Village College (Primary) | C23: FMS | D23: Y | E23: 2024-03-26 | F23: AC | G23: 2024-04-05 | H23: Y | I23: Y | J23: Y | K23: Y | L23: Y | M23: Y | N23: Y | O23: Y | P23: Y | Q23: Y | R23: Y | S23: N/a | T23: Y | U23: Y | V23: Y | W23: Y | X23: N/a | Y23: £0.66 variance considering notes. | Z23: Y | AA23: Y | AB23: Y | AC23: Y | AD23: Y | AE23: Y | AF23: Y | AG23: Y | AU23: Y | AV23: Y | AW23: Y | AX23: Y | AY23: -220925.84 | AZ23: 220925.84 | BA23: 0 | BB23: 2024-01-18 | BC23: N/a | BD23: £0.66 variance is likely a typo in notes. | BE23: Ray | BF23: 2024-04-05 | BG23: Y | BH23: Y | BI23: Y | BJ23: Y | BK23: Y | BL23: Y | BM23: N/a | BN23: N/a | BO23: Y | BP23: 361123.81 | BW23: 361123.81 | BX23: 36351.22 | CB23: 36351.22 | CC23: OK | CD23: N/a | CE23: Y | CF23: OK | CG23: Y | CH23: 2024-04-05 | CJ23: Ray Byford | CL23: Y | CM23: Y | CN23: Y | CO23: see comment | CQ23: N/A | CV23: see comment | CY23: Burwell Village College (Primary) | CZ23: 36351.22 | DD23: 36351.22 | DE23: TRUE | DF23: TRUE | DG23: TRUE | DH23: TRUE | DI23: TRUE | DJ23: TRUE
A24: 2452 | B24: Bushmead Primary School | C24: FMS | D24: Y | E24: 2024-03-26 | F24: AC | G24: 2024-04-09 | H24: Y | I24: Y | J24: Y | K24: Y | M24: Y - £0.40 variance. | N24: Y | O24: Y | P24: Y | Q24: Y | R24: Y | S24: N/a | T24: Y | U24: Y | V24: Y | W24: Y | X24: N/a | Y24: Y | Z24: £876.97 variance - more on funding statement. | AA24: Y | AB24: Y | AC24: Y | AD24: Y | AE24: Y | AF24: Y | AG24: Y | AU24: Y | AV24: Y | AW24: N | AX24: Y | AY24: 15558.35 | AZ24: -15558.35 | BA24: 0 | BB24: 2023-12-07 | BC24: SSCT adjusted CEA and SBS report: £1,597.7 originally on code 65081000-05 was moved to 11010100-05 - Building Maintenance. I05 still to be looked at as more on funding statement than SBS. | BD24: N/a | BE24: Y | BF24: 2024-04-11 | BG24: Y | BH24: N/a | BI24: Y | BJ24: Y | BK24: Y | BL24: Y | BM24: Y | BN24: Y | BO24: As new | BP24: 1911.41 | BW24: 1911.41 | BX24: 961.68 | BZ24: 0 | CB24: 961.68 | CC24: Ok | CD24: Manually adjusted fund 05 codes. I05 variance but school does not have access to system. | CE24: Y | CF24: Ok | CG24: Y | CH24: 2024-04-11 | CJ24: Gaynor Pope | CL24: Y | CM24: Y | CN24: Y | CO24: see comment | CQ24: 14300060511 | CV24: see comment | CY24: Bushmead Primary School | CZ24: 961.68 | DB24: 0 | DD24: 961.68 | DE24: TRUE | DF24: TRUE | DG24: TRUE | DH24: TRUE | DI24: TRUE | DJ24: TRUE
A25: 2004 | B25: Caldecote Primary School | C25: FMS | D25: Y | E25: 2024-04-26 | F25: KW | G25: 2024-04-08 | H25: Y | I25: Y | J25: Y | K25: Y | L25: Y | M25: Y | N25: Y | O25: N - Amount owed to staff member - due to be paid 28th (should balance on next return) | P25: Y | Q25: Y | R25: Y | T25: N | U25: Y | V25: Y | W25: Y | X25: N/A | Y25: Y | Z25: Y | AA25: Y | AB25: Y | AC25: Y | AD25: Y | AE25: Y | AF25: Y | AG25: Y | AU25: Y | AW25: N | AX25: Y | AY25: 4752.03 | AZ25: -4752.03 | BA25: 0 | BB25: 2024-02-02 | BE25: Y | BF25: 2024-04-08 | BG25: Y | BH25: - Crditors report does not match - Emailed. | BI25: Y | BJ25: Y | BK25: Y | BL25: Y | BM25: Y | BN25: Y | BO25: N - '23/24 Final Closedown BMR' | BP25: 29501.58 | BW25: 29501.58 | BX25: 2873.07 | CB25: 2873.07 | CC25: N | CD25: Creditors Report has been re-sent in and now matches. | CE25: Y | CF25: Ok | CG25: Y | CH25: 2024-04-10 | CJ25: Gaynor Pope | CL25: Y | CM25: Y | CN25: Y | CO25: see comment | CQ25: 14300060447 | CV25: see comment | CY25: Caldecote Primary School | CZ25: 2873.07 | DD25: 2873.07 | DE25: TRUE | DF25: TRUE | DG25: TRUE | DH25: TRUE | DI25: TRUE | DJ25: TRUE
A26: 3008 | B26: Castle Camps Church of England (Controlled) Primary School | C26: FMS | D26: Y | E26: 2024-03-26 | F26: AC | G26: 2024-04-10 | H26: Y | I26: Y | J26: Y | K26: Y | L26: Y | M26: Y | N26: Y | O26: Y - matches CEA | P26: Y | Q26: Y | R26: Y | S26: Payroll matches CEA but TB variance . See email 'payroll issue' - PAYROL2 code on CEA | T26: Y | U26: Y | V26: N | W26: Y | X26: N/a | Y26: Y | Z26: Y | AA26: Y | AB26: Y | AC26: Y | AD26: Y | AE26: Y | AF26: Y | AG26: Y | AU26: Y | AV26: Y | AW26: N | AX26: Y | AY26: -60503.98 | AZ26: 60503.98 | BA26: 0 | BB26: 2024-01-29 | BC26: N/a | BD26: N/a | BE26: Y | BF26: 2024-04-10 | BG26: Y | BH26: N/a | BI26: Y | BJ26: N/a | BK26: Y | BL26: Y | BM26: Y | BN26: Y | BO26: Y | BP26: -29425.91 | BW26: -29425.91 | BX26: 11340.83 | BZ26: 0 | CB26: 11340.83 | CC26: Ok | CD26: N/a | CE26: Y | CF26: Ok | CG26: Y | CH26: 2024-04-10 | CJ26: Ray Byford | CL26: Y | CM26: Y | CN26: Y | CO26: see comment | CQ26: 14300060448 | CU26: PAYROL2 code issue that needs to be cleared in new FY. | CV26: see comment | CY26: Castle Camps Church of England (Controlled) Primary School | CZ26: 11340.83 | DB26: 0 | DD26: 11340.83 | DE26: TRUE | DF26: TRUE | DG26: TRUE | DH26: TRUE | DI26: TRUE | DJ26: TRUE
A27: 7026 | B27: Castle School, Cambridge | C27: FMS | D27: Y | E27: 2024-03-26 | F27: DU | G27: 2024-04-11 | H27: Y | I27: Y | J27: Y | K27: Y | L27: Y | M27: Y | N27: Y | O27: Y | P27: Y | Q27: N | R27: n | T27: y | U27: y | V27: y | W27: y | X27: na | Y27: y | Z27: y | AA27: y | AB27: y | AC27: y | AD27: y | AE27: y | AF27: y | AG27: y | AU27: Y | AV27: Y | AW27: y | AX27: y | AY27: -272311.44 | AZ27: 272311.44 | BA27: 0 | BB27: 2023-12-08 | BE27: Ray Byford | BF27: 2024-04-11 | BG27: Y | BH27: Y | BI27: Y | BJ27: Y | BK27: Y | BL27: Y | BM27: Y | BN27: Y | BO27: Y | BP27: -237045.03 | BW27: -237045.03 | BX27: 33515.79 | CB27: 33515.79 | CC27: ok | CE27: Y | CF27: ok | CG27: Y | CH27: 2024-04-11 | CJ27: Ray Byford | CL27: Y | CM27: Y | CN27: Y | CO27: see comment | CQ27: 14300060449 | CV27: see comment | CY27: Castle School, Cambridge | CZ27: 33515.79 | DD27: 33515.79 | DE27: TRUE | DF27: TRUE | DG27: TRUE | DH27: TRUE | DI27: TRUE | DJ27: TRUE
A28: 3050 | B28: Cherry Hinton Church of England Voluntary Controlled Primary School | C28: FMS | D28: Y | E28: 2024-03-25 | F28: SK | G28: 2024-04-04 | H28: Y | I28: Y | J28: Y | K28: Y | L28: Y - month amended | M28: Y - SSCT amended | N28: Y | O28: Y | P28: Y | Q28: Y | R28: Y | S28: Wrong Vref figure used - amended, now reconciles | T28: Y - Governors Agreed Budget | U28: Y | V28: Y | W28: Y | X28: N/A | Y28: Y | Z28: Y | AA28: Y | AB28: Y | AC28: Y | AD28: Y | AE28: Y | AF28: Y | AG28: Y | AU28: Y | AV28: Y | AW28: N | AX28: Y | AY28: -22421.81 | AZ28: 22421.81 | BA28: 0 | BB28: 2024-03-11 | BC28: N/A | BD28: Y | BE28: Y | BF28: 2024-04-04 | BG28: Y | BH28: Y | BI28: Y | BJ28: Y | BK28: Y | BL28: Y | BM28: Y | BN28: Y | BO28: Y | BP28: -21445.09 | BW28: -21445.09 | BX28: 21279.84 | BZ28: 2207.06 | CB28: 23486.9 | CC28: OK | CD28: N/A | CE28: Y | CF28: OK | CG28: Y | CH28: 2024-04-04 | CJ28: Annette Magnus | CL28: Y | CM28: Y | CN28: Y | CO28: see comment | CQ28: 14300060450 | CV28: see comment | CY28: Cherry Hinton Church of England Voluntary Controlled Primary School | CZ28: 21279.84 | DB28: 2207.06 | DD28: 23486.9 | DE28: TRUE | DF28: TRUE | DG28: TRUE | DH28: TRUE | DI28: TRUE | DJ28: TRUE
A29: 3009 | B29: Cheveley CofE Primary School | C29: FMS | D29: Y | E29: 2024-03-25 | F29: SK | G29: 2024-03-27 | H29: Y | I29: Y | J29: Y | K29: Y | L29: Y | M29: 1p variance (historic) | N29: Y | O29: Y | P29: Y | Q29: Y | R29: N | S29: Draft YE = F; 23/24 Closedown = not F | T29: Y - Original Submitted Budget 2023/24 F | U29: Y | V29: Y | W29: Y | X29: N/A | Y29: Y | Z29: Y | AA29: Y | AB29: Y | AC29: Y | AD29: Y | AE29: Y | AF29: Y | AG29: Y | AU29: Y | AV29: Y | AW29: N | AX29: Y | AY29: 6235.3 | AZ29: -6235.3 | BA29: 0 | BB29: 2023-12-14 | BC29: N/A | BD29: Y | BE29: Y | BF29: 2024-03-27 | BG29: Y | BH29: Y | BI29: Y | BJ29: N - but no unrec items | BK29: Y | BL29: Y | BM29: Y | BN29: Y | BO29: N | BP29: 93499.4 | BW29: 93499.4 | BX29: 20979.01 | BZ29: 0 | CB29: 20979.01 | CC29: OK | CD29: N/A | CE29: Y | CF29: OK | CG29: Y | CH29: 2024-03-27 | CJ29: None assigned - cc Ray for SMER | CL29: Y | CM29: Y | CN29: Y | CO29: see comment | CQ29: 14300060456 | CV29: see comment | CY29: Cheveley CofE Primary School | CZ29: 20979.01 | DB29: 0 | DD29: 20979.01 | DE29: TRUE | DF29: TRUE | DG29: TRUE | DH29: TRUE | DI29: TRUE | DJ29: TRUE
A30: 2091 | B30: Clarkson Infants School | C30: FMS | D30: Y | E30: 2024-03-25 | F30: SW | G30: 2024-04-08 | H30: Y | I30: Y | J30: Y | K30: Y | L30: Y | M30: Y | N30: Y | O30: Y | P30: Y | Q30: Y | R30: Fixed budget listed | T30: Y | U30: Y | V30: N/A as Yend | W30: Y | X30: N/A | Y30: Ok but SBS actuals are different to Funding Statement but this is ok as Incls Norfolk CC £19666.66 - PER FEB CFR BUDGET MONITOR | Z30: Y | AA30: Y | AB30: Y | AC30: Y | AD30: Y | AE30: Y | AF30: Y | AG30: Y | AH30: N/A as Yend | AI30: N/A as Yend | AJ30: N/A as Yend | AK30: N/A as Yend | AL30: N/A as Yend | AM30: N/A as Yend | AN30: N/A as Yend | AO30: N/A as Yend | AP30: N/A as Yend | AQ30: N/A as Yend | AR30: N/A as Yend | AS30: N/A as Yend | AT30: N/A as Yend | AU30: Y | AW30: N/A as Yend | AX30: Y | AY30: 5391.59 | AZ30: -5391.59 | BA30: -2.546585165e-11 | BB30: N/A as Yend | BE30: Y | BF30: 2024-04-08 | BG30: Y | BH30: Y | BI30: Y | BJ30: No but not needed | BK30: Y | BL30: Y | BM30: Y | BN30: Y | BO30: Section 6 listed 23/24 Draft Year End Figures, there was a 23/24 Final Closedown Figures budget profile/planner on SBS so this is what I used to check to | BP30: 261388.16 | BW30: 261388.16 | BX30: 9817.97 | CB30: 9817.97 | CC30: N | CD30: N/A | CE30: Y | CF30: OK | CG30: Y | CH30: 2024-04-08 | CJ30: Annette Magnus | CL30: Y | CM30: Y | CN30: Y | CO30: see comment | CQ30: 14300060451 | CV30: see comment | CY30: Clarkson Infants School | CZ30: 9817.97 | DD30: 9817.97 | DE30: TRUE | DF30: TRUE | DG30: TRUE | DH30: TRUE | DI30: TRUE | DJ30: TRUE
A31: 2065 | B31: Coates | C31: FMS | D31: Y | E31: 2024-03-25 | F31: SK | G31: 2024-03-28 | H31: Y | I31: Y | J31: Y | K31: Y | L31: Y | M31: Y | N31: Y | O31: Y | P31: Y | Q31: Y | R31: Y | S31: N/A | T31: Y - Governors Agreed Budget 27/04/2023 | U31: Y | V31: Y | W31: N - Fund - 24/FNDX-01 variance £2179.99. Reconciles | X31: N/A | Y31: Y | Z31: Y | AA31: Y | AB31: Y | AC31: Y | AD31: Y | AE31: Y | AF31: Y | AG31: Y | AU31: Y | AV31: Y | AW31: N | AX31: Y | AY31: -23542.61 | AZ31: 23542.61 | BA31: 0 | BB31: 2023-12-04 | BC31: £3 variance on accruals tab to TB/CEA. School confirmed error and amended. Reconciles. | BD31: Y | BE31: Y | BG31: Y | BH31: N - but zero on TB | BI31: Y | BJ31: Y | BK31: Y | BL31: Y | BM31: Y | BN31: Y | BO31: Y | BP31: 208865.34 | BV31: 18925.49 | BW31: 227790.83 | BX31: 23373.2 | BZ31: 1058.44 | CB31: 24431.64 | CC31: OK | CD31: Accruals issue sorted. | CE31: Y | CF31: OK | CG31: Y | CH31: 2024-04-02 | CJ31: Jane Green | CL31: Y | CM31: Y | CN31: Y | CO31: see comment | CQ31: 14300060454 | CV31: see comment | CY31: Coates | CZ31: 23373.2 | DB31: 1058.44 | DD31: 24431.64 | DE31: TRUE | DF31: TRUE | DG31: TRUE | DH31: TRUE | DI31: TRUE | DJ31: TRUE
A32: 1006 | B32: Colleges Nursery School | C32: FMS | D32: Y | E32: 2024-03-25 | F32: SK | G32: 2024-03-28 | H32: Y | I32: Y | J32: Y | K32: Y | L32: Y | M32: Y | N32: N - 1p variance (historic) | O32: N - 64p variance (historic) | P32: Y | Q32: Y | R32: Y | S32: N/A | T32: Y - Governors Agreed Budget 02/05/2023 | U32: Y | V32: Y | W32: Y | X32: N/A | Y32: Y | Z32: N/A | AA32: N/A | AB32: N/A | AC32: Y | AD32: Y | AE32: Y | AF32: Y | AG32: Y | AU32: Y | AV32: Y | AW32: N | AX32: Y | AY32: -56782.62 | AZ32: 56782.62 | BA32: 0 | BB32: 2023-12-07 | BC32: Note to school re incorrect TB - recreated by SSCT so reconciles. | BD32: Y | BE32: Y | BF32: 2024-03-28 | BG32: Y | BH32: Y | BI32: Y | BJ32: Y | BK32: Y | BL32: Y | BM32: Y | BN32: Y | BO32: Y | BP32: -37415.96 | BT32: 2579.34 | BW32: -34836.62 | BX32: 12757.37 | BZ32: 0 | CB32: 12757.37 | CC32: OK | CD32: N/A | CE32: Y | CF32: OK | CG32: Y | CH32: 2024-03-28 | CJ32: Ray Byford | CL32: Y | CM32: Y | CN32: Y | CO32: see comment | CQ32: 14300060455 | CV32: see comment | CY32: Colleges Nursery School | CZ32: 12757.37 | DB32: 0 | DD32: 12757.37 | DE32: TRUE | DF32: TRUE | DG32: TRUE | DH32: TRUE | DI32: TRUE | DJ32: TRUE
A33: 2119 | B33: Colville Primary School | C33: FMS | D33: Y | E33: 2024-03-26 | F33: AC | G33: 2024-04-08 | H33: Y | I33: Y | J33: Y | K33: Y | L33: Y | M33: Y - £12.37 variance. | N33: Y | O33: Y | P33: Y | Q33: Y | R33: Y | S33: Please investigate the £12.37 VAT variance in the new financial year. | T33: Y | U33: Y | V33: Y | W33: Y | X33: N/a | Y33: Y | Z33: Y | AA33: Y | AB33: Y | AC33: Y | AD33: Y | AE33: 33086238-01 - Educational Visit Parental Contributions showing as £732.5 | AF33: Y | AG33: Y | AU33: Y | AV33: Y | AW33: Y | AX33: Y | AY33: -89831.57 | AZ33: 89831.57 | BA33: 0 | BB33: 2023-12-21 | BC33: N/a | BD33: N/a | BE33: Y | BF33: 2024-04-11 | BG33: Y | BH33: Y but creditor showing as 0 on TB, but value of 73.53 on report. | BI33: From Bankline. | BJ33: Y | BK33: Y | BL33: Y | BM33: Y | BN33: N/a | BO33: Y | BP33: 114831.29 | BW33: 114831.29 | BX33: 8489.06 | CB33: 8489.06 | CC33: Ok | CD33: N/a | CE33: Y | CF33: Ok | CG33: Y | CH33: 2024-04-11 | CJ33: Ray Byford | CL33: Y | CM33: Y | CN33: Y | CO33: see comment | CQ33: 14300060457 | CV33: see comment | CY33: Colville Primary School | CZ33: 8489.06 | DD33: 8489.06 | DE33: TRUE | DF33: TRUE | DG33: TRUE | DH33: TRUE | DI33: TRUE | DJ33: TRUE
A34: 3011 | B34: Coton Church of England (Voluntary Controlled) Primary School | C34: FMS | D34: Y | E34: 2024-03-25 | F34: SK | G34: 2024-04-09 | H34: Y | I34: Y | J34: Y | K34: Y | L34: Y | M34: Y - Q3 missing | N34: Y | O34: Y | P34: Y | Q34: Y | R34: N | S34: VAT Q3 - checked against Feb SMER report. | T34: Y - Governors Agreed Budget | U34: Y | V34: Y | W34: Y | X34: N/A | Y34: Y | Z34: Y | AA34: Y | AB34: Y | AC34: Y | AD34: Y | AE34: Y | AF34: Y | AG34: Y | AU34: Y | AV34: Y | AW34: N | AX34: Y | AY34: -15841.13 | AZ34: 15841.13 | BA34: 0 | BB34: 2023-12-18 | BC34: FNDSEN-01 to FUNDX-01 journalled - see amended BM report | BD34: Y | BE34: Y | BF34: 2024-04-09 | BG34: Y | BH34: Y | BI34: Y | BJ34: N | BK34: Y | BL34: Y | BM34: Y | BN34: Y | BO34: Y | BP34: -16011.08 | BW34: -16011.08 | BX34: 14475.8 | BZ34: 0.01 | CB34: 14475.81 | CC34: OK | CD34: Funding review figures manually amended. | CE34: Y | CF34: OK | CG34: Y | CH34: 2024-04-09 | CJ34: Annette Magnus | CL34: Y | CM34: Y | CN34: Y | CO34: see comment | CQ34: 14300060459 | CV34: see comment | CY34: Coton Church of England (Voluntary Controlled) Primary School | CZ34: 14475.8 | DB34: 0.01 | DD34: 14475.81 | DE34: TRUE | DF34: TRUE | DG34: TRUE | DH34: TRUE | DI34: TRUE | DJ34: TRUE
A35: 2006 | B35: Cottenham Primary School | C35: Bromcom | D35: Y | E35: 2024-03-26 | F35: AC | G35: 2024-04-04 | H35: Y | I35: Y | J35: Y | K35: Y | L35: Y | M35: Y | N35: Y | O35: Y | P35: Y | Q35: Y | R35: Y | S35: N/a | T35: Y | U35: Y | V35: N | W35: Y | X35: N/a | Y35: Y | Z35: Y | AA35: Y | AB35: Y | AC35: Y | AD35: Y | AE35: Y | AF35: Y | AG35: Y | AU35: Y | AV35: Y | AW35: N | AX35: Y | AY35: -90973.44 | AZ35: 90973.44 | BA35: 0 | BB35: 2024-02-01 | BC35: N/a | BD35: N/a | BE35: Y | BF35: 2024-04-04 | BG35: Y | BH35: Y | BI35: Y | BJ35: Y | BK35: Y | BL35: Y | BM35: Y | BN35: Y | BO35: Y | BP35: 139266.31 | BW35: 139266.31 | BX35: 37553.94 | BZ35: 0 | CB35: 37553.94 | CC35: OK | CD35: N/a | CE35: Y | CF35: OK | CG35: Y | CH35: 2024-04-04 | CJ35: Ray Byford | CL35: Y | CM35: Y | CN35: Y | CO35: see comment | CQ35: 14300060462 | CV35: see comment | CY35: Cottenham Primary School | CZ35: 37553.94 | DB35: 0 | DD35: 37553.94 | DE35: TRUE | DF35: TRUE | DG35: TRUE | DH35: TRUE | DI35: TRUE | DJ35: TRUE
A36: 3012 | B36: Dry Drayton CofE (C) Primary School | C36: FMS | D36: Y | E36: 2024-03-25 | F36: KW | G36: 2024-03-26 | H36: Y | I36: Y | J36: Y | K36: Y | L36: Y | M36: N - Only 50p Out | N36: Y | O36: N - Only 1 p Out | P36: Y | Q36: Y | R36: 23/24 Final closedown figures | T36: Y | U36: Y | V36: Y | W36: Y | Y36: Y | Z36: Y | AA36: Y | AB36: Y | AC36: Y | AD36: Y | AE36: Y | AF36: Y | AG36: Y | AU36: Y | AW36: N | AX36: Y | AY36: -1070.65 | AZ36: 1070.65 | BA36: 0 | BB36: 2024-01-08 | BD36: Commitments not included / Cover VAT and Payroll differences Next F/Y | BE36: Y | BF36: 2024-03-26 | BG36: Y | BH36: Y | BI36: Y | BJ36: Y | BK36: Y | BL36: Y - I have updated the Figure in I01 to remove commitment | BM36: Y | BN36: Y | BO36: Y | BP36: 41789.2 | BW36: 41789.2 | BX36: 18018.2 | CB36: 18018.2 | CC36: OK | CD36: To remove Commitment - adjust this for next year. | CE36: Y | CF36: OK | CG36: Y | CH36: 2024-03-26 | CJ36: Annette Magnus | CL36: Y | CM36: Y | CN36: Y | CO36: see comment | CQ36: 14300060463 | CV36: see comment | CY36: Dry Drayton CofE (C) Primary School | CZ36: 18018.2 | DD36: 18018.2 | DE36: TRUE | DF36: TRUE | DG36: TRUE | DH36: TRUE | DI36: TRUE | DJ36: TRUE
A37: 3041 | B37: Duxford Church of England Community Primary School | C37: FMS | D37: Y | E37: 2024-04-26 | F37: KW | G37: 2024-04-09 | H37: Y | I37: Y | J37: Y | K37: Y | L37: Y | M37: N - £180 adjustment needed for Q1 (added to contact list) | N37: Y | O37: Y | P37: Y | Q37: Y | R37: Y | S37: N/a | T37: Y | U37: Y | V37: N | W37: Y | X37: N/a | Y37: Y | Z37: Y | AA37: Y | AB37: Y | AC37: Y | AD37: Y | AE37: Y | AF37: Y | AG37: Y | AU37: Y | AV37: £180 variance in Q1. | AW37: N | AX37: Y | AY37: -7847.82 | AZ37: 24921.23 | BA37: 17073.41 | BB37: 2024-03-26 | BI37: Y | BJ37: Y | BK37: Y | BL37: Y - Updated the figures | BM37: Prepay has been reversed - Only difference is 4p on Accruals. | BN37: N | BO37: As draft. | BP37: 14001.01 | BW37: 14001.01 | BX37: 21430.4 | CB37: 21430.4 | CC37: Y | CD37: Prepayments unpicked, new Cea sent by school happy it matches - additional Trial balance requested to update SMER in full. | CE37: Y | CF37: Ok | CG37: Y | CH37: 2024-04-11 | CJ37: Gaynor Pope | CL37: Y | CM37: Y | CN37: Y | CO37: see comment | CQ37: 14300060513 | CV37: see comment | CY37: Duxford Church of England Community Primary School | CZ37: 21430.4 | DD37: 21430.4 | DE37: TRUE | DF37: TRUE | DG37: TRUE | DH37: TRUE | DI37: TRUE | DJ37: TRUE
A38: 2246 | B38: Eastfield Infant and Nursery School | C38: FMS | D38: Y | E38: 2024-03-26 | F38: AC | G38: 2024-03-28 | H38: Y | I38: Y | J38: Y | K38: Y | L38: Y | M38: Y | N38: Y | O38: Y | P38: Y | Q38: Y | R38: Y | S38: N/a | T38: Y | U38: Y | V38: N | W38: Y | X38: N/a | Y38: Y | Z38: Y | AA38: Y | AB38: Y | AC38: Y | AD38: Y | AE38: Y | AF38: Y | AG38: Y | AU38: Y | AV38: Y | AW38: N | AX38: Y | AY38: -184533.95 | AZ38: 184533.95 | BA38: 0 | BB38: 2024-01-22 | BC38: N/a | BD38: N/a | BE38: Ray | BF38: 2024-04-02 | BG38: Y | BH38: Y | BI38: Y | BJ38: Y | BK38: Y | BL38: Y | BM38: Y | BN38: Y | BO38: Y | BP38: -25501.86 | BW38: -25501.86 | BX38: 14324.65 | BZ38: 27918.86 | CB38: 42243.51 | CC38: OK | CD38: N/a | CE38: Y | CF38: OK | CG38: Y | CH38: 2024-04-02 | CJ38: Ray Byford | CL38: Y | CM38: Y | CN38: Y | CO38: see comment | CQ38: 14300060515 | CV38: see comment | CY38: Eastfield Infant and Nursery School | CZ38: 14324.65 | DB38: 27918.86 | DD38: 42243.51 | DE38: TRUE | DF38: TRUE | DG38: TRUE | DH38: TRUE | DI38: TRUE | DJ38: TRUE
A39: 3308 | B39: Elsworth CofE VA Primary School | C39: FMS | D39: Y | E39: 2024-03-25 | F39: AC | G39: 2024-04-02 | H39: Y | I39: Y | J39: Y | K39: Y | L39: Y | M39: Y | N39: Y | O39: Y | P39: Y | Q39: Y | R39: Y | S39: N/a | T39: Y | U39: Y | V39: Y | W39: Y | X39: N/a | Y39: Y | Z39: Y | AA39: Y | AB39: Y | AC39: N/a | AD39: Y | AE39: Y | AF39: N - E30 shows as income but is an accrual. | AG39: Y | AU39: Y | AV39: Y | AW39: N | AX39: Y | AY39: 39443.18 | AZ39: -39443.18 | BA39: 0 | BB39: 2023-12-21 | BC39: E30 is showing as income of -£1529.21. Notes on SBS 'Invoice for accrued amount at year end less than expected. Also budget for 10% cont. for works not spent, as work not starting until 1st April24.' Confirmed ok by SSCT. | BD39: N/a | BE39: Jane | BF39: 2024-04-04 | BG39: Y | BH39: Y | BI39: Y | BJ39: Y | BK39: Y | BL39: Y | BM39: Y | BN39: Y | BO39: As draft | BP39: 108620.13 | BW39: 108620.13 | CB39: 0 | CC39: OK | CD39: N/a | CE39: Y | CF39: OK | CG39: Y | CH39: 2024-04-04 | CJ39: Jane Green | CL39: Y | CM39: Y | CN39: Y | CO39: see comment | CQ39: N/A | CV39: see comment | CY39: Elsworth CofE VA Primary School | DD39: 0 | DE39: TRUE | DF39: TRUE | DG39: TRUE | DH39: TRUE | DI39: TRUE | DJ39: TRUE
A40: 2444 | B40: Ely St John's Community Primary School | C40: FMS | D40: Y | E40: 2024-03-25 | F40: SK | G40: 2024-03-26 | H40: Y | I40: Y | J40: Y | K40: Y | L40: Y | M40: N | N40: Y | O40: Y | P40: Y | Q40: Y | R40: Y | S40: Adjustment to VREF figure made on SMER so it reconciles. Incorrect figure used by school. | T40: Y - Governors Agreed Budget 03/05/2023 F | U40: Y | V40: Y | W40: Y | X40: N/A | Y40: Y | Z40: Y | AA40: Y | AB40: Y | AC40: Y | AD40: Y | AE40: Y | AF40: Y | AG40: Y | AU40: Y | AV40: Y | AW40: N | AX40: Y | AY40: -2696.58 | AZ40: 2696.58 | BA40: 0 | BB40: 2024-01-22 | BC40: N/A | BD40: Y | BE40: Y | BF40: 2024-03-27 | BG40: Y | BH40: Y | BI40: Y | BJ40: Y | BK40: Y | BL40: Y | BM40: Y | BN40: Y | BO40: N | BP40: 18961.22 | BW40: 18961.22 | BX40: 8568.55 | CB40: 8568.55 | CC40: OK | CD40: N/A | CE40: Y | CF40: OK | CG40: Y | CH40: 2024-03-27 | CJ40: Ray Byford | CL40: Y | CM40: Y | CN40: Y | CO40: see comment | CQ40: 14300060473 | CV40: see comment | CY40: Ely St John's Community Primary School | CZ40: 8568.55 | DD40: 8568.55 | DE40: TRUE | DF40: TRUE | DG40: TRUE | DH40: TRUE | DI40: TRUE | DJ40: TRUE
A41: 3074 | B41: Eynesbury CofE C Primary School | C41: FMS | D41: Y | E41: 2024-03-26 | F41: SW | G41: 2024-04-05 | H41: Y | I41: Y | J41: Y | K41: Y | L41: Y | M41: £-0.28 Variance. All figures match reports. VAT Balanced in Feb Return. Final Q4 figure matches short summary in SMER. Feb feedback was: The VAT is an issue where VAT has been added to a VAT period that had been reported but had not been closed correctly, so there is VAT included in a period and has not been reported to SSCT. For 28p we are not going to chase this up until the new financial year. | N41: Y | O41: Y | P41: Y | Q41: Y | R41: N/A as year end | S41: Budget profile planner 23-24 final closedown figures wasn’t fixed, I therefore fixed this. | T41: Y - Original submitted budget 2023/24 (Orovia) | U41: Y | V41: N/A as year end | W41: Y | X41: N/A | Y41: OK - £0.01 more than Funding Statement. This was the same last month when David checked and he answered Y and didn’t feedback to school. | Z41: Y | AA41: Y | AB41: Y | AC41: Y | AD41: Y | AE41: Y | AF41: Y | AG41: Y | AH41: N/A as year end | AI41: N/A as year end | AJ41: N/A as year end | AK41: N/A as year end | AL41: N/A as year end | AM41: N/A as year end | AN41: N/A as year end | AO41: N/A as year end | AP41: N/A as year end | AQ41: N/A as year end | AR41: N/A as year end | AS41: N/A as year end | AT41: N/A as year end | AU41: Y | AW41: N/A as year end | AX41: Y | AY41: 2002-05-19T21:36:00 | AZ41: -37395.9 | BA41: 0 | BB41: N/A as year end | BC41: Creditor Control Account £-846.72 - No report Originally attached. Karen sent on 11/4/24 and report mactches CEA No balance on Debtors Control Account, report shows £0 | BE41: Y | BF41: 2024-04-05 | BG41: Y | BH41: Y | BI41: Y | BJ41: N/A as £0 | BK41: Y | BL41: Yes, however incorrect. I updated per Fund Revenue and balanced to Trial Balance | BM41: Y | BN41: Y | BO41: Yes. Budget profile planner 23-24 final closedown figures wasn’t fixed, I therefore fixed this. | BP41: 21642.86 | BV41: 75982.86 | BW41: 97625.72 | BX41: 7462.94 | CB41: 7462.94 | CC41: N | CD41: I emailed school saying "Creditor Control Account shows a balance of £-846.72, there wasn’t a report attached to show the breakdown of this figure. Could you please send this to us asap? " however have closed down with this, assuming they will submit the report showing the correct balance. MARKED AS PUBLISHED 5.4.24 but assuming this will be ok - REPORT RECEIVED AND ALL OK | CE41: Y | CF41: OK | CG41: Y | CH41: 2024-04-05 | CJ41: Gaynor Pope | CL41: Y | CM41: Y | CN41: Y | CO41: see comment | CQ41: 14300060475 | CV41: see comment | CY41: Eynesbury CofE C Primary School | CZ41: 7462.94 | DD41: 7462.94 | DE41: TRUE | DF41: TRUE | DG41: TRUE | DH41: TRUE | DI41: TRUE | DJ41: TRUE
A42: 2336 | B42: Fawcett Primary School | C42: FMS | D42: Y | E42: 2024-03-26 | F42: DU | G42: 2024-04-10 | H42: Y | I42: Y | J42: Y | K42: Y | L42: Y | M42: Y | N42: Y | O42: Y | P42: Y | Q42: Y | R42: N | T42: y | U42: y | V42: y | W42: y | X42: na | Y42: y | Z42: y | AA42: y | AB42: y | AC42: y | AD42: y | AE42: y | AF42: y | AG42: y | AU42: Y | AV42: Y | AW42: y | AX42: y | AY42: 62243.35 | AZ42: -62243.35 | BA42: 0 | BB42: 2024-01-31 | BE42: Ray Byford | BF42: 2024-04-10 | BG42: Y | BH42: Y | BI42: Y | BJ42: Y | BK42: Y | BL42: Y | BM42: Y | BN42: Y | BO42: Y | BP42: 177176.57 | BQ42: -4160.64 | BR42: 22284.67 | BV42: 85276.05 | BW42: 280576.65 | BX42: 2426.67 | BY42: 18702.01 | CB42: 21128.68 | CC42: ok | CE42: Y | CF42: ok | CG42: Y | CH42: 2024-04-10 | CJ42: Ray Byford | CL42: Y | CM42: N - UNSURE WHAT SCHOOL TO PUT IT AGAINST. WORKING PAPER PARTIALLY DONE | CN42: N | CO42: 14300060548 | CQ42: 14300060517 | CY42: Fawcett Primary School | CZ42: 2426.67 | DA42: 18702.01 | DD42: 21128.68 | DE42: TRUE | DF42: TRUE | DG42: TRUE | DH42: TRUE | DI42: TRUE | DJ42: TRUE
A43: 2010 | B43: Fen Drayton Primary School | C43: Bromcom | D43: Y | E43: 2024-03-25 | F43: DU | G43: 2024-04-02 | H43: Y | I43: Y | J43: Y | K43: Y | L43: Y | M43: Y | N43: Y | O43: Y | P43: Y | Q43: Y | R43: y | T43: y | U43: y | V43: y | W43: y | X43: na | Y43: y | Z43: y | AA43: y | AB43: y | AC43: y | AD43: y | AE43: y | AF43: y | AG43: y | AU43: Y | AV43: Y | AX43: y | AY43: -30069.5 | AZ43: 30069.5 | BA43: 0 | BB43: 2024-02-01 | BE43: Ray Byford | BF43: 2024-04-03 | BG43: Y | BH43: Y | BI43: Y | BJ43: Y | BK43: Y | BL43: Y | BM43: Y | BN43: Y | BO43: Y | BP43: -9120.82 | BW43: -9120.82 | BX43: 2526.02 | CB43: 2526.02 | CC43: OK | CE43: Y | CF43: OK | CG43: Y | CH43: 2024-04-03 | CJ43: Ray Byford | CL43: Y | CM43: Y | CN43: Y | CO43: see comment | CQ43: 14300060519 | CV43: see comment | CY43: Fen Drayton Primary School | CZ43: 2526.02 | DD43: 2526.02 | DE43: TRUE | DF43: TRUE | DG43: TRUE | DH43: TRUE | DI43: TRUE | DJ43: TRUE
A44: 2208 | B44: Fenstanton and Hilton Primary School | C44: FMS | D44: Y | E44: 2024-03-25 | F44: DU | G44: 2024-04-02 | H44: Y | I44: Y | J44: Y | K44: Y | L44: Y | M44: full reconciliation not done - to be investigated in new FY | N44: Y | O44: Y | P44: Y | Q44: Y | R44: y | T44: y | U44: y | V44: y | W44: y | X44: na | Y44: y | Z44: y | AA44: y | AB44: y | AC44: y | AD44: y | AE44: y | AF44: y | AG44: y | AU44: Y | AV44: Y | AX44: y | AY44: -47333.57 | AZ44: 47333.57 | BA44: 0 | BB44: 2024-01-09 | BE44: Jane Green | BF44: 2024-04-02 | BG44: Y | BI44: Y | BJ44: Y | BK44: Y | BL44: Y | BM44: Y | BN44: Y | BO44: N | BP44: 65787.59 | BV44: 15076.77 | BW44: 80864.36 | BX44: 12460.46 | BZ44: 534.43 | CB44: 12994.89 | CC44: OK | CE44: Y | CF44: OK | CG44: Y | CH44: 2024-04-03 | CJ44: Jane Green | CL44: Y | CM44: Y | CN44: Y | CO44: see comment | CQ44: 14300060479 | CV44: see comment | CY44: Fenstanton and Hilton Primary School | CZ44: 12460.46 | DB44: 534.43 | DD44: 12994.89 | DE44: TRUE | DF44: TRUE | DG44: TRUE | DH44: TRUE | DI44: TRUE | DJ44: TRUE
A45: 3065 | B45: Folksworth CofE Primary School | C45: FMS | D45: Y | E45: 2024-03-25 | F45: SW | G45: 2024-04-08 | H45: Y | I45: Y | J45: Y | K45: Y | L45: Y | M45: Difference of £0.01. | N45: Y | O45: Payroll Difference of £14.90. After reading your feedback, please write off this difference in 24/25. You will need to Debit £+14.90 to the PAYROL Balance sheet code, and Credit £-14.90 the pay code (NI if you can). This should clear it going forward. But please enter this in period 1 of Financial year 24/25 NOT IN 23/24 | P45: Y | Q45: Y | R45: N/A as year end | S45: Entered by Shannan -23/24 Draft Year End Figures. SW checked 23/24 Final Closedown totals for Revenue, Capital and overall total was the same as the Draft, as they were, downloaded 23/24 Final Closedown to do checks etc | T45: Y | U45: Y | V45: N/A as year end | W45: Y | X45: N/A | Y45: Y | Z45: Y | AA45: Y | AB45: Y | AC45: Y | AD45: Y | AE45: Y | AF45: Y | AG45: Y | AH45: N/A as year end | AI45: N/A as year end | AJ45: N/A as year end | AK45: N/A as year end | AL45: N/A as year end | AM45: N/A as year end | AN45: N/A as year end | AO45: N/A as year end | AP45: N/A as year end | AQ45: N/A as year end | AR45: N/A as year end | AS45: N/A as year end | AT45: N/A as year end | AU45: Y | AW45: N/A as year end | AX45: Y | AY45: -20036.88 | AZ45: 20036.88 | BA45: 0 | BD45: Y | BE45: Y | BF45: 2024-04-04 | BG45: Y | BH45: Not needed as no balances | BI45: Y | BJ45: N but ok. As aren't any | BK45: Y | BL45: Y | BM45: Y | BN45: Y | BO45: Entered by Shannan -23/24 Draft Year End Figures. SW checked 23/24 Final Closedown totals for Revenue, Capital and overall total was the same as the Draft, as they were, downloaded 23/24 Final Closedown to do checks etc | BP45: 158.81 | BQ45: 0 | BR45: 0 | BS45: 0 | BT45: 0 | BU45: 0 | BV45: 0 | BW45: 158.81 | BX45: 0.94 | BY45: 0 | BZ45: 0 | CA45: 0 | CB45: 0.94 | CC45: OK | CD45: N/A | CE45: Y | CF45: OK | CG45: Y | CH45: 2024-04-10 | CJ45: Jane Green | CL45: Y | CM45: Y | CN45: Y | CO45: 14300060551 | CQ45: 14300060521 | CV45: 14300060551 | CY45: Folksworth CofE Primary School | CZ45: 0.94 | DA45: 0 | DB45: 0 | DC45: 0 | DD45: 0.94 | DE45: TRUE | DF45: TRUE | DG45: TRUE | DH45: TRUE | DI45: TRUE | DJ45: TRUE
A46: 3014 | B46: Fordham CofE Primary School | C46: FMS | D46: Y | E46: 2024-03-28 | F46: DU | G46: 2024-04-03 | H46: Y | I46: Y | J46: Y | K46: Y | L46: Y | M46: Y | N46: Y | O46: Y | P46: Y | Q46: Y | R46: y | T46: y | U46: y | V46: y | W46: y | X46: na | Y46: y | Z46: y | AA46: y | AB46: y | AC46: y | AD46: y | AE46: y | AF46: y | AG46: y | AU46: Y | AV46: Y | AX46: y | AY46: -93339.35 | AZ46: 93339.35 | BA46: 0 | BB46: 2024-01-04 | BE46: Ray Byford | BF46: 2024-04-03 | BG46: Y | BH46: Y | BI46: Y | BJ46: Y | BK46: Y | BL46: Y | BM46: Y | BN46: Y | BO46: Y | BP46: 337408.26 | BU46: 0 | BW46: 337408.26 | BX46: 16460.03 | CB46: 16460.03 | CC46: OK | CE46: Y | CF46: OK | CG46: Y | CH46: 2024-04-03 | CJ46: Ray Byford | CL46: Y | CM46: Y | CN46: Y | CO46: 14300060553 | CQ46: 14300060525 | CV46: 14300060553 | CY46: Fordham CofE Primary School | CZ46: 16460.03 | DD46: 16460.03 | DE46: TRUE | DF46: TRUE | DG46: TRUE | DH46: TRUE | DI46: TRUE | DJ46: TRUE
A47: 2321 | B47: Fourfields Community Primary School | C47: ACCESS | D47: Y | E47: 2024-03-26 | F47: AC | G47: 2024-04-08 | H47: Y | I47: Y | J47: Y | K47: N/a | L47: Y | M47: Y | N47: Y | O47: Y | P47: Y | Q47: Y | R47: Y | S47: N/a | T47: Y | U47: Y | V47: N | W47: Y | X47: N/a | Y47: Y | Z47: Y | AA47: Y | AB47: Y | AC47: Y | AD47: Y | AE47: Y | AF47: Y | AG47: Y | AU47: Y | AV47: Y | AW47: N | AX47: Y | AY47: 32878.56 | AZ47: -32878.56 | BA47: 0 | BB47: 2024-02-06 | BC47: N/a | BD47: N/a | BE47: Y | BF47: 2024-04-09 | BG47: Y | BH47: Y | BI47: Y | BJ47: Y | BK47: Y | BL47: Y | BM47: Y | BN47: Y | BO47: Y | BP47: 241330.11 | BV47: 2796.43 | BW47: 244126.54 | BX47: 20741.34 | CB47: 20741.34 | CC47: OK | CD47: N/a | CE47: Y | CF47: OK | CG47: Y | CH47: 2024-04-09 | CJ47: Jane Green | CL47: Y | CM47: Y | CN47: Y | CO47: 14300060590 | CQ47: 14300060483 | CY47: Fourfields Community Primary School | CZ47: 20741.34 | DD47: 20741.34 | DE47: TRUE | DF47: TRUE | DG47: TRUE | DH47: TRUE | DI47: TRUE | DJ47: TRUE
A48: 2011 | B48: Fowlmere Primary School | C48: Bromcom | D48: Y | E48: 2024-03-25 | F48: AC | G48: 2024-03-25 | H48: Y | I48: Y | J48: Y | K48: Y | L48: Y | M48: Y | N48: Y | O48: Y | P48: Y | Q48: Y | R48: Y | S48: N/a | T48: Y | U48: Y | V48: Y | W48: Y | X48: N/a | Y48: Y | Z48: Y | AA48: Y | AB48: Y | AC48: Y | AD48: Y | AE48: Y | AF48: Y | AG48: Y | AU48: Y | AV48: Y | AW48: N | AX48: Y | AY48: -30437.15 | AZ48: 30437.15 | BA48: 0 | BB48: 2024-01-25 | BC48: N/a | BD48: N/a | BE48: Gaynor | BF48: 2024-04-02 | BG48: Y | BH48: Y | BI48: Y | BJ48: N/a | BK48: Y | BL48: Y | BM48: Y | BN48: Y | BO48: Y | BP48: 36706.48 | BW48: 36706.48 | BX48: 8096.92 | CB48: 8096.92 | CC48: OK | CD48: N/a | CE48: Y | CF48: OK | CG48: Y | CH48: 2024-04-02 | CJ48: Gaynor Pope | CL48: Y | CM48: Y | CN48: Y | CO48: 14300060591 | CQ48: 14300060487 | CY48: Fowlmere Primary School | CZ48: 8096.92 | DD48: 8096.92 | DE48: TRUE | DF48: TRUE | DG48: TRUE | DH48: TRUE | DI48: TRUE | DJ48: TRUE
A49: 2012 | B49: Foxton Primary School | C49: Bromcom | D49: Y | E49: 2024-03-25 | F49: DU | G49: 2024-04-09 | H49: Y | I49: Y | J49: Y | K49: Y | L49: Y | M49: Y | N49: Y | O49: Y | P49: Y | Q49: Y | R49: y | T49: y | U49: y | V49: y | W49: y | X49: na | Y49: y | Z49: y | AA49: y | AB49: y | AC49: y | AD49: y | AE49: y | AF49: y | AG49: y | AU49: Y | AV49: Y | AW49: y | AX49: y | AY49: 34168.9 | AZ49: -34168.9 | BA49: 0 | BE49: Gaynor Pope | BF49: 2024-04-09 | BG49: Y | BH49: Y | BI49: Y | BJ49: Y | BK49: Y | BL49: Y | BM49: Y | BN49: Y | BO49: Y | BP49: 129149.02 | BW49: 129149.02 | BX49: 12821.94 | CB49: 12821.94 | CC49: OK | CE49: Y | CF49: OK | CG49: Y | CH49: 2024-04-09 | CJ49: Gaynor Pope | CL49: Y | CM49: Y | CN49: Y | CO49: 14300060592 | CQ49: 14300060481 | CY49: Foxton Primary School | CZ49: 12821.94 | DD49: 12821.94 | DE49: TRUE | DF49: TRUE | DG49: TRUE | DH49: TRUE | DI49: TRUE | DJ49: TRUE
A50: 2068 | B50: Friday Bridge Community Primary School | C50: FMS | D50: Y | E50: 2024-04-04 | F50: SW | G50: 2024-04-04 | H50: Y | I50: Y | J50: Y | K50: Y | L50: Y | M50: No - however only £1 . To be corrected in 24/25 via funding adjustment | N50: Y | O50: Y | P50: Y | Q50: Y | R50: n/a as year end | S50: £1 to be adjusted for on next VAT refund - per Davids Feb SMER feedback. No Q1, 2 or 3 VAT submittal reports included in this SMER but I checked to make sure the figures were per our VAT records 3.4.24 | T50: Y - Approved - Original submitted budget 2023/24 (orivia) | U50: y | V50: n/a as year end | W50: Y | X50: N/A | Y50: £3000 more funding coded to FNDSEN-01 than the funding statement. Zoe replied 4.4.24: The £3k is additional income from Norfolk County Council. So is ok to show as a difference. | Z50: Y | AA50: Y | AB50: Y | AC50: Y | AD50: Y | AE50: Y | AF50: Y | AG50: Y | AH50: n/a as year end | AI50: n/a as year end | AJ50: n/a as year end | AK50: n/a as year end | AL50: n/a as year end | AM50: n/a as year end | AN50: n/a as year end | AO50: n/a as year end | AP50: n/a as year end | AQ50: n/a as year end | AR50: n/a as year end | AS50: n/a as year end | AT50: n/a as year end | AU50: No but ok as checks done to VAT summary in contact list | AW50: n/a as year end | AX50: Y | AY50: 18910.2 | AZ50: -18910.2 | BA50: 0 | BE50: Y | BF50: 2024-04-04 | BG50: Y | BH50: Y | BI50: Y | BJ50: N | BK50: Y | BL50: Y | BM50: Y | BN50: Y | BO50: Y | BP50: 50880.26 | BW50: 50880.26 | BX50: 12899.11 | CB50: 12899.11 | CC50: N | CD50: n/a | CE50: Y | CF50: OK | CG50: Y | CH50: 2024-04-04 | CJ50: Annette Magnus | CL50: Y | CM50: Y | CN50: Y | CO50: 14300060593 | CQ50: 14300060484 | CY50: Friday Bridge Community Primary School | CZ50: 12899.11 | DD50: 12899.11 | DE50: TRUE | DF50: TRUE | DG50: TRUE | DH50: TRUE | DI50: TRUE | DJ50: TRUE
A51: 2328 | B51: Fulbourn Primary School | C51: Bromcom | D51: Y | E51: 2024-03-25 | F51: SK | G51: 2024-04-03 | H51: Y | I51: Y | J51: Y | K51: Y | L51: Y | M51: N - £99.24 variance | N51: Y | O51: Y | P51: Y | Q51: Y | R51: Y - 23/24 YE Draft Figures, no auto-duplicate to rename. | S51: VAT variance from Dec 23. To be refunded/addressed in new year. | T51: Y - Original Submitted Budget (Orovia) 23/24 | U51: Y | V51: Y | W51: Y | X51: N/A | Y51: Y | Z51: Y | AA51: Y | AB51: Y | AC51: Y | AD51: Y | AE51: Y | AF51: Y | AG51: Y | AU51: Y | AV51: Y | AW51: N | AX51: Y | AY51: 18437.08 | AZ51: -18437.08 | BA51: 0 | BB51: 2024-03-14 | BC51: N/A | BD51: As above | BE51: Y | BF51: 2024-04-03 | BG51: Y | BH51: Y | BI51: Y | BJ51: N - but no transactions | BK51: Y | BL51: N | BM51: Y | BN51: Y | BO51: N | BP51: 184541.06 | BW51: 184541.06 | BX51: 25664.76 | BZ51: 0 | CB51: 25664.76 | CC51: OK | CD51: N/A | CE51: Y | CF51: OK | CG51: Y - 23/24 YE Draft Figures, no auto-duplicate to rename. | CH51: 2024-04-03 | CJ51: Ray Byford | CL51: Y | CM51: Y | CN51: Y | CO51: 14300060594 | CQ51: 14300060485 | CY51: Fulbourn Primary School | CZ51: 25664.76 | DB51: 0 | DD51: 25664.76 | DE51: TRUE | DF51: TRUE | DG51: TRUE | DH51: TRUE | DI51: TRUE | DJ51: TRUE
A52: 7025 | B52: Granta School | C52: Arbor | D52: Y | E52: 2024-03-25 | F52: SK | G52: 2024-04-10 | H52: Y | I52: Y | J52: Y | K52: Y | L52: Y | M52: Y | N52: Y | O52: Y | P52: Y | Q52: Y | R52: Y | S52: N/A | T52: Y - Agreed Governors Budget 20/04/2023 | U52: Y | V52: Y | W52: Y | X52: Y | Y52: Y - variances OOA payments | Z52: Y - variances OOA payments | AA52: Y | AB52: Y | AC52: Y | AD52: Y | AE52: Y | AF52: Y | AG52: Y | AU52: Y | AV52: Y | AW52: N | AX52: Y | AY52: -330323.95 | AZ52: 330323.95 | BA52: 0 | BB52: 2024-02-02 | BC52: TB not matching as accruals and prepayments not included - SSCT recreated then school sent in new reports | BD52: SSCT had to recreate reports to check fully. School provided new reports | BE52: Y | BF52: 2024-04-10 | BG52: Y | BH52: Y | BI52: Y | BJ52: Y | BK52: Y | BL52: Y | BM52: Y | BN52: Y | BO52: Y | BP52: 360286.92 | BW52: 360286.92 | BX52: 0 | CA52: 0 | CB52: 0 | CC52: OK | CD52: Reports issue resolved | CE52: Y | CF52: OK | CG52: Y | CH52: 2024-04-11 | CJ52: Gaynor Pope | CL52: Y | CM52: Y | CN52: Y | CO52: 14300060597 | CQ52: 14300060528 | CY52: Granta School | CZ52: 0 | DC52: 0 | DD52: 0 | DE52: TRUE | DF52: TRUE | DG52: TRUE | DH52: TRUE | DI52: TRUE | DJ52: TRUE
A53: 3310 | B53: Great and Little Shelford CofE (Aided) Primary School | C53: FMS | D53: Y | E53: 2024-03-25 | F53: DU | G53: 2024-04-09 | H53: Y | I53: Y | J53: Y | K53: Y | L53: Y | M53: Y | N53: Y | O53: Y | P53: Y | Q53: Y | R53: y | T53: y | U53: y | V53: y | W53: y | X53: na | Y53: y | Z53: y | AA53: y | AB53: y | AC53: na | AD53: y | AE53: y | AF53: y | AG53: y | AU53: Y | AV53: Y | AW53: y | AX53: y | AY53: -79945.71 | AZ53: 79945.71 | BA53: 0 | BB53: 2023-12-19 | BE53: Gaynor Pope | BF53: 2024-04-09 | BG53: Y | BH53: Y | BI53: Y | BJ53: Y | BK53: Y | BL53: Y | BM53: Y | BN53: Y | BO53: Y | BP53: -33252.08 | BV53: -13488.01 | BW53: -46740.09 | CB53: 0 | CC53: OK | CE53: Y | CF53: OK | CG53: Y | CH53: 2024-04-09 | CJ53: Gaynor Pope | CL53: Y | CM53: Y | CN53: Y | CO53: 14300060600 | CQ53: N/A | CY53: Great and Little Shelford CofE (Aided) Primary School | DD53: 0 | DE53: TRUE | DF53: TRUE | DG53: TRUE | DH53: TRUE | DI53: TRUE | DJ53: TRUE
A54: 2016 | B54: Great Abington Primary School | C54: ACCESS | D54: Y | E54: 2024-04-27 | F54: KW | G54: 2024-04-08 | H54: Y | I54: Y | J54: Y | K54: N | L54: Y | M54: Y | N54: Y | O54: Y | P54: Y | Q54: Y | R54: Y | T54: Y | U54: Y | V54: Y | W54: Y | X54: N/A | Y54: Y | Z54: Y | AA54: Y | AB54: Y | AC54: Y | AD54: Y | AE54: Y | AF54: Y | AG54: Y | AU54: Y | AW54: N | AX54: Y | AY54: -10071.9 | AZ54: 10071.9 | BA54: 0 | BB54: 2023-12-19 | BD54: Fund 05 credit carryforward reason ? | BE54: Y | BF54: 2024-04-08 | BH54: Y | BI54: N | BJ54: Y | BK54: Y | BL54: Y - Updated as put the opening figures in from 23/24 | BM54: Y | BN54: Y | BO54: Y | BP54: 8043.78 | BW54: 8043.78 | BX54: 19019.65 | BZ54: 3930.63 | CB54: 22950.28 | CC54: N | CD54: No notes on Fund-05 as to why credit carry forward - Contacted - Pushed thrpugh as not heard back. | CE54: Y | CF54: Ok | CG54: Y | CH54: 2024-04-10 | CJ54: Gaynor Pope | CL54: Y | CM54: Y | CN54: Y | CO54: 14300060598 | CQ54: 14300060529 | CY54: Great Abington Primary School | CZ54: 19019.65 | DB54: 3930.63 | DD54: 22950.28 | DE54: TRUE | DF54: TRUE | DG54: TRUE | DH54: TRUE | DI54: TRUE | DJ54: TRUE
A55: 3068 | B55: Great Paxton CofE Primary School | C55: FMS | D55: Y | E55: 2024-03-25 | F55: DU | G55: 2024-04-05 | H55: Y | I55: Y | J55: Y | K55: Y | L55: Y | M55: Y | N55: Y | O55: Y | P55: Y | Q55: Y | R55: y | T55: y | U55: y | V55: y | W55: y | X55: na | Y55: y | Z55: y | AA55: y | AB55: y | AC55: y | AD55: y | AE55: y | AF55: y | AG55: y | AU55: Y | AV55: Y | AW55: y | AX55: y | AY55: -27777.21 | AZ55: 27777.21 | BA55: 0 | BB55: 2023-12-18 | BE55: Annette Magnus | BF55: 2024-04-05 | BG55: Y | BH55: N | BI55: Y | BJ55: Y | BK55: Y | BL55: Y | BM55: Y | BN55: Y | BO55: N | BP55: -1506.08 | BW55: -1506.08 | CB55: 0 | CC55: OK | CE55: Y | CF55: OK | CG55: Y | CH55: 2024-04-05 | CJ55: Annette Magnus | CL55: Y | CM55: Y | CN55: Y | CO55: 14300060599 | CQ55: 14300060490 | CY55: Great Paxton CofE Primary School | DD55: 0 | DE55: TRUE | DF55: TRUE | DG55: TRUE | DH55: TRUE | DI55: TRUE | DJ55: TRUE
A56: 2315 | B56: Hardwick and Cambourne Community Primary School | C56: FMS | D56: Y | E56: 2024-03-25 | F56: SW | G56: 2024-04-04 | H56: Y | I56: Y | J56: Y | K56: Y | L56: Y | M56: Y | N56: Y | O56: Y | P56: Y | Q56: Y | R56: n/a as year end | S56: N/A | T56: Y Governors agreed budget 02/05/2023 | U56: Y | V56: n/a as year end | W56: Difference explained - see year end problems/issues section. Kerry said ok via teams call 4.4.24 | X56: n/a | Y56: ok - The additional £2597.10 SEN money is SENIF funding for a child in pre-school, it is also coming directly into the bank account | Z56: Y | AA56: Y | AB56: Y | AC56: Y | AD56: Y | AE56: Y | AF56: Y | AG56: Y | AH56: n/a as year end | AI56: n/a as year end | AJ56: n/a as year end | AK56: n/a as year end | AL56: n/a as year end | AM56: n/a as year end | AN56: n/a as year end | AO56: n/a as year end | AP56: n/a as year end | AQ56: n/a as year end | AR56: n/a as year end | AS56: n/a as year end | AT56: n/a as year end | AU56: Y | AW56: n/a as year end | AX56: Y | AY56: -135923.75 | AZ56: 135923.75 | BA56: 0 | BE56: Y | BF56: 2024-04-04 | BG56: Y | BH56: Yes but debtors wasnt in format I could read, but ok as not needed - no balance on CEA | BI56: Y | BJ56: No but not needed so ok | BK56: Y | BL56: Y | BM56: Y | BN56: Y | BO56: Section 6 showed: 23/24 Final Closedown Figures (SW note: ACTUALLY CALLED 23/24 P12 Final closedown) | BP56: 177930.29 | BW56: 177930.29 | BX56: 59428.91 | CB56: 59428.91 | CC56: N | CD56: NOW OK - FOR NOW - I emailed: I notice on your SBS CFR budget monitor that your FUND-01 total of £2,318,059.59 is £64,230.04 higher than the funding statement. Your funding statement shows £44,186.47+£2,209,643.08 = £2,253,829.55. When going back to previous months comments, you mention £49,642.12 was funding for preschool paid directly into your bank account. Who was this paid from please? Also is your preschool a preschool class? What was the additional money for please? This would leave a difference of £14,587.92 that hasn’t been explained at all. Could you please let me know why this was received? Who paid you it. What it was for? We will need to know why the funding on FUND-01 is £64,230.04 higher than the funding statement before we can sign off your 23/24 accounts, could you please therefore send this information to us urgently? SCHOOLS RESPONSE:it is from you at CCC and I have no idea why it is paid to us directly. All I was told when we changed to a pre-school was that we would be funded differently and not via the funding statement. It is a section 27 run pre school. The total pre-school funding received this financial year is £64,230.04. It comes from the CC and is paid directly into our bank account. We changed from a maintained nursery to a pre school in september SW spoke to Kerry re this. Kerry said should really have a conversation with school re this and FAs to work out the element from Sept that should be coded to FUND24 - we have run out of time for now. but may be able to amend CFR retrun manually. Need to set up a meeting with FA in new year to discuss this | CE56: Y | CF56: OK | CG56: Y | CH56: 2024-04-04 | CJ56: Ray Byford | CL56: Y | CM56: Y | CN56: Y | CO56: 14300060614 | CQ56: 14300060495 | CV56: 14300060614 | CY56: Hardwick and Cambourne Community Primary School | CZ56: 59428.91 | DD56: 59428.91 | DE56: TRUE | DF56: TRUE | DG56: TRUE | DH56: TRUE | DI56: TRUE | DJ56: TRUE
A57: 2018 | B57: Harston and Newton Community Primary School | C57: Bromcom | D57: Y | E57: 2024-03-24 | F57: KW | G57: 2024-03-25 | H57: Y | I57: Y | J57: Y | K57: Y | L57: Y | M57: Y | N57: Y | O57: Y | P57: Y | Q57: Y | R57: No | S57: BM '23/24 Final Closedown figures' | T57: Y | U57: Y | V57: Y | W57: More showing on SBS of 13975.41 than on funding statement - Shown on YE dec as FNDSEN | Y57: Y | Z57: Y | AA57: Y | AB57: Y | AC57: Y | AD57: Y | AE57: Y | AF57: Y | AG57: Y | AU57: Y | AW57: N | AX57: Y | AY57: -85,399.32 | AZ57: 85399.32 | BA57: 0 | BB57: 2024-01-05 | BC57: Difference on I01 - However this relates to SENIF FUND 24 | BD57: N/A | BE57: Y | BF57: 2024-03-25 | BG57: Y | BH57: Y | BI57: Y | BJ57: Y | BK57: Y | BL57: Y | BM57: N | BN57: Y | BO57: N - That is the correct budget - checked with School | BP57: 28020.84 | BV57: 23398.86 | BW57: 51419.7 | BX57: 1664.02 | BZ57: 27041.96 | CB57: 28705.98 | CC57: N | CE57: Y | CF57: OK | CG57: Y | CH57: 2024-03-25 | CJ57: Annette Magnus | CL57: Y | CM57: Y | CN57: Y | CO57: 14300060615 | CQ57: 14300060531 | CV57: 14300060615 | CY57: Harston and Newton Community Primary School | CZ57: 1664.02 | DB57: 27041.96 | DD57: 28705.98 | DE57: TRUE | DF57: TRUE | DG57: TRUE | DH57: TRUE | DI57: TRUE | DJ57: TRUE
A58: 3035 | B58: Haslingfield Endowed Primary School | C58: Bromcom | D58: Y | E58: 2024-03-25 | F58: DU | G58: 2024-04-05 | H58: Y | I58: Y | J58: Y | K58: Y | L58: Y | M58: Y | N58: Y | O58: Y | P58: Y | Q58: Y | R58: y | T58: y | U58: y | V58: y | W58: y | X58: na | Y58: y | Z58: y | AA58: y | AB58: y | AC58: y | AD58: y | AE58: y | AF58: y | AG58: y | AU58: Y | AV58: Y | AW58: y | AX58: y | AY58: 4593.77 | AZ58: -4593.77 | BA58: 0 | BB58: 2023-12-21 | BE58: Ray Byford | BF58: 2024-04-05 | BG58: Y | BH58: Y | BI58: Y | BJ58: Y | BK58: Y | BL58: Y | BM58: Y | BN58: Y | BO58: N | BP58: 168266.49 | BW58: 168266.49 | BX58: 4247.23 | BZ58: 0 | CB58: 4247.23 | CC58: OK | CE58: Y | CF58: OK | CG58: Y | CH58: 2024-04-05 | CJ58: Ray Byford | CL58: Y | CM58: Y | CN58: Y | CO58: 14300060616 | CQ58: 14300060496 | CV58: 14300060616 | CY58: Haslingfield Endowed Primary School | CZ58: 4247.23 | DB58: 0 | DD58: 4247.23 | DE58: TRUE | DF58: TRUE | DG58: TRUE | DH58: TRUE | DI58: TRUE | DJ58: TRUE
A59: 2205 | B59: Hauxton Primary School | C59: FMS | D59: Y | E59: 2024-03-27 | F59: KW | G59: 2024-04-05 | H59: Y | I59: Y | J59: Y | K59: Y | L59: Y | M59: Y | N59: Y | O59: N | P59: Y | Q59: Y | R59: N | T59: Y | U59: Y | V59: Y | W59: Y | X59: N/A | Y59: Y | Z59: Y | AA59: Y | AB59: Y | AC59: Y | AD59: Y | AE59: Y | AF59: Y | AG59: Y | AU59: Y | AW59: N | AX59: Y | AY59: -14401.32 | AZ59: 14401.32 | BA59: 0 | BB59: 2024-02-02 | BD59: I01 & I03 do not match F/S and spend on Fund 05 Non CFR is not showing. | BE59: Y | BF59: 2024-04-10 | BG59: Y | BI59: Y | BJ59: Y | BK59: Y | BL59: Y | BM59: Y | BN59: Y | BO59: N - Corrected to this name | BP59: -12765.75 | BW59: =SUM(BP59:BV59) -> -12765.75 | BX59: 38129.11 | BZ59: 7205.01 | CB59: =SUM(BX59:CA59) -> 45334.12 | CC59: Ok | CD59: School Corrected previous issues | CE59: Y | CF59: ok | CG59: Y | CH59: 2024-04-10 | CJ59: Ray Byford | CL59: Y | CM59: Y | CN59: Y | CO59: 14300060617 | CQ59: 14300060493 | CV59: 14300060617 | CY59: Hauxton Primary School | CZ59: 38129.11 | DB59: 7205.01 | DD59: 45334.12 | DE59: TRUE | DF59: TRUE | DG59: TRUE | DH59: TRUE | DI59: TRUE | DJ59: TRUE
A60: 2211 | B60: Hemingford Grey Primary School | C60: FMS | D60: Y | E60: 2024-03-26 | F60: AC | G60: 2024-04-05 | H60: Y | I60: Y | J60: Y | K60: Y | L60: Y | M60: Y | N60: Y | O60: Y | P60: Y | Q60: N | R60: Y | S60: N/a | T60: Y | U60: Y | V60: Y | W60: Y | X60: N/a | Y60: Y | Z60: Y | AA60: Y | AB60: Y | AC60: Y | AD60: Y | AE60: Y | AF60: Y | AG60: Y | AU60: Y | AV60: Y | AW60: N | AX60: Y | AY60: -9337.46 | AZ60: 9337.46 | BA60: 0 | BB60: 2024-01-16 | BC60: N/a | BD60: N/a | BE60: Gaynor | BF60: 2024-04-05 | BG60: Y | BH60: Y | BI60: Y | BJ60: Y | BK60: Y | BL60: Y | BM60: Y | BN60: Y | BO60: Y | BP60: 70946.99 | BV60: -34947.84 | BW60: 35999.15 | BX60: 15997.69 | CB60: 15997.69 | CC60: OK | CD60: N/a | CE60: Y | CF60: OK | CG60: Y | CH60: 2024-04-05 | CJ60: Gaynor Pope | CL60: Y | CM60: Y | CN60: Y | CO60: 14300060618 | CQ60: 14300060498 | CV60: 14300060618 | CY60: Hemingford Grey Primary School | CZ60: 15997.69 | DD60: 15997.69 | DE60: TRUE | DF60: TRUE | DG60: TRUE | DH60: TRUE | DI60: TRUE | DJ60: TRUE
A61: 1003 | B61: Histon Early Years Centre | C61: FMS | D61: Y | E61: 2024-03-25 | F61: SK | G61: 2024-04-04 | H61: Y | I61: Y | J61: Y | K61: Y | L61: Y | M61: Y | N61: Y | O61: Y | P61: Y | Q61: Y | R61: Y | S61: N/A | T61: Y - Original Submitted Budget 2023/24 Orovia | U61: Y | V61: Y | W61: Y | X61: N/A | Y61: Y | Z61: Y | AA61: Y | AB61: Y | AC61: Y | AD61: Y | AE61: Y | AF61: Y | AG61: Y | AU61: Y | AV61: Y | AW61: N | AX61: Y | AY61: 12631.72 | AZ61: -12631.72 | BA61: 0 | BB61: 2024-02-02 | BC61: N/A | BD61: Y | BE61: Y | BF61: 2024-04-04 | BG61: Y | BH61: Y | BI61: Y | BJ61: Y | BK61: Y | BL61: Y | BM61: Y | BN61: Y | BO61: Y | BP61: -44681.72 | BR61: 450396.52 | BW61: =SUM(BP61:BV61) -> 405714.8 | BX61: 22695 | CB61: 22695 | CC61: OK | CD61: N/A | CE61: Y | CF61: OK | CG61: Y | CH61: 2024-04-04 | CJ61: Ray Byford | CL61: Y | CM61: Y | CN61: Y | CO61: 14300060619 | CQ61: N/A | CV61: 14300060619 | CY61: Histon Early Years Centre | CZ61: 22695 | DD61: 22695 | DE61: TRUE | DF61: TRUE | DG61: TRUE | DH61: TRUE | DI61: TRUE | DJ61: TRUE
A62: 3071 | B62: Holywell CofE Primary School | C62: FMS | D62: Y | E62: 2024-03-26 | F62: AC | G62: 2024-04-09 | H62: Y | I62: Y | J62: Y | K62: Y | L62: Y | M62: Y | N62: Y - £0.02 variance. | O62: Y | P62: Y | Q62: Y | R62: Y | S62: N/a | T62: Y | U62: Y | V62: Y | W62: Y | X62: N/a | Y62: Y | Z62: Y | AA62: Y | AB62: Y | AC62: Y | AD62: Y | AE62: Y | AF62: Y | AG62: Y | AU62: Y | AV62: Y | AW62: N | AX62: Y | AY62: -11872.84 | AZ62: 11872.84 | BA62: 0 | BB62: 2023-12-22 | BC62: N/a | BD62: N/a | BE62: Y | BF62: 2024-04-11 | BG62: Y | BH62: Y | BI62: Y | BJ62: Y | BK62: Y | BL62: Y | BM62: Y | BN62: Y | BO62: As draft. | BP62: -8194.46 | BW62: -8194.46 | BX62: 3.24 | CB62: 3.24 | CC62: Ok | CD62: N/a | CE62: Y | CF62: Ok | CG62: Y | CH62: 2024-04-11 | CJ62: Ray Byford | CL62: Y | CM62: Y | CN62: Y | CO62: 14300060620 | CQ62: 14300060580 | CV62: 14300060620 | CY62: Holywell CofE Primary School | CZ62: 3.24 | DD62: 3.24 | DE62: TRUE | DF62: TRUE | DG62: TRUE | DH62: TRUE | DI62: TRUE | DJ62: TRUE
A63: 1002 | B63: Homerton Early Years Centre | C63: FMS | D63: Y | E63: 2024-03-27 | F63: DU | G63: 2024-03-27 | H63: Y | I63: Y | J63: Y | K63: Y | L63: Y | M63: Y | N63: Y | O63: N | P63: Y | Q63: N | R63: Named budget does not exist - DU used 23/24 Final Closedown Figures (unfixed) | T63: y | U63: y | V63: y | W63: NO | X63: n/a | Y63: y | Z63: n/a | AA63: n/a | AB63: n/a | AC63: y | AD63: y | AE63: y | AF63: y | AG63: y | AU63: Y | AV63: Y | AW63: 0 | AX63: y | AY63: 71657.27 | AZ63: -71657.27 | BA63: 0 | BB63: 2023-12-07 | BE63: Ray Byford | BF63: 2024-03-28 | BG63: Y | BH63: n/a | BI63: N | BJ63: N | BK63: Y | BL63: Y | BM63: n/a | BO63: Y | BP63: 49188.7 | BR63: 95325.65 | BW63: 144514.35 | BX63: 12885.84 | BZ63: 45086.55 | CB63: 57972.39 | CC63: OK | CE63: Y | CF63: OK | CG63: Y | CH63: 2024-03-28 | CJ63: Ray Byford | CL63: Y | CM63: Y | CN63: Y | CO63: 14300060622 | CQ63: 14300060502 | CV63: 14300060622 | CY63: Homerton Early Years Centre | CZ63: 12885.84 | DB63: 45086.55 | DD63: 57972.39 | DE63: TRUE | DF63: TRUE | DG63: TRUE | DH63: TRUE | DI63: TRUE | DJ63: TRUE
A64: 2212 | B64: Houghton Primary School | C64: FMS | D64: Y | E64: 2024-03-25 | F64: KW | G64: 2024-04-03 | H64: Y | I64: Y | J64: Y | K64: Y | L64: Y | M64: Y | N64: Y | O64: Y | P64: Y | Q64: N | R64: Y | T64: Y | U64: Y | V64: N | W64: Y | Y64: Y | Z64: Y | AA64: Y | AB64: Y | AC64: Y | AD64: Y | AE64: Y | AF64: Y | AG64: Y | AU64: Y | AW64: N | AX64: Y | AY64: -110324.12 | AZ64: 110324.12 | BA64: 0 | BB64: 2023-12-20 | BE64: Y | BF64: 2024-04-03 | BG64: Y | BH64: Y | BI64: Y | BJ64: Y | BK64: Y | BL64: Y | BM64: N - Have updated | BN64: Y | BO64: N | BP64: -30906.53 | BW64: -30906.53 | BX64: 29422.72 | CB64: 29422.72 | CC64: Ok | CE64: Y | CF64: OK | CG64: Y | CH64: 2024-04-03 | CJ64: Jane Green | CL64: Y | CM64: Y | CN64: Y | CO64: 14300060623 | CQ64: N/A | CV64: 14300060623 | CY64: Houghton Primary School | CZ64: 29422.72 | DD64: 29422.72 | DE64: TRUE | DF64: TRUE | DG64: TRUE | DH64: TRUE | DI64: TRUE | DJ64: TRUE
A65: 1007 | B65: Huntingdon Nursery School | C65: FMS | D65: Y | E65: 2024-03-26 | F65: AC | G65: 2024-04-09 | H65: Y | I65: Y | J65: Y | K65: Y | L65: Y | M65: Y | N65: Y | O65: Y - £0.30 variance. | P65: Y | Q65: Y | R65: Y | S65: N/a | T65: Y | U65: Y | V65: Y | W65: Y | X65: N/a | Y65: Y | Z65: N/a | AA65: N/a | AB65: N/a | AC65: Y | AD65: Y | AE65: Y | AF65: Y | AG65: Y | AU65: Y | AV65: Y | AW65: N | AX65: Y | AY65: -78782.96 | AZ65: 78782.96 | BA65: 0 | BB65: 2023-12-13 | BC65: N/a | BD65: N/a | BE65: Y | BF65: 2024-04-09 | BG65: Y | BH65: N/a | BI65: Y | BJ65: Y | BK65: Y | BL65: Y | BM65: Y | BN65: Accr £0.49 variance. | BO65: Y | BP65: -268432.92 | BT65: 19714.23 | BW65: -248718.69 | BX65: 28196.29 | CB65: 28196.29 | CC65: OK | CD65: N/a | CE65: Y | CF65: OK | CG65: Y | CH65: 2024-04-09 | CJ65: Gaynor Pope | CL65: Y | CM65: Y | CN65: Y | CO65: 14300060624 | CQ65: N/A | CV65: 14300060624 | CY65: Huntingdon Nursery School | CZ65: 28196.29 | DD65: 28196.29 | DE65: TRUE | DF65: TRUE | DG65: TRUE | DH65: TRUE | DI65: TRUE | DJ65: TRUE
A66: 3945 | B66: Huntingdon Primary School | C66: ACCESS | D66: Y | E66: 2024-03-26 | F66: DU | G66: 2024-03-26 | H66: Y | I66: Y | J66: Y | K66: Y | L66: Y | M66: Y | N66: Y | O66: Y | P66: Y | Q66: Y | R66: NO | T66: y | U66: y | V66: y | W66: y | X66: na | Y66: y | Z66: y | AA66: y | AB66: y | AC66: y | AD66: y | AE66: y | AF66: y | AG66: y | AU66: Y | AV66: Y | AW66: balanced | AX66: y | AY66: -144384.53 | AZ66: 144384.53 | BA66: 0 | BB66: 2023-12-13 | BE66: Gaynor Pope | BH66: Debtors report balance £0 | BI66: Y | BJ66: Y | BK66: Y | BL66: Y | BM66: Y | BN66: Y | BO66: Y | BP66: 4956.4 | BW66: 4956.4 | BX66: 941.5 | BZ66: 0 | CB66: 941.5 | CC66: OK | CE66: Y | CF66: OK | CG66: Y | CH66: 2024-03-27 | CJ66: Gaynor Pope | CL66: Y | CM66: Y | CN66: Y | CO66: 14300060625 | CQ66: 14300060500 | CV66: 14300060625 | CY66: Huntingdon Primary School | CZ66: 941.5 | DB66: 0 | DD66: 941.5 | DE66: TRUE | DF66: TRUE | DG66: TRUE | DH66: TRUE | DI66: TRUE | DJ66: TRUE
A67: 3022 | B67: Isleham Church of England Primary School | C67: FMS | D67: Y | E67: 2024-03-26 | F67: AC | G67: 2024-04-02 | H67: Y | I67: Y | J67: Y | K67: Y | L67: Y | M67: Y | N67: Y | O67: Y | P67: Y | Q67: Y | R67: Y | S67: N/a | T67: Y | U67: Y | V67: Y | W67: Y | X67: N/a | Y67: Y | Z67: Y | AA67: Y | AB67: Y | AC67: Y | AD67: Y - SMHL grant coded to I07 rather than I06 due to issue with SBS. | AE67: Y | AF67: Y | AG67: Y | AU67: Y | AV67: Y | AW67: N | AX67: Y | AY67: -15882.1 | AZ67: 15882.1 | BA67: 0 | BB67: 2024-01-04 | BC67: N/a | BD67: N/a | BE67: Y | BF67: 2024-04-08 | BG67: Y | BH67: Y | BI67: Y | BJ67: Y | BK67: Y | BL67: Y | BM67: Y | BN67: Y | BO67: Y | BP67: 30170.7 | BW67: 30170.7 | BX67: 6608.46 | BZ67: 0 | CB67: 6608.46 | CC67: OK | CD67: N/a | CE67: Y | CF67: OK | CG67: Y | CH67: 2024-04-08 | CJ67: Annette Magnus | CL67: Y | CM67: Y | CN67: Y | CO67: 14300060626 | CQ67: 14300060507 | CV67: 14300060626 | CY67: Isleham Church of England Primary School | CZ67: 6608.46 | DB67: 0 | DD67: 6608.46 | DE67: TRUE | DF67: TRUE | DG67: TRUE | DH67: TRUE | DI67: TRUE | DJ67: TRUE
A68: 2442 | B68: Kettlefields Primary School | C68: FMS | D68: Y | E68: 2024-03-25 | F68: KW | G68: 2024-03-26 | H68: Y | I68: Y | J68: Y | K68: Y | L68: Y | M68: Y | N68: Y | O68: N - Only 2p out | P68: Y | Q68: Y | R68: Y | T68: Y | U68: Y | V68: N | W68: Y | Y68: Y | Z68: Y | AA68: Y | AB68: Y | AC68: Y | AD68: Y | AE68: Y | AF68: Y | AG68: Y | AU68: Y | AV68: Y | AW68: N | AX68: Y | AY68: -49220.35 | AZ68: 49220.35 | BA68: 0 | BB68: 2023-12-20 | BE68: Y | BF68: 2024-03-26 | BG68: Y | BH68: Y | BI68: Y | BJ68: Y | BK68: Y | BL68: Y | BM68: Y | BN68: Y | BO68: Y | BP68: 124989.73 | BW68: 124989.73 | BX68: 0 | CA68: 0 | CB68: 0 | CC68: OK | CE68: Y | CF68: OK | CG68: Y | CH68: 2024-03-26 | CJ68: Annette Magnus | CL68: Y | CM68: Y | CN68: Y | CO68: 14300060627 | CQ68: 14300060504 | CV68: 14300060627 | CY68: Kettlefields Primary School | CZ68: 0 | DC68: 0 | DD68: 0 | DE68: TRUE | DF68: TRUE | DG68: TRUE | DH68: TRUE | DI68: TRUE | DJ68: TRUE
A69: 2331 | B69: Kinderley Primary School | C69: FMS | D69: Y | E69: 2024-03-26 | F69: AC | G69: 2024-04-02 | H69: Y | I69: Y | J69: Y | K69: Y | L69: Y | M69: Y | N69: Y | O69: Y | P69: Y | Q69: Y | R69: Y | S69: N/a | T69: Y | U69: Y | V69: Y | W69: Y | X69: N/a | Y69: Y | Z69: Y | AA69: Y | AB69: Y | AC69: Y | AD69: Y | AE69: Y | AF69: N - Nursery Nurse Staff Pay shwoing as -700.75 but negligible to overall code. | AG69: Y | AU69: Y | AV69: Y | AW69: N | AX69: Y | AY69: -5670.19 | AZ69: 5670.19 | BA69: 0 | BB69: 2023-12-22 | BC69: N/a | BD69: Please be aware the value on the CEA for accruals and the value on the accruals tab varies by £0.12, please ensure that when the reversal journals are done these match the financial system. | BE69: Annette | BF69: 2024-04-02 | BG69: Y | BH69: Y | BI69: Y | BJ69: N/a | BK69: Y | BL69: Y | BM69: Y but accruals tab includes item as 'various' with no ledger code. | BN69: Accruals tab £0.12 difference to CEA. | BO69: Y | BP69: 49908.59 | BW69: 49908.59 | BX69: 10922.69 | CB69: 10922.69 | CC69: OK | CD69: N/a | CE69: Y | CF69: OK | CG69: Y | CH69: 2024-04-02 | CJ69: Annette Magnus | CL69: Y | CM69: Y | CN69: Y | CO69: 14300060629 | CQ69: 14300060508 | CV69: 14300060629 | CY69: Kinderley Primary School | CZ69: 10922.69 | DD69: 10922.69 | DE69: TRUE | DF69: TRUE | DG69: TRUE | DH69: TRUE | DI69: TRUE | DJ69: TRUE
A70: 1000 | B70: Kings Hedges Nursery School | C70: FMS | D70: Y | E70: 2024-03-25 | F70: DU | G70: 2024-04-04 | H70: Y | BQ70: 149267.85 | BW70: 149267.85 | BY70: 0.09 | CB70: 0.09 | CC70: OK | CF70: OK | CH70: 2024-04-04 | CJ70: Gaynor Pope | CL70: Y | CM70: Y | CN70: Y | CO70: SEE KINGS HEDGES PRIMARY | CQ70: SEE KINGS HEDGES PRIMARY | CU70: F04/06/18 showing small error carry forwards - to be corrected early in new financial year | CY70: Kings Hedges Nursery School | DA70: 0.09 | DD70: 0.09 | DE70: TRUE | DF70: TRUE | DG70: TRUE | DH70: TRUE | DI70: TRUE | DJ70: TRUE
A71: 2446 | B71: Kings Hedges Primary School | C71: FMS | D71: Y | E71: 2024-03-25 | F71: DU | G71: 2024-04-04 | H71: Y | I71: Y | J71: Y | K71: Y | L71: Y | M71: Y | N71: Y | O71: Y | P71: Y | Q71: Y | R71: N | T71: y | U71: y | V71: y | W71: y | X71: na | Y71: y | Z71: y | AA71: y | AB71: y | AC71: y | AD71: y | AE71: y | AF71: y | AG71: y | AU71: Y | AV71: Y | AW71: y | AX71: y | AY71: 8081.82 | AZ71: -8081.82 | BA71: 0 | BB71: 2024-02-28 | BE71: Gaynor Pope | BF71: 2024-04-04 | BG71: Y | BH71: Y | BI71: Y | BJ71: Y | BK71: Y | BL71: Y | BM71: Y | BN71: Y | BO71: Y | BP71: 681686.33 | BW71: 681686.33 | BX71: -0.49 | CA71: 0.03 | CB71: -0.46 | CC71: OK | CE71: Y | CF71: OK | CG71: Y | CH71: 2024-04-04 | CJ71: Gaynor Pope | CL71: Y | CM71: Y | CN71: Y | CO71: 14300060721 | CQ71: 14300060523 | CU71: F04/06/18 showing small error carry forwards - to be corrected early in new financial year | CY71: Kings Hedges Primary School | CZ71: -0.49 | DC71: 0.03 | DD71: -0.46 | DE71: TRUE | DF71: TRUE | DG71: TRUE | DH71: TRUE | DI71: TRUE | DJ71: TRUE
A72: 3317 | B72: Linton CofE Infant School | C72: FMS | D72: Y | E72: 2024-03-25 | F72: SW | G72: 2024-04-08 | H72: Y | I72: Y | J72: Different format BUT OK - includes zeros but when removing via Pivot (shows balances that match CEA & SBS totals) | K72: Y | L72: Y | M72: Was £1800.10 Difference - SW corrected leaving £0.10 Difference - explained see any additional notes relating to the SMER -SO OK | N72: Y | O72: Y | P72: Ok but didn’t reconcile, however I confirmed all reports are showing as they should | Q72: N | R72: N but correct report taken from SBS | U72: Y | V72: N/A AS YEAR END | W72: Y | X72: N/A | Y72: Y | Z72: Y | AA72: Y | AB72: Y | AC72: Y | AD72: Y | AE72: Y | AF72: Y | AG72: Y | AH72: N/A AS YEAR END | AI72: N/A AS YEAR END | AJ72: N/A AS YEAR END | AK72: N/A AS YEAR END | AL72: N/A AS YEAR END | AM72: N/A AS YEAR END | AN72: N/A AS YEAR END | AO72: N/A AS YEAR END | AP72: N/A AS YEAR END | AQ72: N/A AS YEAR END | AR72: N/A AS YEAR END | AS72: N/A AS YEAR END | AT72: N/A AS YEAR END | AU72: Y - Although Q3 not in the correct format, this was paid therefore must have submitted at some point correctly, so ok | AW72: N/A AS YEAR END | AX72: Y | AY72: -28573.18 | AZ72: 28573.18 | BA72: 0 | BB72: N/A AS YEAR END | BE72: Y | BF72: 2024-04-08 | BG72: Y | BH72: Y | BI72: No however SW accessed Bank Line and showed correct balance as at 22/3/24 | BJ72: Y | BK72: Y | BL72: Y | BM72: Y | BN72: Y | BO72: Not completed by school. I checked SBS and they had fixed 23/24 Draft YearEnd Figures, and there was a 23/24 Final closedown Figures (auto duplicate) created on same days as the draft one. So this is what I used to check (default one) | BP72: -112680.65 | BW72: -112680.65 | CB72: 0 | CC72: N | CD72: N/A | CE72: Y | CF72: OK | CG72: Y | CH72: 2024-04-08 | CJ72: Ray Byford | CL72: Y | CM72: Y | CN72: Y | CO72: 14300060630 | CQ72: N/A | CV72: 14300060630 | CY72: Linton CofE Infant School | DD72: 0 | DE72: TRUE | DF72: TRUE | DG72: TRUE | DH72: TRUE | DI72: TRUE | DJ72: TRUE
A73: 2066 | B73: Lionel Walden Primary School | C73: FMS | D73: Y | E73: 2024-03-25 | F73: DU | G73: 2024-04-04 | H73: Y | I73: Y | J73: Y | K73: Y | L73: Y | M73: Y | N73: Y | O73: Y | P73: Y | Q73: Y | R73: n | T73: y | U73: y | V73: y | W73: y | X73: na | Y73: y | Z73: y | AA73: y | AB73: y | AC73: y | AD73: y | AE73: y | AF73: y | AG73: y | AU73: Y | AV73: Y | AW73: y | AX73: y | AY73: -120007.42 | AZ73: 120007.42 | BA73: 0 | BB73: 2024-01-04 | BE73: Ray Byford | BF73: 2024-04-04 | BG73: Y | BH73: N | BI73: Y | BJ73: Y | BK73: Y | BL73: Y | BM73: Y | BN73: Y | BO73: Y | BP73: -23851.76 | BV73: 3047.63 | BW73: -20804.13 | BX73: 41723.2 | CB73: 41723.2 | CC73: OK | CE73: Y | CF73: OK | CG73: Y | CH73: 2024-04-04 | CJ73: Ray Byford | CL73: Y | CM73: Y | CN73: Y | CO73: 14300060651 | CQ73: 14300060589 | CY73: Lionel Walden Primary School | CZ73: 41723.2 | DD73: 41723.2 | DE73: =CY73=B73 -> TRUE | DF73: =CZ73=BX73 -> TRUE | DG73: =BY73=DA73 -> TRUE | DH73: =DB73=BZ73 -> TRUE | DI73: =DC73=CA73 -> TRUE | DJ73: =DD73=CB73 -> TRUE
A74: 2293 | B74: Little Paxton Primary School | C74: FMS | D74: Y | E74: 2024-03-25 | F74: SK | G74: 2024-04-08 | H74: Y | I74: Y | J74: Y | K74: Y | L74: Y | M74: Y | N74: Y | O74: Y | P74: Y | Q74: Y | R74: Y | S74: N/A | T74: Y - Agreed Governors Budget 11/05/2023 | U74: Y | V74: Y | W74: Y | X74: N/A | Y74: Y | Z74: Y | AA74: Y | AB74: Y | AC74: Y | AD74: Y | AE74: Y | AF74: Y | AG74: Y | AU74: Y | AV74: Y | AW74: N | AX74: Y | AY74: -125121.84 | AZ74: 125121.84 | BA74: 0 | BB74: 2023-12-18 | BC74: School to check CEA as no prepay showing. Karen provided correct report | BD74: Y | BE74: Y | BF74: 2024-04-08 | BG74: Y | BH74: Y - but CR shows no transactions, but TB and CEA do. | BI74: Y | BJ74: N | BK74: Y | BL74: Y | BM74: Y | BN74: Y | BO74: Y | BP74: 157017.52 | BW74: 157017.52 | BX74: 30626.09 | BZ74: 0 | CB74: 30626.09 | CC74: OK | CD74: CORRECTED FUND 05 BUDGET PUBLISHED AS 23/24 FINAL CLOSEDOWN FIGURES SSCT FINAL | CE74: Y | CF74: OK | CG74: Y | CH74: 2024-04-10 | CJ74: Gaynor Pope | CL74: Y | CM74: Y | CN74: Y | CO74: 14300060652 | CQ74: 14300060577 | CY74: Little Paxton Primary School | CZ74: 30626.09 | DB74: 0 | DD74: 30626.09 | DE74: TRUE | DF74: TRUE | DG74: TRUE | DH74: TRUE | DI74: TRUE | DJ74: TRUE
A75: 2074 | B75: Littleport Community Primary School | C75: FMS | D75: Y | E75: 2024-03-25 | F75: DU | G75: 2024-04-09 | H75: Y | I75: Y | J75: Y | K75: Y | L75: Y | M75: Y | N75: Y | O75: Y | P75: N | Q75: N | R75: N | T75: y | U75: y | V75: y | W75: explained | X75: na | Y75: y | Z75: y | AA75: y | AB75: y | AC75: y | AD75: y | AE75: y | AF75: y | AG75: y | AU75: Y | AV75: Y | AW75: y | AY75: -59147.86 | AZ75: 59147.86 | BA75: 0 | BB75: 2024-01-22 | BE75: Annette Magnus | BF75: 2024-04-09 | BG75: Y | BH75: Y | BI75: Y | BJ75: Y | BK75: Y | BL75: Y | BM75: Y | BN75: Y | BO75: Y | BP75: 180314.9 | BV75: -3474.11 | BW75: 176840.79 | BX75: 8768.14 | CB75: 8768.14 | CC75: OK | CE75: Y | CF75: OK | CG75: Y | CH75: 2024-04-09 | CJ75: Annette Magnus | CL75: Y | CM75: Y | CN75: Y | CO75: 14300060654 | CQ75: 14300060533 | CY75: Littleport Community Primary School | CZ75: 8768.14 | DD75: 8768.14 | DE75: TRUE | DF75: TRUE | DG75: TRUE | DH75: TRUE | DI75: TRUE | DJ75: TRUE
A76: 2075 | B76: Manea Community Primary School | C76: FMS | D76: Y | E76: 2024-03-25 | F76: DU | G76: 2024-04-08 | H76: Y | I76: Y | J76: Y | K76: Y | L76: Y | M76: Y | N76: Y | O76: Y | P76: Y | Q76: N | R76: no budget name | T76: y | U76: y | V76: y | W76: y | X76: na | Y76: y | Z76: y | AA76: y | AB76: y | AC76: y | AD76: y | AE76: y | AF76: y | AG76: y | AU76: Y | AV76: Y | AW76: y | AX76: y | AY76: -57711.38 | AZ76: 57711.38 | BA76: 0 | BB76: 2024-01-31 | BE76: Annette Magnus | BF76: 2024-04-08 | BG76: Y | BH76: Y | BI76: Y | BJ76: Y | BK76: Y | BL76: Y | BM76: Y | BN76: Y | BO76: Y | BP76: 87924.78 | BV76: 29663.61 | BW76: 117588.39 | BX76: 5566.64 | CB76: 5566.64 | CC76: OK | CE76: Y | CF76: OK | CG76: Y | CH76: 2024-04-08 | CJ76: Annette Magnus | CL76: Y | CM76: Y | CN76: Y | CO76: 14300060656 | CQ76: 14300060536 | CY76: Manea Community Primary School | CZ76: 5566.64 | DD76: 5566.64 | DE76: TRUE | DF76: TRUE | DG76: TRUE | DH76: TRUE | DI76: TRUE | DJ76: TRUE
A77: 2121 | B77: Mayfield Primary School | C77: FMS | D77: Y | E77: 2024-03-25 | F77: AC | G77: 2024-03-25 | H77: Y | I77: Y | J77: Y | K77: Y | L77: Y | M77: Y | N77: Y | O77: Y | P77: Y | Q77: Y | R77: Y | S77: N/a | T77: Y | U77: Y | V77: Y | W77: Y | X77: N/a | Y77: Y | Z77: Y | AA77: Y | AB77: Y | AC77: Y | AD77: Y | AE77: Y | AF77: Y | AG77: Y | AU77: Y | AV77: Y | AW77: Y | AX77: Y | AY77: 10636.7 | AZ77: -10636.7 | BA77: 0 | BB77: 2023-12-18 | BC77: N/a | BD77: N/a | BE77: Y | BF77: 2024-03-26 | BG77: Y | BH77: Y | BI77: Y | BJ77: Y | BK77: Y | BL77: Adjusted by SSCT. | BM77: Y | BN77: Y | BO77: N | BP77: 16146.63 | BW77: 16146.63 | BX77: 18251.22 | CB77: 18251.22 | CC77: OK | CD77: N/a | CE77: Y | CF77: OK | CG77: Y | CH77: 2024-03-26 | CJ77: Ray Byford | CL77: Y | CM77: Y | CN77: Y | CO77: 14300060657 | CQ77: 14300060538 | CY77: Mayfield Primary School | CZ77: 18251.22 | DD77: 18251.22 | DE77: TRUE | DF77: TRUE | DG77: TRUE | DH77: TRUE | DI77: TRUE | DJ77: TRUE
A78: 2028 | B78: Melbourn Primary School | C78: Bromcom | D78: Y | E78: 2024-03-25 | F78: SK | G78: 2024-03-27 | H78: Y | I78: Y | J78: Y | K78: Y | L78: Y | M78: Y | N78: Y | O78: Y | P78: Y | Q78: Y | R78: Y | S78: N/A | T78: Y - Budget 2023 24 Approved FGB 3 5 23 jsw | U78: Y | V78: Y | W78: Y | X78: N/A | Y78: Y | Z78: Y | AA78: Y | AB78: Y | AC78: Y | AD78: Y | AE78: Y | AF78: Y | AG78: Y | AU78: Y | AV78: Y | AW78: N | AX78: Y | AY78: -34341.97 | AZ78: 34341.97 | BA78: 0 | BB78: 2024-01-10 | BC78: Asked school to clarify FNDSEN variance - confirmed that it is due to OOA SEN funding. | BD78: As above | BE78: Y | BF78: 2024-03-27 | BG78: Y | BH78: N - but both zero | BI78: Y | BJ78: Y | BK78: Y | BL78: Y | BM78: Y | BN78: Y | BO78: Y | BP78: 72027.15 | BW78: 72027.15 | BX78: 0.3 | BZ78: 0 | CA78: 0 | CB78: 0.3 | CC78: OK | CD78: N/A | CE78: Y | CF78: OK | CG78: Y | CH78: 2024-03-28 | CJ78: Jane Green | CL78: Y | CM78: Y | CN78: Y | CO78: 14300060658 | CQ78: 14300060540 | CY78: Melbourn Primary School | CZ78: 0.3 | DB78: 0 | DC78: 0 | DD78: 0.3 | DE78: TRUE | DF78: TRUE | DG78: TRUE | DH78: TRUE | DI78: TRUE | DJ78: TRUE
A79: 2029 | B79: Meldreth Primary School | C79: Bromcom | D79: Y | E79: 2024-03-25 | F79: AC | G79: 2024-03-28 | H79: Y | I79: Y | J79: Y | K79: Y | L79: Y | M79: Y | N79: Y | O79: Y | P79: Y | Q79: Y | R79: Y | S79: N/a | T79: Y | U79: Y | V79: N/a | W79: Y | X79: N/a | Y79: Y | Z79: Y | AA79: Y | AB79: Y | AC79: Y | AD79: Y | AE79: Y | AF79: Y | AG79: Y | AU79: Y | AV79: Y | AW79: N | AX79: Y | AY79: 49763 | AZ79: -49763 | BA79: 0 | BB79: 2024-02-02 | BC79: N/a | BD79: N/a | BE79: Gaynor | BF79: 2024-03-28 | BG79: Y | BH79: Y | BI79: Y | BJ79: Y | BK79: Y | BL79: Y | BM79: Y | BN79: Y | BO79: As draft year end | BP79: 137721.56 | BV79: 56207.56 | BW79: 193929.12 | BX79: 23412.07 | CB79: 23412.07 | CC79: OK | CD79: N/a | CE79: Y | CF79: OK | CG79: Y | CH79: 2024-03-28 | CJ79: Gaynor Pope | CL79: Y | CM79: Y | CN79: Y | CO79: 14300060659 | CQ79: 14300060542 | CY79: Meldreth Primary School | CZ79: 23412.07 | DD79: 23412.07 | DE79: TRUE | DF79: TRUE | DG79: TRUE | DH79: TRUE | DI79: TRUE | DJ79: TRUE
A80: 2059 | B80: Meridian Primary School | C80: FMS | D80: Y | E80: 2024-03-26 | F80: AC | G80: 2024-04-05 | H80: Y | I80: Y | J80: Y | K80: Y | L80: Y | M80: N - £0.03 variance. | N80: Y | O80: Y | P80: Y | Q80: Y | R80: Y | S80: N/a | T80: Y | U80: Y | V80: Y | W80: Y | X80: N/a | Y80: Y | Z80: Y | AA80: Y | AB80: Y | AC80: Y | AD80: Y | AE80: Y | AF80: Y | AG80: Y | AU80: Y | AV80: Y | AW80: N | AX80: Y | AY80: -58138.12 | AZ80: 58138.12 | BA80: 0 | BB80: 2024-01-19 | BC80: N/a | BD80: N/a | BE80: Y | BF80: 2024-04-08 | BG80: Y | BH80: N/a | BI80: Y | BJ80: Y | BK80: Y | BL80: Y | BM80: Y | BN80: Y | BO80: As draft | BP80: -86330.43 | BW80: -86330.43 | BX80: 12007.97 | BZ80: 381.61 | CB80: 12389.58 | CC80: OK | CD80: N/a | CE80: Y | CF80: OK | CG80: Y | CH80: 2024-04-08 | CJ80: Ray Byford | CL80: Y | CM80: Y | CN80: Y | CO80: 14300060661 | CQ80: 14300060544 | CY80: Meridian Primary School | CZ80: 12007.97 | DB80: 381.61 | DD80: 12389.58 | DE80: TRUE | DF80: TRUE | DG80: TRUE | DH80: TRUE | DI80: TRUE | DJ80: TRUE
A81: 3386 | B81: Milton Road Primary School | C81: FMS | D81: Y | E81: 2024-03-27 | F81: KW | G81: 2024-04-05 | H81: Y | I81: Y | J81: Y | K81: Y | L81: Y | M81: Y | N81: Y | O81: 6p difference - Ok, but needs sorting next F/Y if still not clear | P81: Y | Q81: N | R81: N | S81: No name of budget used 23/24 Final closedown figures | T81: N | U81: Y | V81: N | W81: Y | X81: N/A | Y81: Y | Z81: Y | AA81: Y | AB81: Y | AC81: Y | AD81: Y | AE81: Y | AF81: Y | AG81: Y | AU81: Y | AW81: N | AX81: Y | AY81: 36970.52 | AZ81: -36970.52 | BA81: 0 | BB81: 2023-12-07 | BE81: Y | BF81: 2024-04-05 | BG81: Y | BH81: Y | BI81: Y | BJ81: Y | BK81: Y | BL81: Y | BM81: Y | BN81: Y | BO81: N | BP81: 227799.38 | BW81: 227799.38 | BX81: 24971.46 | CB81: 24971.46 | CC81: Ok | CD81: Fund 05 Non CFR corrected - added to Accrual for next year to balance spend when invoice is paid. | CG81: Y | CH81: 2024-04-11 | CJ81: Gaynor Pope | CL81: Y | CM81: Y | CN81: Y | CO81: 14300060662 | CQ81: 14300060604 | CY81: Milton Road Primary School | CZ81: 24971.46 | DD81: 24971.46 | DE81: TRUE | DF81: TRUE | DG81: TRUE | DH81: TRUE | DI81: TRUE | DJ81: TRUE
A82: 2449 | B82: Monkfield Park Primary School | C82: FMS | D82: Y | E82: 2024-03-27 | F82: DU | G82: 2024-03-28 | H82: Y | I82: Y | J82: Y | K82: Y | L82: Y | M82: Y | N82: Y | O82: Y | P82: Y | Q82: Y | R82: NOT FIXED by school. Fixed by SSCT | T82: y | U82: y | V82: y | W82: y | X82: na | Y82: y | Z82: y | AA82: y | AB82: y | AC82: y | AD82: y | AE82: y | AF82: y | AG82: y | AU82: Y | AV82: Y | AW82: y | AX82: y | AY82: 60868.3 | AZ82: -60868.3 | BA82: 0 | BE82: Jane Green | BF82: 2024-03-28 | BG82: Y | BH82: Y | BI82: Y | BJ82: Y | BK82: Y | BL82: Y | BM82: Y | BN82: Y | BO82: Y | BP82: 705616.1 | BV82: 75250.71 | BW82: 780866.81 | BX82: 35102.75 | CB82: 35102.75 | CC82: OK | CE82: Y | CF82: OK | CG82: Y | CH82: 2024-03-28 | CJ82: Jane Green | CK82: won’t be available on the bank holiday dates/weekends or 5th & 8th April, accessing e-mails during usual working hours. | CL82: Y | CM82: Y | CN82: Y | CO82: 14300060663 | CQ82: N/A | CY82: Monkfield Park Primary School | CZ82: 35102.75 | DD82: 35102.75 | DE82: TRUE | DF82: TRUE | DG82: TRUE | DH82: TRUE | DI82: TRUE | DJ82: TRUE
A83: 2107 | B83: Morley Memorial Primary School | C83: FMS | D83: Y | E83: 2024-03-17 | F83: DU | G83: 2024-04-10 | H83: Y | I83: Y | J83: Y | K83: Y | L83: Y | M83: Y | N83: Y | O83: Y | P83: Y | Q83: Y | R83: y | T83: y | U83: y | V83: y | W83: y | X83: na | Y83: y | Z83: y | AA83: y | AB83: y | AC83: y | AD83: y | AE83: y | AF83: y | AG83: y | AU83: Y | AV83: Y | AW83: y | AX83: y | AY83: -57763.67 | AZ83: 57763.67 | BA83: 0 | BB83: 2024-02-16 | BE83: Ray Byford | BF83: 2024-04-10 | BG83: Y | BH83: Y | BI83: Y | BJ83: Y | BK83: Y | BL83: Y | BM83: Y | BN83: Y | BO83: Y | BP83: 146322.17 | BW83: 146322.17 | BX83: 26193.28 | CB83: 26193.28 | CC83: ok | CE83: Y | CF83: ok | CG83: Y | CH83: 2024-04-10 | CJ83: Ray Byford | CL83: Y | CM83: Y | CN83: Y | CO83: 14300060664 | CQ83: N/A | CU83: VAT Correction needed, and full breakdown of PAYROL | CY83: Morley Memorial Primary School | CZ83: 26193.28 | DD83: 26193.28 | DE83: TRUE | DF83: TRUE | DG83: TRUE | DH83: TRUE | DI83: TRUE | DJ83: TRUE
A84: 2109 | B84: Newnham Croft Primary School | C84: FMS | D84: Y | E84: 2024-04-03 | F84: SK | G84: 2024-04-03 | H84: Y | I84: Y | J84: Y | K84: Y | L84: Y | M84: Y | N84: Y | O84: Y | P84: Y | Q84: Y | R84: Y | S84: N/A | T84: Y - Governors Agreed Budget 26/04/2023 | U84: Y | V84: Y | W84: Y | X84: N/A | Y84: Y | Z84: Y | AA84: N | AB84: N | AC84: Y | AD84: Y | AE84: Y | AF84: Y | AG84: Y | AU84: Y | AV84: Y | AW84: N | AX84: Y | AY84: -5000.06 | AZ84: 5000.06 | BA84: 0 | BB84: 2023-12-20 | BC84: Issue with funding coding between I06 and I18c. Karen journalled and resubmited reports. | BD84: As above | BE84: Y | BF84: 2024-04-11 | BG84: Y | BH84: Y | BI84: Y | BJ84: N - but no transactions | BK84: Y | BL84: Y | BM84: Y | BN84: Y | BO84: Y | BP84: 44154.75 | BW84: 44154.75 | BX84: 3763.46 | CB84: 3763.46 | CC84: OK | CD84: Funding issue resolved. Published budget saved as FCDFigures SSCT | CE84: Y | CF84: OK | CG84: Y | CH84: 2024-04-11 | CJ84: Ray Byford | CL84: Y | CM84: Y | CN84: Y | CO84: 14300060647 | CQ84: 14300060603 | CY84: Newnham Croft Primary School | CZ84: 3763.46 | DD84: 3763.46 | DE84: TRUE | DF84: TRUE | DG84: TRUE | DH84: TRUE | DI84: TRUE | DJ84: TRUE
A85: 3390 | B85: Orchard Park Community Primary School | C85: FMS | D85: Y | E85: 2024-04-10 | F85: KW | G85: 2024-04-10 | H85: Y | I85: Y | J85: Y | K85: N | L85: Y | M85: Y | N85: Y | O85: Y | P85: Y | S85: SMER not submitted - Completed by Katie - SSCT | U85: Y | V85: Y | W85: Y | X85: N/A | Y85: Y | Z85: Y | AA85: Y | AB85: Y | AC85: Y | AD85: Y | AE85: Y | AF85: Y | AG85: Y | AU85: Y | AW85: N | AX85: Y | AY85: -58656.77 | AZ85: 58656.77 | BA85: 0 | BB85: 2023-12-19 | BD85: school didn’t complete SMER, therefore in YE declaration properly assigned and committed section was not completed | BH85: Y | BI85: Y | BJ85: Y | BK85: Y | BM85: Y | BN85: Y | BP85: -31232.31 | BW85: -31232.31 | BX85: 6911.61 | CB85: 6911.61 | CC85: OK | CD85: HAVE DONE ALL CHECKS AND SW IS HAPPY TO PUBLISH HOWEVER SHE IS UNSURE WHICH ONE KATIE CHECKED THE FIGURES ON. THERE ARE VARIOUS YEAR END BUDGET PROFILES. KATIE - PLEASE PUBLISH THE CORRECT ONE AND UPDATE THE PUBLISHED DATE ON THE CONTACT LIST. Minor note needed for school didn’t complete SMER, therefore in YE declaration properly assigned and committed section was not completed | CE85: Y | CF85: OK | CG85: N | CH85: 2024-04-11 | CJ85: Ray Byford | CL85: Y | CM85: Y | CN85: Y | CO85: 14300060644 | CQ85: 14300060628 | CY85: Orchard Park Community Primary School | CZ85: 6911.61 | DD85: 6911.61 | DE85: TRUE | DF85: TRUE | DG85: TRUE | DH85: TRUE | DI85: TRUE | DJ85: TRUE
A86: 2031 | B86: Over Primary School | C86: FMS | D86: Y | E86: 2024-03-25 | F86: DU | G86: 2024-04-09 | H86: Y | I86: Y | J86: Y | K86: Y | L86: Y | M86: Y | N86: Y | O86: Y | P86: Y | Q86: Y | R86: y | T86: y | U86: y | V86: y | W86: y | X86: na | Y86: y | Z86: y | AA86: y | AB86: y | AC86: y | AD86: y | AE86: y | AF86: y | AG86: y | AU86: Y | AV86: Y | AW86: y | AX86: y | AY86: -4148.84 | AZ86: 4148.84 | BA86: 0 | BB86: 2023-12-20 | BE86: Jane green | BF86: 2024-04-09 | BG86: Y | BH86: Y | BI86: Y | BJ86: Y | BK86: Y | BL86: Y | BM86: Y | BN86: Y | BO86: Y | BP86: -17459.31 | BW86: -17459.31 | BX86: 22604.73 | CB86: 22604.73 | CC86: OK | CE86: Y | CF86: OK | CG86: Y | CH86: 2024-04-09 | CJ86: Jane Green | CL86: Y | CM86: Y | CN86: Y | CO86: 14300060645 | CQ86: 14300060549 | CY86: Over Primary School | CZ86: 22604.73 | DD86: 22604.73 | DE86: TRUE | DF86: TRUE | DG86: TRUE | DH86: TRUE | DI86: TRUE | DJ86: TRUE
A87: 3350 | B87: Park Street CofE Primary School | C87: FMS | D87: Y | E87: 2024-03-26 | F87: SK | G87: 2024-04-10 | H87: Y | I87: Y | J87: Y | K87: Y | L87: Y | M87: Y | N87: Y | O87: Y | P87: Y | Q87: Y | R87: Y | S87: No VAT submttal reports included. | T87: Y - Governors Agreed Budget 04/05/23 | U87: Y | V87: Y | W87: Y | X87: N/A | Y87: Y | Z87: Y | AA87: Y | AB87: Y | AC87: N/A | AD87: Y | AE87: Y | AF87: Y | AG87: Y | AU87: N | AV87: N | AW87: Y | AX87: Y | AY87: 11505.28 | AZ87: -11505.28 | BA87: 0 | BB87: 2023-12-20 | BC87: Unable to check VAT submittals | BD87: Y | BE87: Y | BF87: 2024-04-10 | BG87: Y | BH87: Y | BI87: Y | BJ87: Y | BK87: Y | BL87: N | BM87: N | BN87: Y | BO87: Y | BP87: 89655.17 | BW87: 89655.17 | CB87: 0 | CC87: OK | CD87: N/A | CE87: Y | CF87: OK | CG87: Y | CH87: 2024-04-10 | CJ87: Annette Magnus | CL87: Y | CM87: Y | CN87: Y | CO87: 14300060665 | CQ87: N/A | CY87: Park Street CofE Primary School | DD87: 0 | DE87: TRUE | DF87: TRUE | DG87: TRUE | DH87: TRUE | DI87: TRUE | DJ87: TRUE
A88: 2033 | B88: Pendragon Community Primary School | C88: Bromcom | D88: Y | E88: 2024-03-25 | F88: SK | G88: 2023-04-05 | H88: Y | I88: Y | J88: Y | K88: Y | L88: Y | M88: Y | N88: Y | O88: Y | P88: Y | Q88: Y | R88: Y | S88: N/A | T88: Y - Governors Agreed Budget 09/02/2023 | U88: Y | V88: Y | W88: Y | X88: N/A | Y88: Y | Z88: Y | AA88: Y | AB88: Y | AC88: Y | AD88: Y | AE88: Y | AF88: Y | AG88: Y | AU88: Y | AV88: Y | AW88: N | AX88: Y | AY88: 14421.39 | AZ88: -14421.39 | BA88: 0 | BB88: 2024-02-21 | BC88: Accruals tab not matching CEA. 1500 variance - missed accrual removed from sheet - now reconciles | BD88: Y | BE88: Y | BF88: 2024-04-05 | BG88: Y | BH88: Y | BI88: Y | BJ88: Y | BK88: N - have included long report for period | BL88: Y | BM88: Y | BN88: Y | BO88: Y | BP88: 182423.57 | BV88: 6176.34 | BW88: 188599.91 | BX88: 22047.99 | CB88: 22047.99 | CC88: OK | CD88: Accrual issue resolved | CE88: Y | CF88: OK | CG88: Y | CH88: 2024-04-08 | CJ88: Jane Green | CL88: Y | CM88: Y | CN88: Y | CO88: 14300060666 | CQ88: 14300060550 | CY88: Pendragon Community Primary School | CZ88: 22047.99 | DD88: 22047.99 | DE88: TRUE | DF88: TRUE | DG88: TRUE | DH88: TRUE | DI88: TRUE | DJ88: TRUE
A89: 3331 | B89: Petersfield CofE Aided Primary School | C89: FMS | D89: Y | E89: 2024-03-28 | F89: KW | G89: 2024-04-09 | H89: Y | I89: Y | J89: Y | K89: Y | L89: Y | M89: Y | N89: Y | O89: Y | P89: Y | Q89: Y | R89: Y | T89: Y | U89: Y | V89: N | W89: Y | X89: N/A | Y89: Y | Z89: Y | AA89: Y | AB89: Y | AC89: N/A | AD89: Y | AE89: Y | AF89: Y | AG89: Y | AU89: Y | AW89: N | AX89: Y | AY89: 32576.32 | AZ89: -32576.32 | BA89: 0 | BB89: 2024-03-13 | BE89: Y | BF89: 2024-04-09 | BG89: Y | BH89: Will not open - both codes clear | BI89: Y | BJ89: N | BK89: Y | BL89: Y | BM89: Y | BN89: Y | BO89: N - Name updated to this | BP89: 110011.56 | BW89: 110011.56 | CB89: 0 | CC89: N | CE89: Y | CF89: OK | CG89: Y | CH89: 2024-04-09 | CJ89: Ray Byford | CL89: Y | CM89: Y | CN89: Y | CO89: 14300060667 | CQ89: N/A | CY89: Petersfield CofE Aided Primary School | DD89: 0 | DE89: TRUE | DF89: TRUE | DG89: TRUE | DH89: TRUE | DI89: TRUE | DJ89: TRUE
A90: 2239 | B90: Priory Junior School | C90: ACCESS | D90: Y | E90: 2024-04-01 | F90: DU | G90: 2024-04-02 | H90: Y | I90: N | J90: Y | K90: N | L90: Y | M90: Y | N90: Y | O90: Y | P90: Y | Q90: Y | R90: N | T90: y | U90: y | V90: y | W90: y | X90: na | Y90: y | Z90: y | AA90: y | AB90: y | AC90: y | AD90: y | AE90: y | AF90: y | AG90: y | AU90: Y | AV90: Y | AW90: y | AX90: y | AY90: 7357.25 | AZ90: -7357.25 | BA90: 0 | BB90: 2024-03-01 | BE90: Gaynor Pope | BF90: 2024-04-02 | BG90: Y | BH90: N/a | BI90: Y | BJ90: N/A | BK90: Y | BL90: Y | BM90: Y | BN90: Y | BO90: N | BP90: 402457.12 | BW90: 402457.12 | BX90: 24564.21 | CB90: 24564.21 | CC90: OK | CE90: Y | CF90: OK | CG90: Y | CH90: 2024-04-02 | CJ90: Gaynor Pope | CL90: Y | CM90: Y | CN90: Y | CO90: 14300060669 | CQ90: N/A | CY90: Priory Junior School | CZ90: 24564.21 | DD90: 24564.21 | DE90: TRUE | DF90: TRUE | DG90: TRUE | DH90: TRUE | DI90: TRUE | DJ90: TRUE
A91: 2219 | B91: Priory Park Infant School & Playgroup | C91: ACCESS | D91: Y | E91: 2024-03-26 | F91: DU | G91: 2024-03-26 | H91: Y | I91: Y | J91: Y | K91: Y | L91: Y | M91: Y | N91: Y | O91: Y | P91: Y | Q91: Y | R91: NO | S91: I have checked and set 23/24 Final Closedown Figures budget as F and P | T91: y | U91: y | V91: y | W91: y | X91: na | Y91: y | Z91: y | AA91: manual £75 adj | AB91: y | AC91: y | AD91: y | AE91: y | AF91: y | AG91: y | AU91: Y | AV91: Y | AW91: y | AX91: y | AY91: 96021.16 | AZ91: -96021.16 | BA91: 0 | BB91: 2024-03-21 | BE91: Gaynor Pope | BF91: 2024-04-08 | BG91: Y | BH91: Y | BI91: Y | BJ91: Y | BK91: Y | BL91: Y | BM91: Y | BN91: Y | BP91: 367311.56 | BV91: 104615.83 | BW91: 471927.39 | BX91: 13087.11 | CB91: 13087.11 | CC91: ISSUE | CE91: Y | CF91: OK | CG91: Y | CH91: 2024-04-08 | CJ91: Gaynor Pope | CL91: Y | CM91: Y | CN91: Y | CO91: 14300060668 | CQ91: 14300060552 | CU91: £75 Jnl to do at school to match school accounts to reported figures by SSCT | CY91: Priory Park Infant School & Playgroup | CZ91: 13087.11 | DD91: 13087.11 | DE91: TRUE | DF91: TRUE | DG91: TRUE | DH91: TRUE | DI91: TRUE | DJ91: TRUE
A92: 2333 | B92: Queen Edith Primary School | C92: FMS | D92: Y | E92: 2024-04-11 | F92: DU | G92: 2024-04-11 | H92: Y | I92: Y | J92: Y | K92: Y | L92: Y | M92: Y | N92: Y | O92: Y | P92: Y | Q92: Y | R92: y | T92: y | U92: y | V92: y | W92: y | X92: na | Y92: y | Z92: y | AA92: y | AB92: y | AC92: y | AD92: y | AE92: y | AF92: y | AG92: y | AU92: Y | AV92: Y | AW92: y | AX92: y | AY92: -661053.79 | AZ92: 661053.79 | BA92: 0 | BB92: 2024-02-01 | BE92: Ray Byford | BF92: 2024-04-11 | BG92: Y | BH92: Y | BI92: Y | BJ92: Y | BK92: Y | BL92: Y | BM92: Y | BN92: Y | BO92: Y | BP92: 84806.03 | BQ92: -537694.64 | BW92: -452888.61 | BX92: 27734.2 | BY92: 54828.12 | CB92: 82562.32 | CC92: ok | CE92: Y | CF92: ok | CG92: Y | CH92: 2024-04-11 | CJ92: Ray Byford | CL92: Y | CM92: Y | CN92: Y | CO92: 14300060670 | CQ92: 14300060602 | CY92: Queen Edith Primary School | CZ92: 27734.2 | DA92: 54828.12 | DD92: 82562.32 | DE92: TRUE | DF92: TRUE | DG92: TRUE | DH92: TRUE | DI92: TRUE | DJ92: TRUE
A93: 3946 | B93: Queen Emma Primary School | C93: FMS | D93: Y | E93: 2024-04-11 | F93: DU | G93: 2024-04-11 | BW93: 0 | CB93: 0 | CH93: 2024-04-11 | CJ93: Ray Byford | CL93: Y | CM93: Y | CN93: Y | CO93: 14300060670 | CQ93: 14300060602 | CY93: Queen Emma Primary School | DD93: 0 | DE93: TRUE | DF93: TRUE | DG93: TRUE | DH93: TRUE | DI93: TRUE | DJ93: TRUE
A94: 2453 | B94: Ridgefield Primary School | C94: FMS | D94: Y | E94: 2024-04-11 | F94: DU | G94: 2024-04-11 | H94: Y | I94: Y | J94: Y | K94: Y | L94: Y | M94: Y | N94: Y | O94: Y | P94: Y | Q94: Y | R94: y | T94: y | U94: y | V94: y | W94: y | X94: na | Y94: y | Z94: y | AA94: y | AB94: y | AC94: y | AD94: y | AE94: y | AF94: y | AG94: y | AU94: Y | AV94: Y | AW94: y | AX94: y | AY94: -10356.48 | AZ94: 10356.48 | BA94: 0 | BB94: 2024-01-26 | BE94: Annette Magnus | BF94: 2024-04-11 | BG94: Y | BH94: Y | BI94: Y | BJ94: Y | BK94: Y | BL94: Y | BM94: Y | BN94: Y | BO94: Y | BP94: 207326.59 | BW94: 207326.59 | BX94: 16147.32 | CB94: 16147.32 | CC94: ok | CE94: Y | CF94: ok | CG94: Y | CH94: 2024-04-11 | CJ94: Annette Magnus | CL94: Y | CM94: Y | CN94: Y | CO94: 14300060648 | CQ94: 14300060555 | CY94: Ridgefield Primary School | CZ94: 16147.32 | DD94: 16147.32 | DE94: TRUE | DF94: TRUE | DG94: TRUE | DH94: TRUE | DI94: TRUE | DJ94: TRUE
A95: 2070 | B95: Robert Arkenstall Primary School | C95: Bromcom | D95: Y | E95: 2024-03-25 | F95: DU | G95: 2024-04-04 | H95: Y | I95: Y | J95: Y | K95: Y | L95: Y | M95: Y | N95: Y | O95: Y | P95: Y | Q95: Y | R95: n | T95: y | U95: y | V95: y | W95: y | X95: na | Y95: y | Z95: y | AA95: y | AB95: y | AC95: y | AD95: y | AE95: y | AF95: y | AG95: y | AU95: Y | AV95: Y | AW95: y | AX95: y | AY95: 96166.85 | AZ95: -96166.85 | BA95: 0 | BB95: 2024-01-11 | BE95: Annette Magnus | BF95: 2024-04-04 | BG95: Y | BH95: Y | BI95: Y | BJ95: Y | BK95: Y | BL95: Y | BM95: Y | BN95: Y | BO95: Y | BP95: 187308.7 | BW95: 187308.7 | BX95: 21210.17 | BZ95: 0.55 | CB95: 21210.72 | CE95: Y | CF95: OK | CG95: Y | CH95: 2024-04-04 | CJ95: Annette Magnus | CL95: Y | CM95: Y | CN95: Y | CO95: 14300060678 | CQ95: 14300060557 | CU95: school to do 55p jnl in new FY to balance against 55p CFWD-05 | CY95: Robert Arkenstall Primary School | CZ95: 21210.17 | DB95: 0.55 | DD95: 21210.72 | DE95: TRUE | DF95: TRUE | DG95: TRUE | DH95: TRUE | DI95: TRUE | DJ95: TRUE
A96: 7023 | B96: Samuel Pepys School | C96: ACCESS | D96: Y | E96: 2024-03-28 | F96: DU | G96: 2024-03-28 | H96: Y | I96: Y | J96: Y | K96: Y | L96: Y | M96: Y | N96: Y | O96: Y | P96: Y | Q96: Y | R96: y | T96: y | U96: y | V96: y | W96: y | X96: na | Y96: y | Z96: y | AA96: y | AB96: y | AC96: y | AD96: y | AE96: y | AF96: y | AG96: y | AU96: Y | AV96: Y | AW96: y | AX96: y | AY96: -64149.62 | AZ96: 64149.62 | BA96: 0 | BB96: 2024-01-30 | BE96: Jane Green | BF96: 2024-03-28 | BG96: Y | BH96: Y | BI96: Y | BJ96: Y | BK96: Y | BL96: Y | BM96: Y | BN96: Y | BO96: Y | BP96: 195621.41 | BW96: 195621.41 | BX96: 19816.42 | CB96: 19816.42 | CC96: OK | CE96: Y | CF96: OK | CG96: Y | CH96: 2024-03-28 | CJ96: Jane Green | CL96: Y | CM96: Y | CN96: Y | CO96: 14300060671 | CQ96: 14300060558 | CY96: Samuel Pepys School | CZ96: 19816.42 | DD96: 19816.42 | DE96: TRUE | DF96: TRUE | DG96: TRUE | DH96: TRUE | DI96: TRUE | DJ96: TRUE
A97: 2255 | B97: Sawtry Infants' School | C97: FMS | D97: Y | E97: 2024-03-26 | F97: DU | G97: 2024-04-05 | H97: Y | I97: Y | J97: Y | K97: Y | L97: Y | M97: Y | N97: Y | O97: Y | P97: Y | Q97: N | R97: n | T97: y | U97: y | V97: y | W97: y | X97: na | Y97: y | Z97: y | AA97: y | AB97: y | AC97: y | AD97: y | AE97: y | AF97: y | AG97: y | AU97: Y | AV97: Y | AW97: y | AX97: y | AY97: -54205.47 | AZ97: 54205.47 | BA97: 0 | BB97: 2024-02-02 | BE97: Jane Green | BF97: 2024-04-08 | BG97: Y | BH97: Y | BI97: Y | BJ97: Y | BK97: Y | BL97: Y | BM97: Y | BN97: Y | BO97: N | BP97: 200379.82 | BW97: 200379.82 | BX97: 13369.17 | BZ97: 5977.09 | CB97: 19346.26 | CC97: OK | CE97: Y | CF97: OK | CG97: Y | CH97: 2024-04-08 | CJ97: Jane Green | CL97: Y | CM97: Y | CN97: Y | CO97: 14300060672 | CQ97: 14300060560 | CY97: Sawtry Infants' School | CZ97: 13369.17 | DB97: 5977.09 | DD97: 19346.26 | DE97: TRUE | DF97: TRUE | DG97: TRUE | DH97: TRUE | DI97: TRUE | DJ97: TRUE
A98: 2115 | B98: Shirley Community Primary School | C98: FMS | D98: Y | E98: 2024-04-02 | F98: DU | G98: 2024-04-04 | H98: Y | I98: Y | J98: Y | K98: Y | L98: Y | M98: Y | N98: Y | O98: Y | P98: Y | Q98: Y | R98: y | T98: y | U98: y | V98: y | W98: y | X98: na | Y98: y | Z98: y | AA98: y | AB98: y | AC98: y | AD98: y | AE98: y | AF98: y | AG98: y | AU98: Y | AV98: Y | AW98: y | AX98: y | AY98: 18328.31 | AZ98: -18328.31 | BA98: 0 | BB98: 2024-02-08 | BE98: Ray Byford | BF98: 2024-04-04 | BG98: Y | BH98: Y | BI98: Y | BJ98: Y | BK98: Y | BL98: Y | BM98: Y | BN98: Y | BO98: Y | BP98: -61595.4 | BW98: -61595.4 | BX98: 340.31 | CB98: 340.31 | CC98: OK | CE98: Y | CF98: OK | CG98: Y | CH98: 2024-04-04 | CJ98: Ray Byford | CL98: Y | CM98: Y | CN98: Y | CO98: 14300060673 | CQ98: 14300060562 | CY98: Shirley Community Primary School | CZ98: 340.31 | DD98: 340.31 | DE98: TRUE | DF98: TRUE | DG98: TRUE | DH98: TRUE | DI98: TRUE | DJ98: TRUE
A99: 2335 | B99: The Spinney Primary School | C99: FMS | D99: Y | E99: 2024-03-25 | F99: DU | G99: 2024-03-26 | H99: Y | I99: Y | J99: Y | K99: Y | L99: Y | M99: Y | N99: Y | O99: Y | P99: Y | Q99: Y | R99: y | T99: y | U99: y | V99: y | W99: y | X99: na | Y99: y | Z99: y | AA99: y | AB99: y | AC99: y | AD99: y | AE99: y | AF99: y | AG99: y | AU99: Y | AV99: Y | AW99: y | AX99: y | AY99: 101817.69 | AZ99: -101817.69 | BA99: 0 | BB99: 2024-01-25 | BE99: Ray Byford | BF99: 2024-03-26 | BG99: Y | BH99: Y | BI99: Y | BJ99: Y | BK99: Y | BL99: Y | BM99: Y | BN99: Y | BO99: N | BP99: -31616.35 | BW99: -31616.35 | BX99: 14392.89 | BZ99: 651.52 | CB99: 15044.41 | CC99: OK | CE99: Y | CF99: OK | CG99: Y | CH99: 2024-03-26 | CJ99: Ray Byford | CL99: Y | CM99: Y | CN99: Y | CO99: 14300060698 | CQ99: 14300060576 | CV99: 14300060576 | CY99: The Spinney Primary School | CZ99: 14392.89 | DB99: 651.52 | DD99: 15044.41 | DE99: TRUE | DF99: TRUE | DG99: TRUE | DH99: TRUE | DI99: TRUE | DJ99: TRUE
A100: 2329 | B100: Spring Meadow Infant School | C100: FMS | D100: Y | E100: 2024-03-25 | F100: DU | G100: 2024-04-09 | H100: Y | I100: Y | J100: Y | K100: Y | L100: Y | M100: To investigate | N100: Y | O100: Y | P100: Y | Q100: Y | R100: y | T100: y | U100: y | V100: y | W100: query | X100: na | Y100: y | Z100: y | AA100: y | AB100: y | AC100: y | AD100: y | AE100: y | AF100: y | AG100: y | AU100: Y | AV100: Y | AW100: y | AX100: y | AY100: -48300.36 | AZ100: 48300.36 | BA100: 0 | BB100: 2024-02-16 | BE100: Ray Byford | BH100: Y | BI100: Y | BJ100: Y | BK100: Y | BL100: Y | BM100: Y | BN100: Y | BO100: Y | BP100: -43785.91 | BV100: 9645.64 | BW100: -34140.27 | BX100: 11640.5 | CB100: 11640.5 | CC100: ok | CE100: Y | CF100: ok | CG100: Y | CH100: 2024-04-09 | CJ100: Ray Byford | CL100: Y | CM100: Y | CN100: Y | CO100: 14300060674 | CQ100: 14300060564 | CU100: Investigate theory behing EY Funding originally coded to F24 area, then moved to FNDX-01 | CY100: Spring Meadow Infant School | CZ100: 11640.5 | DD100: 11640.5 | DE100: TRUE | DF100: TRUE | DG100: TRUE | DH100: TRUE | DI100: TRUE | DJ100: TRUE
A101: 3360 | B101: St Alban's Catholic Primary School | C101: FMS | D101: Y | E101: 2024-04-11 | F101: DU | G101: 2024-04-11 | H101: Y | I101: Y | J101: Y | K101: Y | L101: Y | M101: Y | N101: Y | O101: Y | P101: Y | Q101: Y | R101: n | T101: y | U101: y | V101: y | W101: y | X101: na | Y101: y | Z101: y | AA101: y | AB101: y | AC101: na | AD101: y | AE101: y | AF101: y | AG101: y | AU101: Y | AV101: Y | AW101: y | AX101: y | AY101: 50091.74 | AZ101: -50091.74 | BA101: 0 | BB101: 2024-01-19 | BE101: Ray Byford | BF101: 2024-04-11 | BG101: Y | BH101: Y | BI101: Y | BJ101: Y | BK101: Y | BL101: Y | BM101: Y | BN101: Y | BO101: Y | BP101: 61670.22 | BW101: 61670.22 | CB101: 0 | CC101: ok | CE101: Y | CF101: ok | CG101: Y | CH101: 2024-04-11 | CJ101: Ray Byford | CL101: Y | CM101: Y | CN101: Y | CO101: 14300060675 | CQ101: 14300060565 | CY101: St Alban's Catholic Primary School | DD101: 0 | DE101: TRUE | DF101: TRUE | DG101: TRUE | DH101: TRUE | DI101: TRUE | DJ101: TRUE
A102: 3384 | B102: St Anne's CofE Primary School | C102: Xero | D102: Y | E102: 2024-03-28 | F102: DU | G102: 2024-03-28 | H102: Y | I102: Y | J102: Y | K102: N | L102: Y | M102: Y | N102: Y | O102: Y | P102: Y | Q102: Y | R102: y | T102: y | U102: y | V102: y | W102: y | X102: na | Y102: y | Z102: y | AA102: y | AB102: y | AC102: na | AD102: y | AE102: y | AF102: y | AG102: y | AU102: Y | AV102: Y | AW102: y | AX102: y | AY102: -41591.99 | AZ102: 41591.99 | BA102: 0 | BB102: 2024-03-28 | BE102: Ray Byford | BF102: 2024-03-28 | BG102: Y | BH102: N | BI102: N | BJ102: Y | BK102: Y | BL102: Y | BM102: Y | BN102: Y | BO102: Y | BP102: -3192.85 | BW102: -3192.85 | CB102: 0 | CC102: ok | CE102: Y | CF102: ok | CG102: Y | CH102: 2024-04-11 | CJ102: Annette Magnus | CL102: Y | CM102: Y | CN102: Y | CO102: 14300060676 | CQ102: N/A | CY102: St Anne's CofE Primary School | DD102: 0 | DE102: TRUE | DF102: TRUE | DG102: TRUE | DH102: TRUE | DI102: TRUE | DJ102: TRUE
A103: 5200 | B103: St Helen's primary School | C103: FMS | D103: Y | E103: 2024-03-25 | F103: SK | G103: 2024-04-02 | H103: Y | I103: Y | J103: Y | K103: Y | L103: Y | M103: N - 3p variance | N103: Y | O103: Y | P103: Y | Q103: Y | R103: Y | S103: Wrong VREF figure used - creates 3p variance | T103: Y - Agreed Governors Budget 04/05/2023 | U103: Y | V103: Y | W103: Y | X103: N/A | Y103: Y | Z103: Y | AA103: Y | AB103: Y | AC103: Y | AD103: Y | AE103: Y | AF103: Y | AG103: Y | AU103: Y | AV103: Y | AW103: N | AX103: Y | AY103: -47069.79 | AZ103: 47069.79 | BA103: 0 | BB103: 2024-01-30 | BC103: Fund 05 amendments done in P13 | BD103: As above | BE103: Y | BF103: 2024-04-05 | BG103: Y | BH103: N - both control accounts zero | BI103: Y | BJ103: Y | BK103: Y | BL103: N - SSCT finished | BM103: Y | BN103: Y | BO103: Y | BP103: -25887.55 | BW103: -25887.55 | BX103: 18782.78 | BZ103: 0.08 | CB103: 18782.86 | CC103: OK | CD103: Fund 05 issue resolved. | CE103: Y | CF103: OK | CG103: Y | CH103: 2024-04-05 | CJ103: Ray Byford | CL103: Y | CM103: Y | CN103: Y | CO103: 14300060677 | CQ103: 14300060567 | CY103: St Helen's primary School | CZ103: 18782.78 | DB103: 0.08 | DD103: 18782.86 | DE103: TRUE | DF103: TRUE | DG103: TRUE | DH103: TRUE | DI103: TRUE | DJ103: TRUE
A104: 2317 | B104: St Matthew's Primary School | C104: FMS | D104: Y | E104: 2024-03-26 | F104: DU | G104: 2024-04-03 | H104: Y | I104: Y | J104: Y | K104: Y | L104: Y | M104: Y | N104: Y | O104: Y | P104: Y | Q104: Y | R104: y | T104: y | U104: y | V104: y | W104: y | X104: na | Y104: y | Z104: y | AA104: y | AB104: y | AC104: y | AD104: y | AE104: y | AF104: y | AG104: y | AU104: Y | AV104: Y | AW104: y | AX104: y | AY104: -21815.6 | AZ104: 21815.6 | BA104: 0 | BB104: 2023-12-11 | BE104: Ray Byford | BF104: 2024-04-03 | BG104: Y | BI104: Y | BJ104: Y | BK104: Y | BL104: Y | BM104: Y | BN104: Y | BO104: Y | BP104: -138822.33 | BW104: -138822.33 | BX104: 15184.41 | CB104: 15184.41 | CC104: OK | CE104: Y | CF104: OK | CG104: Y | CH104: 2024-04-03 | CJ104: Ray Byford | CL104: Y | CM104: Y | CN104: Y | CO104: 14300060679 | CQ104: 14300060572 | CY104: St Matthew's Primary School | CZ104: 15184.41 | DD104: 15184.41 | DE104: TRUE | DF104: TRUE | DG104: TRUE | DH104: TRUE | DI104: TRUE | DJ104: TRUE
A105: 3356 | B105: St Pauls CofE VA Primary School | C105: FMS | D105: Y | E105: 2024-03-25 | F105: KW | G105: 2024-04-02 | H105: Y | I105: Y | J105: Y | K105: Y | L105: Y | M105: Y | N105: Y | O105: Y | P105: Y | Q105: Y | R105: 23/24 Final Closedown Figures | S105: N/A | T105: Y | U105: Y | V105: N | W105: Y | X105: N/A | Y105: Y | Z105: Y | AA105: Y | AB105: Y | AC105: N/A | AD105: Y | AE105: Y | AF105: Y | AG105: Y | AU105: Y | AV105: Y | AW105: N | AX105: Y | AY105: 84638.44 | AZ105: -84638.44 | BA105: 0 | BB105: 2024-01-05 | BC105: N/A | BD105: N/A | BE105: Y | BF105: 2024-04-02 | BG105: Y | BH105: Y | BI105: Y | BJ105: Y | BK105: Y | BL105: Y | BM105: Y | BN105: Y | BO105: N - although this budget has been used. | BP105: 264859.26 | BW105: 264859.26 | BZ105: 0 | CB105: 0 | CC105: N | CE105: Y | CF105: OK | CG105: Y | CH105: 2024-04-02 | CJ105: Ray Byford | CL105: Y | CM105: y | CN105: Y | CO105: 14300060680 | CQ105: 14300060568 | CY105: St Pauls CofE VA Primary School | DB105: 0 | DD105: 0 | DE105: TRUE | DF105: TRUE | DG105: TRUE | DH105: TRUE | DI105: TRUE | DJ105: TRUE
A106: 3358 | B106: St Philip's CofE Aided Primary School | C106: FMS | D106: Y | E106: 2024-03-26 | F106: KW | G106: 2024-04-05 | H106: Y | I106: Y | J106: Y | K106: Y | L106: Y | M106: Y | N106: Y | O106: Y | P106: Y | Q106: Y | R106: N | T106: Y | U106: Y | V106: Y | W106: Y | X106: N/A | Y106: Y | Z106: Y | AA106: Y | AB106: Y | AC106: N/A | AD106: Y | AE106: Y | AF106: Y | AG106: Y | AU106: Y | AW106: N | AX106: Y | AY106: -38933.39 | AZ106: 38933.39 | BA106: 0 | BB106: 2024-01-24 | BE106: Y | BF106: 2024-04-10 | BG106: Y | BH106: Y | BI106: Y | BJ106: Y | BK106: Y | BL106: Y | BM106: Not completed desciption line and no Fund number. | BN106: Y | BO106: Y | BP106: 12508.35 | BV106: -543.39 | BW106: 11964.96 | CB106: 0 | CC106: N | CD106: Accruals tab is missing the desciption and fund number - Note to school to make sure they complete this for their own journals. | CE106: Y | CF106: Ok | CG106: Y | CH106: 2024-04-10 | CJ106: Ray Byford | CL106: Y | CM106: Y | CN106: Y | CO106: 14300060681 | CQ106: N/A | CY106: St Philip's CofE Aided Primary School | DD106: 0 | DE106: TRUE | DF106: TRUE | DG106: TRUE | DH106: TRUE | DI106: TRUE | DJ106: TRUE
A107: 3029 | B107: Steeple Morden CofE VC Primary School | C107: FMS | D107: Y | E107: 2024-03-25 | F107: AC | G107: 2024-04-05 | H107: Y | I107: Y | J107: Y | K107: Y | L107: Y | M107: Y | N107: Y | O107: Y | P107: Y | Q107: Y | R107: Y | S107: N/a | T107: Y | U107: Y | V107: N | W107: Y | X107: N/a | Y107: Y | Z107: Y | AA107: Y | AB107: Y | AC107: Y | AD107: Y | AE107: Y | AF107: Y | AG107: Y | AU107: Y | AV107: Y | AW107: N | AX107: Y | AY107: -51162.71 | AZ107: 51162.71 | BA107: 0 | BB107: 2024-01-03 | BC107: N/a | BD107: £25 difference on fund review 'actuals' for 01 but all other reports correct. Y/e declaration based on SBS 01 values. | BE107: Y | BF107: 2024-04-08 | BG107: Y | BH107: Y | BI107: Y | BJ107: Y | BK107: Y | BL107: Y | BM107: Y | BN107: Y | BO107: 23/24 Final Year End Figures | BP107: -4591.5 | BW107: -4591.5 | BX107: 14776.35 | BZ107: 593.44 | CB107: 15369.79 | CC107: OK | CD107: £25 difference on fund review 'actuals' for 01 but all other reports correct. | CE107: Y | CF107: OK | CG107: Y | CH107: 2024-04-08 | CJ107: Ray Byford | CL107: Y | CM107: Y | CN107: Y | CO107: 14300060682 | CQ107: 14300060570 | CY107: Steeple Morden CofE VC Primary School | CZ107: 14776.35 | DB107: 593.44 | DD107: 15369.79 | DE107: TRUE | DF107: TRUE | DG107: TRUE | DH107: TRUE | DI107: TRUE | DJ107: TRUE
A108: 2084 | B108: Stretham Community Primary School | C108: FMS | D108: Y | E108: 2024-03-26 | F108: KW | G108: 2024-04-09 | H108: Y | I108: Y | J108: Y | K108: Y | L108: Y | M108: Y | N108: Y | O108: Y | P108: Y | Q108: Y | R108: Y | T108: Y | U108: Y | V108: N | W108: Y | X108: N/A | Y108: Y | Z108: Y | AA108: Y | AB108: Y | AC108: Y | AD108: Y | AE108: Y | AF108: Y | AG108: Y | AU108: Y | AW108: N | AX108: Y | AY108: -1501.96 | AZ108: 1501.96 | BA108: -8.185452316e-12 | BB108: 2024-01-22 | BE108: Y | BF108: 2024-04-09 | BG108: Y | BH108: Y | BI108: Y | BJ108: Y | BK108: Y | BL108: Y | BM108: Y | BN108: Y | BO108: Y | BP108: 111852.81 | BW108: 111852.81 | BX108: 23620.15 | CB108: 23620.15 | CC108: N | CE108: Y | CF108: OK | CG108: Y | CH108: 2024-04-09 | CJ108: Annette Magnus | CL108: Y | CM108: Y | CN108: Y | CO108: 14300060683 | CQ108: 14300060575 | CY108: Stretham Community Primary School | CZ108: 23620.15 | DD108: 23620.15 | DE108: TRUE | DF108: TRUE | DG108: TRUE | DH108: TRUE | DI108: TRUE | DJ108: TRUE
A109: 2443 | B109: Stukeley Meadows Primary School | C109: FMS | D109: Y | E109: 2024-03-25 | F109: DU | G109: 2024-03-25 | H109: Y | I109: Y | J109: Y | K109: Y | L109: Y | M109: Y | N109: Y | O109: Y | P109: Y | Q109: Y | R109: NO | T109: y | U109: y | V109: y | W109: y | X109: na | Y109: y | Z109: y | AA109: y | AB109: y | AC109: y | AD109: y | AE109: y | AF109: y | AG109: y | AU109: Y | AV109: Y | AX109: y | AY109: 50709.59 | AZ109: -50709.59 | BA109: 0 | BB109: 2023-12-04 | BE109: Gaynor Pope | BF109: 2024-03-25 | BG109: Y | BH109: Y | BI109: Y | BJ109: Y | BK109: Y | BL109: Y | BM109: Y | BN109: Y | BO109: Y | BP109: 147125.82 | BW109: 147125.82 | BX109: 11040.65 | BZ109: 0 | CB109: 11040.65 | CC109: OK | CD109: SMER errors corrected on SSCT version and sent back | CE109: Y | CF109: OK | CG109: Y | CH109: 2024-03-25 | CJ109: Gaynor Pope | CL109: Y | CM109: Y | CN109: Y | CO109: 14300060684 | CQ109: 14300060583 | CU109: Finish Wed 27th March | CY109: Stukeley Meadows Primary School | CZ109: 11040.65 | DB109: 0 | DD109: 11040.65 | DE109: TRUE | DF109: TRUE | DG109: TRUE | DH109: TRUE | DI109: TRUE | DJ109: TRUE
A110: 3052 | B110: Sutton CofE VC Primary School | C110: Bromcom | D110: Y | E110: 2024-03-25 | F110: SK | G110: 2024-04-09 | H110: Y | I110: Y | J110: Y | K110: Y | L110: Y | M110: Y | N110: Y | O110: Y | P110: Y | Q110: Y | R110: Y | S110: N/A | T110: Y - Governors Approved Budget 23/24 | U110: Y | V110: Y | W110: Y | X110: n/A | Y110: Y | Z110: Y | AA110: Y | AB110: Y | AC110: Y | AD110: Y | AE110: Y | AF110: Y | AG110: Y | AU110: Y | AV110: Y | AW110: N | AX110: Y | AY110: 48941.81 | AZ110: -48941.81 | BA110: 0 | BB110: 2024-01-25 | BC110: N/A | BD110: Y | BE110: Y | BF110: 2024-04-09 | BG110: Y | BH110: Y | BI110: Y | BJ110: Y | BK110: Y | BL110: Y | BM110: Y | BN110: Y | BO110: Y | BP110: 34661.23 | BV110: 27038.22 | BW110: 61699.45 | BX110: 1725.61 | CB110: 1725.61 | CC110: OK | CD110: N/A | CE110: Y | CF110: OK | CG110: Y | CH110: 2024-04-09 | CJ110: Annette Magnus | CL110: Y | CM110: Y | CN110: Y | CO110: 14300060685 | CQ110: 14300060584 | CY110: Sutton CofE VC Primary School | CZ110: 1725.61 | DD110: 1725.61 | DE110: TRUE | DF110: TRUE | DG110: TRUE | DH110: TRUE | DI110: TRUE | DJ110: TRUE
A111: 2046 | B111: Swavesey Primary School | C111: ACCESS | D111: Y | E111: 2024-03-23 | F111: DU | G111: 2024-03-25 | H111: Y | I111: Y | J111: Y | K111: N | L111: Y | M111: Y | N111: CORRECTED BANK ENTRY by SSCT DU | O111: Y | P111: Y | Q111: Y | R111: y | T111: y | U111: y | V111: y | W111: y | X111: na | Y111: y | Z111: y | AA111: y | AB111: y | AC111: y | AD111: y | AE111: y | AF111: y | AG111: y | AU111: Y | AV111: Y | AX111: y | AY111: -38895.14 | AZ111: 38895.14 | BA111: 0 | BB111: 2023-12-20 | BE111: Ray | BF111: 2024-03-25 | BG111: Y | BH111: Y | BJ111: Y | BK111: Y | BL111: Y | BM111: Y | BP111: 99109.57 | BV111: 56106.51 | BW111: 155216.08 | BX111: 2075.43 | BZ111: 0 | CB111: 2075.43 | CC111: OK | CE111: Y | CF111: OK | CG111: Y | CH111: 2024-03-25 | CJ111: Ray Byford | CL111: Y | CM111: Y | CN111: Y | CO111: 14300060686 | CQ111: 14300060586 | CY111: Swavesey Primary School | CZ111: 2075.43 | DB111: 0 | DD111: 2075.43 | DE111: TRUE | DF111: TRUE | DG111: TRUE | DH111: TRUE | DI111: TRUE | DJ111: TRUE
A112: 3325 | B112: Teversham CofE VA Primary School | C112: FMS | D112: Y | E112: 2024-03-26 | F112: AC | G112: 2024-03-26 | H112: Y | I112: Y | J112: Y | K112: N | L112: Y | M112: Y | N112: Y | O112: Y | P112: Y | Q112: Y | R112: Y | S112: N/a | T112: Y | U112: Y | V112: N | W112: Y | X112: N/a | Y112: Y | Z112: Y | AA112: Y | AB112: Y | AC112: N/a | AD112: Y | AE112: Y | AF112: Y | AG112: Y | AU112: Y | AV112: Y | AW112: N | AX112: Y | AY112: 43450.21 | AZ112: -43450.21 | BA112: 0 | BB112: 2024-02-02 | BC112: N/a | BD112: N/a | BE112: Gaynor | BF112: 2024-03-28 | BG112: Y | BH112: Y | BI112: Y | BJ112: N/a | BK112: Y | BL112: Y | BM112: Y | BN112: Y | BO112: As draft. | BP112: 99283.44 | BV112: 5422.12 | BW112: 104705.56 | CB112: 0 | CC112: OK | CD112: N/a | CE112: Y | CF112: OK | CG112: Y | CH112: 2024-03-28 | CJ112: Gaynor Pope | CL112: Y | CM112: Y | CN112: Y | CO112: 14300060688 | CQ112: N/A | CY112: Teversham CofE VA Primary School | DD112: 0 | DE112: TRUE | DF112: TRUE | DG112: TRUE | DH112: TRUE | DI112: TRUE | DJ112: TRUE
A113: 2217 | B113: The Ashbeach Primary School | C113: FMS | D113: Y | E113: 2024-03-27 | F113: DU | G113: 2024-03-27 | H113: Y | I113: Y | J113: Y | K113: Y | L113: Y | M113: Y | N113: Y | O113: Y | P113: Y | Q113: Y | R113: y | T113: y | U113: y | V113: y | W113: y | X113: na | Y113: NO | Z113: NO | AA113: y | AB113: y | AC113: y | AD113: y | AE113: y | AF113: y | AG113: y | AU113: Y | AV113: Y | AW113: balanced | AX113: y | AY113: -63995.63 | AZ113: 63995.63 | BA113: 0 | BB113: 2024-02-15 | BE113: Ray Byford | BI113: Y | BJ113: Y | BK113: Y | BL113: Y | BM113: Y | BN113: Y | BO113: Y | BP113: -54437.21 | BV113: 6121.18 | BW113: -48316.03 | BX113: 17665.71 | BZ113: 836.95 | CB113: 18502.66 | CC113: OK | CE113: Y | CF113: OK | CG113: Y | CH113: 2024-03-27 | CJ113: Ray Byford | CL113: Y | CM113: Y | CN113: Y | CO113: 14300060690 | CQ113: 14300060587 | CV113: 14300060587 | CY113: The Ashbeach Primary School | CZ113: 17665.71 | DB113: 836.95 | DD113: 18502.66 | DE113: TRUE | DF113: TRUE | DG113: TRUE | DH113: TRUE | DI113: TRUE | DJ113: TRUE
A114: 3943 | B114: The Bellbird Primary School | C114: FMS | D114: Y | E114: 2024-03-25 | F114: SK | G114: 2024-04-02 | H114: Y | I114: Y | J114: Y | K114: Y | L114: Y | M114: Y | N114: Y | O114: Y | P114: Y | Q114: Y | R114: Y | S114: N/A | T114: Y - Governors Agreed Budget 10/05/2023 | U114: Y | V114: Y | W114: Y | X114: N/A | Y114: Y | Z114: Y | AA114: Y | AB114: Y | AC114: Y | AD114: Y | AE114: Y | AF114: Y | AG114: Y | AU114: Y | AV114: Y | AW114: N | AX114: Y | AY114: 19214.98 | AZ114: -19214.98 | BA114: 0 | BB114: 2023-12-04 | BC114: N/A | BD114: Y | BE114: Y | BF114: 2024-04-02 | BG114: Y | BH114: Y | BI114: Y | BJ114: N - but no o/s transactions | BK114: Y | BL114: Y | BM114: Y | BN114: Y | BO114: Y | BP114: 274835.44 | BW114: 274835.44 | BX114: 1142.91 | CB114: 1142.91 | CC114: OK | CD114: N/A | CE114: Y | CF114: OK | CG114: Y | CH114: 2024-04-02 | CJ114: Gaynor Pope | CL114: Y | CM114: Y | CN114: Y | CO114: 14300060691 | CQ114: 14300060585 | CV114: 14300060585 | CY114: The Bellbird Primary School | CZ114: 1142.91 | DD114: 1142.91 | DE114: TRUE | DF114: TRUE | DG114: TRUE | DH114: TRUE | DI114: TRUE | DJ114: TRUE
A115: 3368 | B115: The Elton CofE Primary School of the Foundation of Frances and Jane Proby | C115: FMS | D115: Y | E115: 2024-03-25 | F115: SW | G115: 2024-04-03 | H115: Y | I115: Y | J115: Y | K115: Y | L115: Y | M115: Y | N115: Y | O115: Y | P115: Y | Q115: Y | R115: n/a at year end | S115: In section 6 -March SMER was listed. I confirmed this was fixed, but there was another called 23/24 Draft Year End Figures which was fixed and a 23/24 Final Closedown Figures. All had the same total at the bottom of them. So used 23/24 Final Closedown Figures for checking etc and publishing | U115: Y | V115: n/a at year end | W115: Y | X115: N/A | Y115: £15008.17 Difference. Except for £1 explained per last months SMER: £3984.17 for CT in May (Peterborough) + £11,025 for CT from Peterborough. So Ok | Z115: Y | AA115: Y | AB115: Y | AC115: N/A | AD115: Y | AE115: Y | AF115: Y | AG115: Y | AH115: N/A as Y/End | AI115: N/A as Y/End | AJ115: N/A as Y/End | AK115: N/A as Y/End | AL115: N/A as Y/End | AM115: N/A as Y/End | AN115: N/A as Y/End | AO115: N/A as Y/End | AP115: N/A as Y/End | AQ115: N/A as Y/End | AR115: N/A as Y/End | AS115: N/A as Y/End | AT115: N/A as Y/End | AU115: Y | AW115: N/A as Y/End | AX115: Y | AY115: 2650.54 | AZ115: -2650.54 | BA115: 0 | BE115: Y | BF115: 2024-04-03 | BG115: Y | BH115: Y | BI115: Y | BJ115: No because there arent any | BK115: Y | BL115: Y | BM115: Y | BN115: Y | BO115: Listed March SMER. SW Comment: This was fixed, but there was another called 23/24 Draft Year End Figures which was fixed and a 23/24 Final Closedown Figures. All had the same total at the bottom of them. So used 23/24 Final Closedown Figures for checking etc and publishing | BP115: 62059.49 | BW115: 62059.49 | CB115: 0 | CC115: N | CD115: n/a | CE115: Y | CF115: OK | CG115: Y | CH115: 2024-04-03 | CJ115: Jane Green | CL115: Y | CM115: Y | CN115: Y | CO115: 14300060692 | CQ115: N/A | CY115: The Elton CofE Primary School of the Foundation of Frances and Jane Proby | DD115: 0 | DE115: TRUE | DF115: TRUE | DG115: TRUE | DH115: TRUE | DI115: TRUE | DJ115: TRUE
A116: 1001 | B116: The Fields Nursery School | C116: FMS | D116: Y | E116: 2024-03-25 | F116: SK | G116: 2024-04-05 | H116: Y | I116: Y | J116: Y | K116: Y | L116: Y | M116: Y | N116: Y | O116: Y | P116: Y | Q116: N | R116: Y | S116: VAT details amended on summary tab to correct CEA figure - reconciles | T116: Y - Original Submtted Budget 2023/24 (Orovia) | U116: Y | V116: Y | W116: Y | X116: N/A | Y116: N - variance paid directly into bank account | Z116: Y | AA116: N/A | AB116: N/A | AC116: Y | AD116: Y | AE116: Y | AF116: Y | AG116: Y | AU116: N - added and checked by SSCT | AV116: Y | AW116: Y | AX116: Y | AY116: -64623.2 | AZ116: 64623.2 | BA116: 0 | BB116: 2024-01-11 | BC116: N/A | BD116: Y | BE116: Y | BF116: 2024-04-08 | BG116: Y | BH116: Y | BI116: Y | BJ116: Y | BK116: Y | BL116: N | BM116: N | BN116: Y | BO116: Y | BP116: -138176.36 | BT116: -7991.65 | BW116: -146168.01 | BX116: 32548.23 | BZ116: 0 | CB116: 32548.23 | CC116: OK | CD116: Fund 22 resolved | CE116: Y | CF116: OK | CG116: Y | CH116: 2024-04-10 | CJ116: Ray Byford | CL116: Y | CM116: Y | CN116: Y | CO116: 14300060693 | CQ116: N/A | CY116: The Fields Nursery School | CZ116: 32548.23 | DB116: 0 | DD116: 32548.23 | DE116: TRUE | DF116: TRUE | DG116: TRUE | DH116: TRUE | DI116: TRUE | DJ116: TRUE
A117: 2123 | B117: The Grove Primary School | C117: FMS | D117: Y | E117: 2024-03-28 | F117: DU | G117: 2024-04-02 | H117: Y | I117: Y | J117: Y | K117: Y | L117: Y | M117: Y | N117: Y | O117: Y | P117: Y | Q117: Y | R117: y | T117: y | U117: y | V117: y | W117: y | X117: na | Y117: y | Z117: y | AA117: y | AB117: y | AC117: y | AD117: y | AE117: y | AF117: y | AG117: y | AU117: Y | AV117: Y | AW117: y | AX117: y | AY117: -781.57 | AZ117: 781.57 | BA117: 0 | BB117: 2024-01-09 | BE117: Ray Byford | BF117: 2024-04-02 | BG117: Y | BH117: Y | BI117: Y | BJ117: Y | BK117: Y | BL117: Y | BM117: Y | BN117: Y | BO117: N | BP117: 52993.74 | BV117: -27898.59 | BW117: 25095.15 | BX117: 2123.85 | CB117: 2123.85 | CC117: OK | CE117: Y | CF117: OK | CG117: Y | CH117: 2024-04-02 | CJ117: Ray Byford | CL117: Y | CM117: Y | CN117: Y | CO117: 14300060694 | CQ117: 14300060582 | CV117: 14300060582 | CY117: The Grove Primary School | CZ117: 2123.85 | DD117: 2123.85 | DE117: TRUE | DF117: TRUE | DG117: TRUE | DH117: TRUE | DI117: TRUE | DJ117: TRUE
A118: 2260 | B118: The Newton Community Primary School | C118: Bromcom | D118: Y | E118: 2024-03-25 | F118: SK | G118: 2024-03-25 | H118: Y | I118: Y | J118: Y | K118: Y | L118: Y | M118: Y | N118: Y | O118: Y | P118: Y | Q118: Y | R118: Y | S118: N/A | T118: Y - Governors Agreed Budget 12/05/2023 F | U118: Y | V118: Y | W118: Y | X118: N/A | Y118: Y | Z118: Y | AA118: Y | AB118: Y | AC118: Y | AD118: Y | AE118: Y | AF118: Y | AG118: Y | AU118: Y | AV118: Y | AW118: Y | AX118: Y | AY118: -48362.3 | AZ118: 48362.3 | BA118: 0 | BB118: 2023-12-13 | BC118: N/A | BD118: Y | BE118: Y | BF118: 2024-03-25 | BG118: Y | BH118: Y | BI118: Y | BJ118: Y | BK118: Y | BL118: Y | BM118: Y | BN118: Y | BO118: N - 23/24 Draft Year End Figures F | BP118: 67604.48 | BW118: 67604.48 | BX118: 2935.29 | CB118: 2935.29 | CC118: OK | CD118: N/A | CE118: Y | CF118: OK | CG118: Y | CH118: 2024-03-25 | CJ118: Gaynor Pope | CL118: Y | CM118: Y | CN118: Y | CO118: 14300060695 | CQ118: 14300060581 posted balance sheet rather than capital. Kerry posted capital on 14300060798 | CS118: Posted with capital 1430060581. Then reversed in 2425 period 1 on jnl14300060878 23/4/24 | CV118: 14300060581 | CY118: The Newton Community Primary School | CZ118: 2935.29 | DD118: 2935.29 | DE118: TRUE | DF118: TRUE | DG118: TRUE | DH118: TRUE | DI118: TRUE | DJ118: TRUE
A119: 3058 | B119: The Rackham Church of England Primary School | C119: Bromcom | D119: Y | E119: 2024-03-25 | F119: SW | G119: 2024-04-05 | H119: Y | I119: Y | J119: Y | K119: Y | L119: Y | M119: Y | N119: Y | O119: Y | P119: Y | Q119: Y | R119: n/a at year end | S119: VAT reconciliation corrected. NO VAT SUBMITTAL FOR Q3, however balances so must have been checked previously so treated as no issues | T119: Y | U119: Y | V119: n/a at year end | W119: Y | X119: N/A | Y119: Y | Z119: Y | AA119: Y | AB119: Y | AC119: Y | AD119: Y | AE119: Y | AF119: Y | AG119: Y | AH119: n/a at year end | AI119: n/a at year end | AJ119: n/a at year end | AK119: n/a at year end | AL119: n/a at year end | AM119: n/a at year end | AN119: n/a at year end | AO119: n/a at year end | AP119: n/a at year end | AQ119: n/a at year end | AR119: n/a at year end | AS119: n/a at year end | AT119: n/a at year end | AU119: No but reconciles - Q3 missing | AW119: n/a at year end | AX119: Y | AY119: 94608.17 | AZ119: -94608.17 | BA119: 0 | BE119: Y | BF119: 2024-04-05 | BH119: Y | BI119: Y | BJ119: No but not needed as £0 | BK119: Y | BL119: Y | BM119: Y | BN119: Y | BO119: OK AS SHOWN LIKE THIS - P12 Final Closediwn Budget Monitor | BP119: 84323.92 | BW119: 84323.92 | BX119: 10284.25 | CB119: 10284.25 | CC119: N | CE119: Y | CF119: OK | CG119: Y | CH119: 2024-04-05 | CJ119: Ray Byford | CL119: Y | CM119: Y | CN119: Y | CO119: 14300060696 | CQ119: 14300060588 | CY119: The Rackham Church of England Primary School | CZ119: 10284.25 | DD119: 10284.25 | DE119: TRUE | DF119: TRUE | DG119: TRUE | DH119: TRUE | DI119: TRUE | DJ119: TRUE
A120: 3389 | B120: The Vine Inter-Church Primary School | C120: Sage | D120: Y | E120: 2024-03-28 | F120: KW | G120: 2024-04-08 | H120: Y | I120: Y | J120: Y | K120: Y | L120: Y | M120: N | N120: Y | O120: Y - No Unrec report | P120: Y | Q120: Y | R120: Y | T120: N | U120: Y | V120: Y | W120: Y | X120: N/A | Y120: N - 30 p difference more on SBS. | Z120: Y | AA120: Y | AB120: Y | AC120: N/A | AD120: Y | AE120: N - Doesn't affect overall CFR | AF120: N - Doesn't affect overall CFR | AG120: Y | AU120: Y | AW120: N | AX120: Y | AY120: -10786.63 | AZ120: 10786.63 | BA120: -1.2187229e-10 | BB120: 2024-03-07 | BE120: Y | BF120: 2024-04-08 | BG120: Y | BH120: Y | BI120: Y | BJ120: N | BK120: Y | BL120: Y | BM120: Y | BN120: Y | BO120: Y | BP120: 45789.99 | BV120: 87283.17 | BW120: 133073.16 | CB120: 0 | CC120: N | CD120: Bank unec repoted requested - No reply. | CE120: Y | CF120: Ok | CG120: Y | CH120: 2024-04-10 | CJ120: Gaynor Pope | CL120: Y | CM120: Y | CN120: Y | CO120: 14300060699 | CQ120: N/A | CY120: The Vine Inter-Church Primary School | DD120: 0 | DE120: TRUE | DF120: TRUE | DG120: TRUE | DH120: TRUE | DI120: TRUE | DJ120: TRUE
A121: 2001 | B121: Thorndown Primary School | C121: ACCESS | D121: Y | E121: 2024-03-26 | F121: AC | G121: 2024-04-09 | H121: Y | I121: Y | J121: Y | K121: N/a | L121: Y | M121: Y - £0.03 variance. | N121: Y | O121: Y | P121: Y | Q121: Y | R121: Y | S121: N/a | T121: Y | U121: Y | V121: Y | W121: Y | X121: N/a | Y121: Y | Z121: Y | AA121: Y | AB121: Y | AC121: Y | AD121: Y | AE121: Y | AF121: Y | AG121: Y | AU121: Y | AV121: Y | AW121: N | AX121: Y | AY121: -151099.95 | AZ121: 151099.95 | BA121: 0 | BB121: 2024-02-02 | BC121: N/a | BD121: N/a | BE121: Y | BF121: 2024-04-10 | BG121: Y | BH121: Y | BI121: Y | BJ121: N/a | BK121: Y | BL121: Y | BM121: Y | BN121: Y | BO121: Y | BP121: 74433.2 | BV121: 51276.18 | BW121: 125709.38 | BX121: 44003.27 | CB121: 44003.27 | CC121: Ok | CD121: N/a | CE121: Y | CF121: Ok | CG121: Y | CH121: 2024-04-10 | CJ121: Ray Byford | CL121: Y | CM121: Y | CN121: Y | CO121: 14300060700 | CQ121: 14300060573 | CV121: 14300060573 | CY121: Thorndown Primary School | CZ121: 44003.27 | DD121: 44003.27 | DE121: TRUE | DF121: TRUE | DG121: TRUE | DH121: TRUE | DI121: TRUE | DJ121: TRUE
A122: 2064 | B122: Townley Primary School | C122: FMS | D122: Y | E122: 2024-03-25 | F122: KW | G122: 2024-04-02 | H122: Y | I122: Y | J122: Y | K122: Y | L122: Y | M122: Y | N122: Y | O122: Y | P122: Y | Q122: Y | R122: Y | S122: N | T122: Y | U122: Y | V122: N | W122: Y | Y122: Y - Extra funding from OLA, 2p difference from note | Z122: Y | AA122: Y | AB122: Y | AC122: Y | AD122: Y | AE122: Y | AF122: Y | AG122: Y | AU122: Y | AW122: N | AX122: Y | AY122: 4142.09 | AZ122: -4142.09 | BA122: 0 | BB122: 2024-01-23 | BE122: Y | BF122: 2024-04-02 | BG122: Y | BH122: Y | BI122: Y | BJ122: Y | BK122: Y | BL122: Y | BM122: Y | BN122: Y | BO122: Y | BP122: 127469.59 | BW122: 127469.59 | BX122: 24931.69 | CB122: 24931.69 | CC122: N | CE122: Y | CF122: OK | CG122: Y | CH122: 2024-04-02 | CJ122: Annette Magnus | CL122: Y | CM122: Y | CN122: Y | CO122: 14300060701 | CQ122: 14300060571 | CV122: 14300060571 | CY122: Townley Primary School | CZ122: 24931.69 | DD122: 24931.69 | DE122: TRUE | DF122: TRUE | DG122: TRUE | DH122: TRUE | DI122: TRUE | DJ122: TRUE
A123: 2000 | B123: Trumpington Meadows Primary School | C123: FMS | D123: Y | E123: 2024-03-26 | F123: DU | G123: 2024-04-10 | BW123: 0 | CB123: 0 | CH123: 2024-04-10 | CJ123: Ray Byford | CL123: Y | CM123: N - UNSURE WHAT SCHOOL TO PUT IT AGAINST. WORKING PAPER PARTIALLY DONE | CN123: Y | CO123: 14300060702 | CQ123: 14300060569 | CV123: 14300060569 | CY123: Trumpington Meadows Primary School | DD123: 0 | DE123: TRUE | DF123: TRUE | DG123: TRUE | DH123: TRUE | DI123: TRUE | DJ123: TRUE
A124: 2048 | B124: Waterbeach Community Primary School | C124: FMS | D124: Y | E124: 2024-03-26 | F124: SW | G124: 2024-04-03 | H124: Y | I124: Y | J124: Y | K124: Y | L124: Y | M124: Y | N124: Y | O124: Y | P124: Y | Q124: Y | R124: N but ok as Year End | S124: N/A | T124: Y | U124: Y | V124: Y | W124: Y | X124: N/A | Y124: Y | Z124: £287.98 difference - OLA LAC (Other Local Authority Looked After Child) - OK | AA124: Y | AB124: Y | AC124: Y | AD124: Y | AE124: Y | AF124: Y | AG124: Y | AH124: N/A as year end | AI124: N/A as year end | AJ124: N/A as year end | AK124: N/A as year end | AL124: N/A as year end | AM124: N/A as year end | AN124: N/A as year end | AO124: N/A as year end | AP124: N/A as year end | AQ124: N/A as year end | AR124: N/A as year end | AS124: N/A as year end | AT124: N/A as year end | AU124: Y | AV124: Y | AW124: N/A as year end | AX124: Y | AY124: -25619.01 | AZ124: 25619.01 | BA124: 0 | BE124: Y | BF124: 2024-04-03 | BG124: Y | BH124: Y | BI124: Y | BJ124: Y | BK124: Y | BL124: Y | BM124: Y | BN124: Y | BO124: Y | BP124: 19740.55 | BW124: 19740.55 | BX124: 1271.78 | CB124: 1271.78 | CC124: N | CD124: N/A | CE124: Y | CF124: Ok | CG124: Y | CH124: 2024-04-03 | CJ124: Ray Byford | CL124: Y | CM124: Y | CN124: Y | CO124: 14300060703 | CQ124: 14300060467 | CY124: Waterbeach Community Primary School | CZ124: 1271.78 | DD124: 1271.78 | DE124: TRUE | DF124: TRUE | DG124: TRUE | DH124: TRUE | DI124: TRUE | DJ124: TRUE
A125: 2232 | B125: Westfield Junior School | C125: FMS | D125: Y | E125: 2024-03-25 | F125: DU | G125: 2024-04-04 | H125: Y | I125: Y | J125: Y | K125: Y | L125: Y | M125: Y | N125: Y | O125: Y | P125: Y | Q125: Y | R125: n | T125: y | U125: y | V125: y | W125: y | X125: na | Y125: y | Z125: y | AA125: y | AB125: y | AC125: y | AD125: y | AE125: y | AF125: y | AG125: y | AU125: Y | AV125: Y | AW125: y | AX125: y | AY125: -246725.77 | AZ125: 246725.77 | BA125: 0 | BB125: 2024-01-24 | BE125: Ray Byford | BF125: 2024-04-04 | BG125: Y | BH125: Y | BI125: Y | BJ125: Y | BK125: Y | BL125: Y | BM125: Y | BN125: Y | BO125: Y | BP125: 1802.27 | BW125: 1802.27 | BX125: 7146.4 | BZ125: 14526.4 | CB125: 21672.8 | CC125: OK | CE125: Y | CF125: OK | CG125: Y | CH125: 2024-04-05 | CJ125: Ray Byford | CL125: Y | CM125: Y | CN125: Y | CO125: 14300060704 | CQ125: 14300060563 | CV125: 14300060563 | CY125: Westfield Junior School | CZ125: 7146.4 | DB125: 14526.4 | DD125: 21672.8 | DE125: TRUE | DF125: TRUE | DG125: TRUE | DH125: TRUE | DI125: TRUE | DJ125: TRUE
A126: 3392 | B126: Wheatfields Primary School | C126: FMS | D126: Y | E126: 2024-03-25 | F126: DU | G126: 2024-04-05 | H126: Y | I126: Y | J126: Y | K126: Y | L126: Y | M126: Y | N126: Y | O126: N | P126: Y | Q126: N | R126: y | T126: y | U126: y | V126: y | W126: y | X126: na | Y126: y | Z126: y | AA126: y | AB126: y | AC126: y | AD126: y | AE126: y | AF126: y | AG126: y | AU126: Y | AV126: Y | AW126: y | AX126: y | BA126: 0 | BB126: 2024-01-15 | BE126: Jane Green | BF126: 2024-04-05 | BG126: Y | BH126: Y | BI126: Y | BJ126: Y | BK126: Y | BL126: Y | BM126: Incorrect "income" code in "payment in advance" section | BN126: Y | BP126: -3406.54 | BV126: 4481.94 | BW126: 1075.4 | BX126: 43635.28 | CB126: 43635.28 | CC126: OK | CE126: Y | CF126: OK | CG126: Y | CH126: 2024-04-05 | CJ126: Jane Green | CL126: Y | CM126: Y | CN126: Y | CO126: 14300060705 | CQ126: N/A | CY126: Wheatfields Primary School | CZ126: 43635.28 | DD126: 43635.28 | DE126: TRUE | DF126: TRUE | DG126: TRUE | DH126: TRUE | DI126: TRUE | DJ126: TRUE
A127: 3054 | B127: Wilburton CofE Primary School | C127: FMS | D127: Y | E127: 2024-03-25 | F127: SW | G127: 2024-04-05 | H127: Y | I127: Y | J127: Y | K127: Y | L127: Y | M127: Y | N127: Y | O127: Y | P127: Y | Q127: Y | R127: n/a at year end | S127: You made a note the EPM summary report was not available at the time of SMER completion 25/03/24 – could you please confirm the report shows the figure of £61,293.35 that was on the balance sheet please?. School responded please see EPM tab - OK NOW | T127: Y | U127: Y | V127: n/a at year end | W127: Y | X127: Y | Y127: Y | Z127: Y | AA127: Y | AB127: Y | AC127: Y | AD127: Y | AE127: Y | AF127: Y | AG127: Y | AH127: n/a at year end | AI127: n/a at year end | AJ127: n/a at year end | AK127: n/a at year end | AL127: n/a at year end | AM127: n/a at year end | AN127: n/a at year end | AO127: n/a at year end | AP127: n/a at year end | AQ127: n/a at year end | AR127: n/a at year end | AS127: n/a at year end | AT127: n/a at year end | AU127: Y | AW127: n/a at year end | AX127: Y | AY127: -38248.21 | AZ127: 38248.21 | BA127: 0 | BB127: n/a at year end | BE127: Y | BF127: 2024-04-05 | BG127: Y | BH127: Y | BI127: Y | BJ127: Not needed | BK127: Y | BL127: Y | BM127: Y | BN127: Y | BO127: Yes | BP127: 24085.13 | BW127: 24085.13 | BX127: 6481.08 | CB127: 6481.08 | CC127: OK | CE127: Y | CF127: OK | CG127: Y | CH127: 2024-04-05 | CJ127: Annette Magnus | CL127: Y | CM127: Y | CN127: Y | CO127: 14300060706 | CQ127: 14300060566 | CV127: 14300060566 | CY127: Wilburton CofE Primary School | CZ127: 6481.08 | DD127: 6481.08 | DE127: TRUE | DF127: TRUE | DG127: TRUE | DH127: TRUE | DI127: TRUE | DJ127: TRUE
A128: 3032 | B128: William Westley Church of England VC Primary School | C128: Bromcom | D128: Y | E128: 2024-03-25 | F128: SK | G128: 2024-03-26 | H128: Y | I128: Y | J128: Y | K128: Y | L128: Y | M128: Y | N128: Y | O128: Y | P128: Y | Q128: Y | R128: Y | S128: N/A | T128: Y - 23/24 Final Closedown Figures | U128: Y | V128: Y | W128: Y | X128: N/A | Y128: Y | Z128: Y | AA128: Y | AB128: Y | AC128: Y | AD128: Y | AE128: Y | AF128: Y | AG128: Y | AU128: Y | AV128: Y | AW128: N | AX128: Y | AY128: 8298.37 | AZ128: -8298.37 | BA128: 0 | BB128: 2024-01-22 | BC128: N/A | BD128: N/A | BE128: Y | BF128: 2024-03-26 | BG128: Y | BH128: Y - but query over DENW1 | BI128: Y | BJ128: Y | BK128: Y | BL128: Y | BM128: Y | BN128: Y | BO128: Y | BP128: 110760.45 | BW128: 110760.45 | BX128: 19300.47 | CB128: 19300.47 | CC128: Issue | CD128: Debtors report not picking up DENW1. Need to run report showing this code. | CE128: Y | CF128: OK | CG128: Y | CH128: 2024-03-26 | CJ128: Gaynor Pope | CL128: Y | CM128: Y | CN128: Y | CO128: 14300060707 | CQ128: 14300060561 | CV128: 14300060561 | CY128: William Westley Church of England VC Primary School | CZ128: 19300.47 | DD128: 19300.47 | DE128: TRUE | DF128: TRUE | DG128: TRUE | DH128: TRUE | DI128: TRUE | DJ128: TRUE
A129: 2054 | B129: Willingham Primary School | C129: FMS | D129: Y | E129: 2024-04-08 | F129: SK | G129: 2024-04-08 | H129: Y | I129: Y | J129: Y | K129: Y | L129: Y | M129: Y | N129: Y | O129: Y | P129: N | Q129: Y | R129: Y | S129: Big variance on Op Bal. SSCT reworked and reconciles with TB, FR, CEA, BM. | T129: Y - Agreed Governors Budget 03/05/2023 | U129: Y | V129: Y | W129: Y - refugee funding moved from I06 | X129: N/A | Y129: Y | Z129: Y - £600 OOA LAC variance | AA129: Y | AB129: Y | AC129: Y | AD129: Y | AE129: Y | AF129: Y | AG129: Y | AU129: Y | AV129: Y | AW129: N | AX129: Y | AY129: 31969.83 | AZ129: -31969.83 | BA129: 0 | BB129: 2024-01-08 | BC129: N/A | BD129: Y | BE129: Y | BF129: 2024-04-08 | BG129: Y | BH129: Y | BI129: Y | BJ129: Y | BK129: Y | BL129: Y | BM129: Y | BN129: Y | BO129: Y | BP129: 142029.98 | BV129: 46184.04 | BW129: 188214.02 | BX129: 1554.65 | CB129: 1554.65 | CC129: OK | CD129: N/A | CE129: Y | CF129: OK | CG129: Y | CH129: 2024-04-08 | CJ129: Jane Green | CL129: Y | CM129: Y | CN129: Y | CO129: 14300060642 | CQ129: 14300060559 | CV129: 14300060559 | CY129: Willingham Primary School | CZ129: 1554.65 | DD129: 1554.65 | DE129: TRUE | DF129: TRUE | DG129: TRUE | DH129: TRUE | DI129: TRUE | DJ129: TRUE
A130: 2240 | B130: Wyton on the Hill Community Primary School | C130: Bromcom | D130: Y | E130: 2024-03-25 | F130: SW | G130: 2024-04-03 | H130: Y | I130: Y | J130: Y | K130: Y | L130: Y | M130: Y | N130: Y | O130: Y | P130: Y | Q130: Y | R130: N/A as year end | S130: Section 6 stated 2324 Draft as Fixed. The total figures for Revenue, Extended and Capital matched the 2324 Final Closedown figures and therefore this is what has been used | T130: Y | U130: Y | V130: Y | W130: Y | X130: N/A | Y130: Y | Z130: Y | AA130: Y | AB130: Y | AC130: Y | AD130: Y | AE130: Y | AF130: Y | AG130: Y | AH130: N/A as year end | AI130: N/A as year end | AJ130: N/A as year end | AK130: N/A as year end | AL130: N/A as year end | AM130: N/A as year end | AN130: N/A as year end | AO130: N/A as year end | AP130: N/A as year end | AQ130: N/A as year end | AR130: N/A as year end | AS130: N/A as year end | AT130: N/A as year end | AU130: Y | AW130: N/A as year end | AX130: Y | AY130: -48885.17 | AZ130: 48885.17 | BA130: 0 | BE130: Y | BF130: 2024-04-03 | BG130: Y | BH130: Y | BI130: Y | BJ130: Y | BK130: Y | BL130: No, however when completed by SW - top section balances so ok | BM130: N | BN130: Y | BO130: No, however the actuals are the same in the Final version so ok | BP130: -61988.09 | BV130: 1065.12 | BW130: -60922.97 | BX130: 12037.8 | CB130: 12037.8 | CC130: N | CD130: n/a | CE130: Y | CF130: OK | CG130: Y | CH130: 2024-04-03 | CJ130: Jane Green | CL130: Y | CM130: Y | CN130: Y | CO130: 14300060640 | CQ130: 14300060556 | CV130: 14300060556 | CY130: Wyton on the Hill Community Primary School | CZ130: 12037.8 | DD130: 12037.8 | DE130: TRUE | DF130: TRUE | DG130: TRUE | DH130: TRUE | DI130: =DC130=CA130 -> TRUE | DJ130: TRUE
A131: 2254 | B131: Yaxley Infant School | C131: FMS | D131: Y | E131: 2024-03-25 | F131: SK | G131: 2024-04-05 | H131: Y | I131: Y | J131: Y | K131: Y | L131: Y | M131: Y | N131: Y | O131: N - 1p variance | P131: Y | Q131: Y | R131: Y | S131: N/A | T131: Y - Governors Agreed Budget (orovia) | U131: Y | V131: Y | W131: Y | X131: N/A | Y131: Y | Z131: Y | AA131: Y | AB131: Y | AC131: Y | AD131: Y | AE131: Y | AF131: Y | AG131: Y | AU131: Y | AV131: Y | AW131: N | AX131: Y | AY131: -89158.68 | AZ131: 89158.68 | BA131: 0 | BB131: 2024-01-22 | BC131: N/A | BD131: Y | BE131: Y | BF131: 2024-04-08 | BG131: Y | BH131: Y | BI131: Y | BJ131: Y | BK131: Y | BL131: Y | BM131: Y | BN131: Y | BO131: Y | BP131: 20832 | BW131: 20832 | BX131: 12842.53 | CB131: 12842.53 | CC131: OK | CD131: N/A | CE131: Y | CF131: OK | CG131: Y | CH131: 2024-04-08 | CJ131: Jane Green | CL131: Y | CM131: Y | CN131: Y | CO131: 14300060601 | CQ131: 14300060464 | CY131: Yaxley Infant School | CZ131: 12842.53 | DD131: 12842.53 | DE131: TRUE | DF131: TRUE | DG131: TRUE | DH131: TRUE | DI131: =DC131=CA131 -> TRUE | DJ131: TRUE
CZ133: =SUM(CZ8:CZ132) -> 1601756.47 | DA133: =SUM(DA8:DA132) -> 73530.22 | DB133: 153133.79 | DC133: 0.03 | DD133: 1828420.51

Sheet SSCT - Checklist (YE) (hidden)
A1: Schools Strategy & Corporate Team - SMER Checklist (TO BE COMPLETED BY SSCT ONLY) | F1: Y
F2: N
B3: DfE Number | C3: ='SMER Summary 25-26'!D11 -> 2333
B4: School Name | C4: ='SMER Summary 25-26'!D13 -> Queen Edith Primary School
B5: Platform | C5: ='SMER Summary 25-26'!H13 -> FMS
B7: Checklist Item | C7: Result of Check | D7: Description of check
A8: Per SSCT Checklist (normal monthly one) | B8: Do all normal checks but don’t need to record 24/25 governors budget, recording of Projected YE figures etc
B9: Plus in reports included section - Aged Creditors and Debtors reports
A12: SSCT Procedures | B12: Need to save YE SMER email received from school in the folder (1. Emails from school)
B13: Need to save YE SMER included in email as "School Name 24/25 Y/E SMER" in the SMER>Mar> NON FOLDER
B14: If amendments are needed to be made. Make them by creating a version called "school name 24/25 YE SMER -SSCT"
B15: Once completed checks, move this to the OK folder if published, if issues and waiting for reply from school move this to the issues folder
B16: Once Issues are resolved, save final SMER in ok folder and mark as published on SBS
A19: YEAR END ONLY | B19: Received Aged Debt & Creditors report? | D19: Not needed if creditors or debtors are showing £0.00
B20: Received Bank Statement as at COP xx/3/25?
B21: Included a unreconciled bank items report?
B22: Included a Q4 Short summary as at xx/3/25?
B23: Has the Y/E Declaration tab been completed?
B24: Have schools completed the Accrue & Prepayments tabs ?
B25: Do the Accrue & Prepayment tab totals match the CEA Accrue & Prepay code? | D25: Check difference cell shows £0 on reserves tabs
B26: Does section 6 list the fixed budget profile as - 24/25 Final Closedown Figures?
B27: If not names 24/25 Final Closedown figures, what has the school named it
B28: Has SSCT amended the name to 24/25 Final Closedown Figures?
B29: Fund 01 Balance | D29: Per YE Declaration
B30: Fund 02 Balance | D30: Per YE Declaration
B31: Fund 08 Nursery (Day Care) Balance | D31: Per YE Declaration
B32: Fund 21 Extended Schools Balance | D32: Per YE Declaration
B33: Fund 22 Childrens Centre Balance | D33: Per YE Declaration
B34: Fund 23 Cluster Activities Balance | D34: Per YE Declaration
B35: Fund 24 Community Focused Balance | D35: Per YE Declaration
B36: TOTAL REVENUE | C36: =SUM(C29:C35) -> 0 | D36: DO NOT NEED TO COMPLETE BUT PLEASE CHECK THE ADDITION OF THE ABOVE FUND TOTALS MATCH THE BOTTOM LINE TOTAL OF THE 24/25 FINAL CLOSEDOWN FIGURES BUDGET WORKING PROFILE - CFR BUDGET MONITOR - REVENUE ACTUAL TOTAL (WILL BE THE OPPOSITE WAY AROUND)
B37: Fund 04 Devolved Formula Capital (DFC) Balance | D37: Per YE Declaration
B38: Fund 06 DFC Balance | D38: Per YE Declaration
B39: Fund 05 Other Capital Balance | D39: Per YE Declaration
B40: Fund 18 Capitalised Revenue Balance | D40: Per YE Declaration
B41: TOTAL CAPITAL | C41: =SUM(C37:C40) -> 0 | D41: DO NOT NEED TO COMPLETE BUT PLEASE CHECK THE ADDITION OF THE ABOVE FUND TOTALS MATCH THE BOTTOM LINE TOTAL OF THE 24/25 FINAL CLOSEDOWN FIGURES BUDGET WORKING PROFILE - CFR BUDGET MONITOR - REVENUE ACTUAL TOTAL (WILL BE THE OPPOSITE WAY AROUND)
B42: Ok / Issue? | C42: Add drop down for actual wording Issues or Ok | D42: Issue (Yes), No Issue (No)
B43: If no issues (ok) then create a tab that’s called Feedback. Copy and paste the YE declaration figures, then copy and paste the Assets and Liabilities section of the Trial Balance beside it. Remove the Fund Balances (opening balances) and amend the subtotals. Check both the YE declaration figure and the Trial Balance figrue is the same. Now do a screen shot of SBS CFR budget monitor showing the total - it should be the same figure. These should be included in the feedback email to the school and the FA. | D43: Issue (Yes), No Issue (No)
B44: Problems/Issues Details
B45: Email reply to school & FA stating issues or YE balances if no problems?
B46: Where is feedback email? Ok or Issues folder
B47: If all ok, has SSCT marked 24/25 Final Closedown Figures budget profile in SBS as published?
B48: Date the 24/25 Closedown figures budget in SBS was marked as published? | D48: DD/MM/YYYY
A49: The items contained within this list is a guide and if anything else is identified when completing the review of the SMER, this should be queried with the schools and should be resolved.

Sheet SSCT - 2526 Checklist
A1: Schools Strategy & Corporate Team - SMER Checklist (TO BE COMPLETED BY SSCT ONLY) | E1: Do not delete to the right | F1: Y
F2: N
B3: DfE Number | C3: ='SMER Summary 25-26'!D11 -> 2333 | F3: No but ok as Zero Balance on both codes
B4: School Name | C4: ='SMER Summary 25-26'!D13 -> Queen Edith Primary School | F4: Yes Creditors report, Not received Debtors as Zero Balance
B5: Platform | C5: ='SMER Summary 25-26'!H13 -> FMS | F5: Not received Creditors report as Zero Balance, Yes to Debtors report
F6: Recorded
B7: Checklist Item | C7: Result of Check | D7: Description of check | F7: Not recorded
A8: Schools Email Submission | B8: Date School Submitted SMER | D8: Input the date which the school emailed School month end returns inbox. This is used to check schools submit their returns within the agreed timescales. | F8: Done
B9: Email & SMER Saved? | D9: Confirm the email has been saved in the SMER folder. | F9: Not Done
A10: SSCT Member | B10: Initials | D10: Input your initials to confirm who has completed the checks. | F10: Issue
B11: Date Checked | D11: Input the date when the return was checked | F11: OK
A12: Reports Included? | B12: Cumulative Expense Analysis (CEA) Report | D12: Has the CEA Report or equivalent included in the submission on its own tab?
B13: Trial Balance Report | D13: Has the Trial Balance or equivalent been included in the submission on its own tab?
B14: Fund Review | D14: Has the Fund Review Report or equivalent been included in the submission on its own tab?
B15: VAT Submital reports | D15: Does the SMER include VAT Submittal reports for the correct periods on the VAT tabs? Does it include a Short Summary for a part complete period?
B16: Bank Statement & Unreconciled report | D16: Has school put report and statement on the tabs? If yes to both enter Y, if not please add details of whats not been seen
B17: Payroll EPM Report | D17: Has the EPM report been pasted in its own tab?
B18: Aged Creditors Report
B19: Aged Debtors Report
A20: Checks (SMERF) | B20: Download Funding Statement & add to tab | D20: Select Done when you have done so
B21: Is the Budget vs Actuals report on the SBS Budget vs Actuals report tab? | D21: This could be sent to us via email but in the main should be reviewed by school, updated and mentioned in section 8 of the SMER Summary. If as an attachment it will need to be downloaded checked the same and added to the SBS Budget vs Actual report please
D22: For YE Only: Leave in all year so that we don’t need to change school summary Have you copied and pasted columns A-N inclusive of the SBS Budget vs Actuals report into BVA Drop Table? This needs to be done please to create journals
B23: What is the Trial Balance - Balance sheet total? | D23: FMS Trial Balances - does not show a separate line for opening balances, so you can just take the Total Balance sheet tota from the Year to Date Balance column.
B24: FOR FMS, SAGE,XERO & (ACCESS?) - What is the total Income & Spend figure on the SBS Budget VS actual report excluding cfwds? | D24: Include Revenue, Extended and Capital
B25: Difference between Trial Balance - Balance sheet total & Total Income & Spend Figures on SBS | C25: =C23+C24 -> 0 | D25: Should be zero
B26: Is the CEA Balanced (YTD Actuals)? | D26: When adding up all of the actuals in the actuals column, this should come to Zero, if it does, please select Y. If it doesn’t please select N & contact Sam to see what is needed to be done.
B27: CEA Balance Sheet total (Column XXX) | D27: Go to CEA tab, highlight all columns to select all, then go to insert, pivot table, select exisiting workbook, then click on the arrow to the right of the location field and click on a blank cell to the right of the report on the CEA tab, press return and then ok. The pivot table will hw on the cell you selected. The Pivot tables field will appear to the right. Select Exclude Balance sheet accounts and value. this will appear in the bottom half of the screen, drag the sum exclude balance sheet accounts to the rows section. then click on the spreadsheet. The pivot table will then show you a total for "0"'s and one for "1"s. The 0's are the income and spend totals, the 1's show the balance sheet total. Include the 1s total as the CEA balance sheet total to the left
B28: Difference (CEA Balance Sheet Codes minus Trial Balance Sheet Codes) | C28: =C23-C27 -> 0
A29: School Month End Reconciliation Form (SMERF) | B29: 1. School Information | D29: Has the school fully completed the School Information section of the SMER, if yes, put Y in the cell to the left. If no, please add details on what they have and havent completed.
B30: 2. VAT Owed Reconciliation | D30: Check VAT Submittal amounts completed & reports included and the balance sheet value entered correctly & fully reconciles to submittals. (Y or N) If N please include what the difference is and reason why if known
B31: 2. VAT Data Input Summary | D31: If the VAT submittals are correct, and the VAT reconciliation is ok (Variance = £0), check to see if the full VAT quarters have been recorded on the VAT Data Input Summary tab in the Contact List spreadseheet. If it hasn’t, and your happy we can pay it, please record it in the contact lists VAT Data Input Symmary tab. Mark as recorded or not recorded in the left
B32: 3. NatWest Reconciliation | D32: Check bank statement balance at period end & unreconciled items amount equals balance sheet amount (Y or N) If N please include whats different (amounts and any details you know)
B33: 4. Payrol Control Reconciliation | D33: Check all payroll related amounts e.g. HMRC, Pension. equal balance sheet total reconcile back to the balance sheet total. If they don’t, please add details. Mark Y if ok
B34: 5. Opening Balances | D34: Check to ensure opening balances are correct in SBS & CEA, refer to reports in the yellow section (Y or N) If N please include what reports say what and what the issue is
B35: 6. Correct Signage of Aged Creditors on CEA? | D35: This should be a Credit (negative figure). Please add Y if correct, N & details if incorrect
B36: Aged Creditors Report: Does report match CEA?
B37: Aged Creditors Report: Does report match Trial Balance/Balance Sheet/Balances & Reserves?
B38: NOT TO BE CHECKED UNTIL SAM/JONTY ASKS - Are there any Creditors over X months old?
B39: 7. Correct Signage of Aged Debtors on CEA? | D39: This should be a Debit (Positive figure). Please add Y if correct, N & details if incorrect
B40: Aged Debtors Report: Does report match CEA?
B41: Aged Debtors Report: Does report match Trial Balance/Balance Sheet/Balances & Reserves?
B42: NOT TO BE CHECKED UNTIL SAM/JONTY ASKS - Are there any Debtors over X months old?
B43: 8. Confirmation | D43: Check this section has been completed in full. If it has put a "Y", if it hasn’t then put a "N" and add details to this cell.
B44: Is the name of 'Locked' Budget showing latest Forecast/Projected Outturn in SBS at the time of completing this SMER listed in Section 6, Locked on SBS? | D44: If no enter details in the cell to the left
B45: Does the CEA show the Rates Journals required? If it doesn’t please add notes to the left. If ok add Y
B46: Are the Accruals & Prepayments codes Clear/Zero on the CEA? (Y = Yes, N=No) | D46: Pre year end. ACCRUE, PREPAY & ACCINT codes should all be zero (0.00). Entries should have been reversed in period 1 of 25/26 to the exact pence.
B47: Are these codes zero on the CEA? SUSPENSE-01, Contingency Fund - 47570750-01, 02 etc, Contribution to Reserves - 47570600-01, 02 etc, Unallocated - 47570700-01, 02 etc? | D47: Add details of the codes that aren't zero to the left or if all zero then, Y
B48: Has school been told they can close 24/25? | D48: If yes, add the date the school was told to. If been told in previous months, this will be shown on last months tab in the Contact List.
B49: Any additional notes relating to the SMER | D49: Add any additional findings or queries here
A50: SBS Online | B50: I01 - Formula Funding | D50: Using the funding statement tab check the CFR actual equals the total funded, is the SBS Budget vs Actuals report showing the same figure for this CFR on the funding statement? If its not, please add why in the cell to the left
B51: CI01 DFC Funding | D51: Using the funding statement tab check the CFR actual equals the total funded, is the SBS Budget vs Actuals report showing the same figure for this CFR on the funding statement? If its not, please add why in the cell to the left
B52: I02 - Sixth Form Funding | D52: Using the funding statement tab check the CFR actual equals the total funded, is the SBS Budget vs Actuals report showing the same figure for this CFR on the funding statement? If its not, please add why in the cell to the left
B53: I03 - SEN Funding | D53: Using the funding statement tab check the CFR actual equals the total funded, is the SBS Budget vs Actuals report showing the same figure for this CFR on the funding statement? If its not, please add why in the cell to the left
B54: I05 - Pupil Premium Funding | D54: Using the funding statement tab check the CFR actual equals the total funded, is the SBS Budget vs Actuals report showing the same figure for this CFR on the funding statement? If its not, please add why in the cell to the left
B55: I06 - Other Government Grants - Does SBS show more than the funding statement? | D55: If yes, this is ok. If less on SBS than Funding statement please add details to the left
B56: Is I16 showing correctly per the funding statement (This is income for extended) - This should be coded per the coding on the funding statement | D56: Using the funding statement tab check the CFR actual equals the total funded, is the SBS Budget vs Actuals report showing the same figure for this CFR on the funding statement? If its not, please add why in the cell to the left
B57: I18C - Income From Grants Provided in Relation To Coronavirus (COVID-19) Catch-up Activity - IsYTD Zero? | D57: I18C should be zero WEF 1.4.25. If it is add a Y to the left, if not please add details (discuss with Sam/Jonty if needed)
B58: I18D - Income From Other Additional Grants - Is YTD zero? | D58: I18D should be zero WEF 1.4.25. If it is add a Y to the left, if not please add details (discuss with Sam/Jonty if needed)
B59: Charges / Income - Capital | D59: Using the funding statement check the CFR actual equals the total funded, is the SBS Budget vs Actuals report showing the same figure for this on the funding statement? If its not, please add why in the cell to the left Has school got 888's & Opposite 999's in Fund 05?
B60: Check budget / ledger codes use the correct 'Fund' - is everything ok? | D60: Check that all budget / ledger codes are using the correct fund code e.g. -01, -04, check '888' and related '999' spend on Fund 05 etc.
B61: Check all Income CFR's | D61: Check all CFR totals are income entries. If ok enter Y, if not ok add details
B62: Check all Expenditure CFR's | D62: Check all expenditure CFR totals are expenditure entries. If ok enter Y, if not ok add details
B63: On the Budget vs Actuals download, is the Income in the YTD Actuals column and Projected YE Outturn column as a "+"? | D63: Income should be shown as Positive figures, if they are not, we will need to ask school to remove their CEA and re import (whilst importing they will need to deselect (untoggle) (make grey) Income as Positive)
B64: Any additional notes relating to SBS | D64: Add any additional findings or queries related to SBS should be entered here.
A65: Predicted YE position | B65: Fund 01 | D65: Surplus as Positives, Deficits as Negatives
B66: Fund 02 | D66: Surplus as Positives, Deficits as Negatives
B67: Fund 08 Nursery (Day Care) | D67: Surplus as Positives, Deficits as Negatives
B68: Fund 22 Childrens Centre | D68: Surplus as Positives, Deficits as Negatives
B69: Fund 24 Community Focused | D69: Surplus as Positives, Deficits as Negatives
B70: Fund 21 Extended Schools | D70: Surplus as Positives, Deficits as Negatives
B71: Fund 23 Cluster Activities | D71: Surplus as Positives, Deficits as Negatives
B72: Fund 04 DFC | D72: Surplus as Positives, Deficits as Negatives
B73: Fund 06 DFC | D73: Surplus as Positives, Deficits as Negatives
B74: Fund 05 Other Capital | D74: Surplus as Positives, Deficits as Negatives
B75: Non CFR F05 (Eddies transfers - should be net nil) | D75: Surplus as Positives, Deficits as Negatives
B76: Fund 18 Cap Revenue | D76: Surplus as Positives, Deficits as Negatives
B77: Total | C77: =SUM(C65:C76) -> 0 | D77: Surplus as Positives, Deficits as Negatives
D78: Check to Declaration: To be left in for 2526 year end May be different if schools have a balance on Fund 21, 23 or ZZZ. These will need to be discussed with Sam/Jonty to decide if school has accounted for these correctly. As these are not on the declaration tab or journal tabs
A79: YE Balances | D79: YE Balance on Credit Card To be left in for 2526 year End Per CEA / YE Balance Sheet Journal
D80: YE Balance on Cashflow Advance To be left in for 2526 year end Per CEA and the YE Balance Sheet Journal
A81: Tracking | B81: Were there issues highlighted last month, that have still not been resolved? | D81: Please add details if this is the case and date first raised
A82: Feedback | B82: Additional Feedback | D82: Note down any other queries, errors or anomalies.
B83: Copied in FA?
B84: Date Feedback Sent to school and FA | D84: Input the date which feedback was sent to school.
B85: Feedback Email Saved | D85: Feedback email to be saved in feedback folder
A86: YEAR END ONLY | B86: Does SSCT BVA report match what schools have added to SBS Budget vs Actuals report tab
B87: If school has coded anything to the 888's code or 999's, do both codes added together total £0.00? | D87: CCC pay school for works to be completed via the funding statement, income in school gets coded to 888's-05. At year end the 888's & 999's codes should total to zero, this is because the costs will be accounted for in the CCC accounts. If they don’t total zero, school will need to enter a year end journal to zero the code, if they are sure the spend is correcly coded/not coded at all as invoice hasn't been entered. If received income in 888's & either not spent or spent part & expenditure is correctly coded, they will need to do a Receipt in Advance for the balance
B88: Does SMER include Aged Debt & Creditors report that matches the Balance Sheet totals? | D88: Not needed if creditor control account or debtor control accounts are showing as £0.00 If we cant get a report, we shouldn’t hold up journal entry if this is the only thing wrong with the SMER
B89: Have schools completed the Accrue & Prepayments tabs ?
B90: Do the Accrue & Prepayment tab totals match the CEA/Balance Sheet Accrue & Prepay code? | D90: Check difference cell shows £0 on reserves tabs
B91: Do the accruals and prepayments look correct? Correct values, descriptions match type of year end adjustment etc
B92: Has the Y/E Declaration tab been completed?
B93: Is the check on the Y/E Declaraion tab to Balance Sheet showing a zero variance? | D93: This should be, if it doesn’t please let Sam know asap and don’t feedback to schools until this is zero
B94: Revenue Journal Template - Have you Changed name in Cell B1 to school SMER relates to?
B95: Revenue Journal Template - is income as positive?
B96: Revenue Journal Template checks - are they ok (zero) in cells J1&2 & E1? | D96: If they are not, please tell Sam ASAP
B97: Capital Journal Template checks - are they ok (zero) in cells J1&2 & E1? | D97: If they are not, please tell Sam ASAP
B98: Balance Sheet Journal Template - Have you copied and pasted values your CEA Balance sheet codes & amounts into the yellow cells B5 to 29 & C5 to C29?
B99: Balance sheet journal tab - Are checks in C48, C49, M1 & M2 zero? | D99: If they are not, please tell Sam ASAP
B100: Are all checks ok on the Journal Checks tab? Are they zero? | D100: If they are not, please tell Sam ASAP
B101: CFR Tab - are checks in column DB to DF zero? | D101: If they are not, please tell Sam ASAP
B102: Ok / Issue?
B103: Problems/Issues Details
B104: Where is feedback email? Ok or Issues folder
A106: If federated school (Kings, Queens & Trupington Fed) please do all of the checks, but when done please tell Sam before feeding back to school. She will need to change the Cost Centres and description of line to the correct school details on the journal tabs. She will also need to changeon the YE declaration tab the closing balance CFR B0X Code balances for committed spend if relating to federated schools that feeds the CFR tab.
A108: The items contained within this list is a guide and if anything else is identified when completing the review of the SMER, this should be queried with the schools and should be resolved.
B112: YEAR END CHECK ROWS HAVE BEEN HIDDEN - PLEASE COPY ALL TOGETHER AND PASTE INTO THE CONTACT LIST

Sheet SSCT -2526 YECombined Checklist
A1: Schools Strategy & Corporate Team - SMER Checklist (TO BE COMPLETED BY SSCT ONLY) | E1: Do not delete to the right | F1: Y
F2: N
B3: DfE Number | C3: ='SMER Summary 25-26'!D11 -> 2333 | F3: Recorded
B4: School Name | C4: ='SMER Summary 25-26'!D13 -> Queen Edith Primary School | F4: Not recorded
B5: Platform | C5: ='SMER Summary 25-26'!H13 -> FMS | F5: Done
F6: Not Done
B7: Checklist Item | C7: Result of Check | D7: Description of check | F7: No but ok as Zero Balance on both codes
A8: Schools Email Submission | B8: Date School Submitted SMER | D8: Input the date which the school emailed School month end returns inbox. This is used to check schools submit their returns within the agreed timescales. | F8: Yes Creditors report, Not received Debtors as Zero Balance
B9: Email & SMER Saved? | D9: Need to save YE SMER email received from school in the folder (1. Emails from school) Save the SMER as SMER 2526 YE Name - SSCT. Do not add to the ok or issues folder until checks are complete | F9: Not received Creditors report as Zero Balance, Yes to Debtors report
A10: SSCT Member | B10: Initials | D10: Input your initials to confirm who has completed the checks. | F10: Issue
B11: Date Checked | D11: Input the date when the return was checked | F11: OK
A12: Reports Included? | B12: Cumulative Expense Analysis (CEA) Report | D12: Has the CEA Report or equivalent included in the submission on its own tab?
B13: Trial Balance Report | D13: Has the Trial Balance or equivalent been included in the submission on its own tab?
B14: Fund Review | D14: Has the Fund Review Report or equivalent been included in the submission on its own tab?
B15: VAT Submital reports | D15: Does the SMER include VAT Submittal reports for the correct periods on the VAT tabs? Does it include a Short Summary for a part complete period?
B16: Bank Statement & Unreconciled report | D16: Has school put unreconciled bank items report and copy of their bank statement on the tabs? If yes to both enter Y, if not please add details of whats not been seen
B17: Payroll EPM Report | D17: Has the EPM report been pasted in its own tab?
B18: Aged Creditors Report | D18: Has the Aged Creditors report been pasted in its own tab?
B19: Aged Debtors Report | D19: Has the Aged Debtors report been pasted in its own tab?
A20: Checks (SMERF) | B20: Download Funding Statement & add to tab | D20: Select Done when you have done so
B21: Is the Budget vs Actuals report on the SBS Budget vs Actuals report tab? | D21: This could be sent to us via email but in the main should be reviewed by school, updated and mentioned in section 8 of the SMER Summary. If as an attachment it will need to be downloaded checked the same and added to the SBS Budget vs Actual report please
B22: Have you copied and pasted columns A-O inclusive of the SBS Budget vs Actuals report into BVA Drop Table? | D22: This needs to be done please to create journals
B23: What is the Trial Balance - Balance sheet total? | D23: FMS Trial Balances - does not show a separate line for opening balances, so you can just take the Total Balance sheet tota from the Year to Date Balance column. Bromcom Only Note - Bromcom schools use various reports to show their Balance sheet position. The Trial Balance by IE Report includes the opening balances (Retained Earnings), so you will need to remove the opening balances figure from the total to compare with the below figure off SBS Budget vs Actuals report. But some reports do not include cfwds (on the Balances & Reserves report) so Assest minus liabilities already equals SBS Budget vs Actuals (BM) report. There is therefore no need to remove Cfwds from this figure. This will match the overall total on the SBS Budget vs Actuals report
B24: FOR FMS, SAGE,XERO & (ACCESS?) - What is the total Income & Spend figure on the SBS Budget VS actual report excluding cfwds? FOR BROMCOM -What is the total Income & Spend figure on the SBS Budget vs Actuals report? | D24: Include Revenue, Extended and Capital
B25: Difference between Trial Balance - Balance sheet total & Total Income & Spend Figures on SBS | C25: =C23+C24 -> 0 | D25: Should be zero
B26: Is the CEA Balanced (YTD Actuals)? | D26: When adding up all of the actuals in the actuals column, this should come to Zero, if it does, please select Y. If it doesn’t please select N & contact Sam to see what is needed to be done.
B27: CEA Balance Sheet total (Column XXX) | D27: Go to CEA tab, highlight all columns to select all, then go to insert, pivot table, select exisiting workbook, then click on the arrow to the right of the location field and click on a blank cell to the right of the report on the CEA tab, press return and then ok. The pivot table will hw on the cell you selected. The Pivot tables field will appear to the right. Select Exclude Balance sheet accounts and value. this will appear in the bottom half of the screen, drag the sum exclude balance sheet accounts to the rows section. then click on the spreadsheet. The pivot table will then show you a total for "0"'s and one for "1"s. The 0's are the income and spend totals, the 1's show the balance sheet total. Include the 1s total as the CEA balance sheet total to the left
B28: Difference (CEA Balance Sheet Codes minus Trial Balance Sheet Codes) | C28: =C27-C23 -> 0
A29: School Month End Reconciliation Form (SMERF) | B29: 1. School Information | D29: Has the school fully completed the School Information section of the SMER, if yes, put Y in the cell to the left. If no, please add details on what they have and havent completed.
B30: 2. VAT Owed Reconciliation | D30: Check VAT Submittal amounts completed & reports included and the balance sheet value entered correctly & fully reconciles to submittals. (Y or N) If N please include what the difference is and reason why if known
B31: 2. VAT Data Input Summary | D31: If the VAT submittals are correct, and the VAT reconciliation is ok (Variance = £0), check to see if the full VAT quarters have been recorded on the VAT Data Input Summary tab in the Contact List spreadseheet. If it hasn’t, and your happy we can pay it, please record it in the contact lists VAT Data Input Symmary tab. Mark as recorded or not recorded in the left
B32: 3. NatWest Reconciliation | D32: Check bank statement balance at period end & unreconciled items amount equals balance sheet amount (Y or N) If N please include whats different (amounts and any details you know)
B33: 4. Payrol Control Reconciliation | D33: Check all payroll related amounts e.g. HMRC, Pension. equal balance sheet total reconcile back to the balance sheet total. If they don’t, please add details. Mark Y if ok
B34: 5. Opening Balances | D34: Check to ensure opening balances are correct in SBS & CEA, refer to reports in the yellow section (Y or N) If N please include what reports say what and what the issue is
B35: 6. Correct Signage of Aged Creditors on CEA? | D35: Should be a Credit balance
B36: Aged Creditors Report: Does report match CEA?
B37: Aged Creditors Report: Does report match Trial Balance/Balance Sheet/Balances & Reserves?
B38: NOT TO BE CHECKED UNTIL SAM/JONTY ASKS - Are there any Creditors over X months old?
B39: 7. Correct Signage of Aged Debtors on CEA? | D39: Should be a Debit balance
B40: Aged Debtors Report: Does report match CEA?
B41: Aged Debtors Report: Does report match Trial Balance/Balance Sheet/Balances & Reserves?
B42: NOT TO BE CHECKED UNTIL SAM/JONTY ASKS - Are there any Debtors over X months old?
B43: 8. Confirmation
B44: Is the name of 'Locked' Budget showing latest Forecast/Projected Outturn in SBS at the time of completing this SMER listed in Section 6, Locked on SBS? | D44: At year end this should have final in the name of the budget, and it should be locked
B45: Does the CEA show the Rates Journals required? If it doesn’t please add notes to the left. If ok add Y
B46: Are the Accruals & Prepayments codes Clear/Zero on the CEA? (Y = Yes, N=No) | C46: n/a | D46: Pre year end only. ACCRUE, PREPAY & ACCINT codes should all be zero (0.00). Entries should have been reversed in period 1 of 24/25 to the exact pence.
B47: Are these codes zero on the CEA? SUSPENSE-01, Contingency Fund - 47570750-01, 02 etc, Contribution to Reserves - 47570600-01, 02 etc, Unallocated - 47570700-01, 02 etc? | D47: Add details of the codes that aren't zero to the left or if all zero then, Y
B48: Has school been told they can close 24/25? | D48: If yes, add the date the school was told to. If been told in previous months, this will be shown on last months tab in the Contact List. Eg Column BP on December 24 tab
B49: Any additional notes relating to the SMER | D49: Add any additional findings or queries here
A50: SBS Online | B50: I01 - Formula Funding | D50: Using the funding statement tab check the CFR actual equals the total funded, is the SBS Budget vs Actuals report showing the same figure for this CFR on the funding statement? If its not, please add why in the cell to the left
B51: CI01 DFC Funding
B52: I02 - Sixth Form Funding
B53: I03 - SEN Funding
B54: I05 - Pupil Premium Funding
B55: I06 - Other Government Grants - Does SBS show more than the funding statement?
B56: Is I16 showing correctly per the funding statement (This is income for extended) - This should be coded per the coding on the funding statement
B57: I18C - Income From Grants Provided in Relation To Coronavirus (COVID-19) Catch-up Activity - IsYTD Zero?
B58: I18D - Income From Other Additional Grants - Is YTD zero?
B59: Charges / Income - Capital | D59: Using the funding statement check the CFR actual equals the total funded, is the SBS Budget vs Actuals report showing the same figure for this on the funding statement? If its not, please add why in the cell to the left Has school got 888's & Opposite 999's in Fund 05?
B60: Check budget / ledger codes use the correct 'Fund' - is everything ok? | D60: Check that all budget / ledger codes are using the correct fund code e.g. -01, -04, check '888' and related '999' spend on Fund 05 etc.
B61: Check all Income CFR's | D61: Check all CFR totals are income entries. If ok enter Y, if not ok add details
B62: Check all Expenditure CFR's | D62: Check all expenditure CFR totals are expenditure entries. If ok enter Y, if not ok add details
B63: On the SBS Budget vs Actuals download, is the Income in the YTD Actuals column and Projected YE Outturn column as a "+"? | D63: THIS NEEDS TO BE SHOWN AS POSITIVE FOR THE CFR TEMPLATE ETC TO WORK
B64: Any additional notes relating to SBS | D64: Add any additional findings or queries related to SBS should be entered here.
A65: Projected YE position/ Final Year End Position | B65: Fund 01 | C65: ='YE Declaration'!C33 -> 176505.36 | D65: Linked to Declaration tab. This figure will only be correct if you have copied and pasted the SBS Budget vs actuals original report cells into the BVA Drop table tab. Surplus as Positives, Deficits as Negatives
B66: Fund 02 | C66: ='YE Declaration'!D33 -> -468387.19 | D66: Linked to Declaration tab. This figure will only be correct if you have copied and pasted the SBS Budget vs actuals original report cells into the BVA Drop table tab. Surplus as Positives, Deficits as Negatives
B67: Fund 08 Nursery (Day Care) | C67: ='YE Declaration'!E33 -> 0 | D67: Linked to Declaration tab. This figure will only be correct if you have copied and pasted the SBS Budget vs actuals original report cells into the BVA Drop table tab. Surplus as Positives, Deficits as Negatives
B68: Fund 22 Childrens Centre | C68: ='YE Declaration'!F33 -> 0 | D68: Linked to Declaration tab. This figure will only be correct if you have copied and pasted the SBS Budget vs actuals original report cells into the BVA Drop table tab. Surplus as Positives, Deficits as Negatives
B69: Fund 24 Community Focused | C69: ='YE Declaration'!G33 -> 0 | D69: Linked to Declaration tab. This figure will only be correct if you have copied and pasted the SBS Budget vs actuals original report cells into the BVA Drop table tab. Surplus as Positives, Deficits as Negatives
B70: Fund 21 Extended Schools | D70: Please add balance if use this fund even if balance is £0.00, please leave blank if school doesn’t use this fund
B71: Fund 23 Cluster Activities | D71: Please add balance if use this fund even if balance is £0.00, please leave blank if school doesn’t use this fund
B72: Fund 04 DFC | C72: ='YE Declaration'!I33 -> 32962.48 | D72: Linked to Declaration tab. This figure will only be correct if you have copied and pasted the SBS Budget vs actuals original report cells into the BVA Drop table tab. Surplus as Positives, Deficits as Negatives
B73: Fund 06 DFC | C73: ='YE Declaration'!J33 -> 47145.75 | D73: Linked to Declaration tab. This figure will only be correct if you have copied and pasted the SBS Budget vs actuals original report cells into the BVA Drop table tab. Surplus as Positives, Deficits as Negatives
B74: Fund 05 Other Capital | C74: ='YE Declaration'!K33 -> 0 | D74: Linked to Declaration tab. This figure will only be correct if you have copied and pasted the SBS Budget vs actuals original report cells into the BVA Drop table tab. Surplus as Positives, Deficits as Negatives
B75: Non CFR F05 (Eddies transfers - should be net nil) | D75: Please add balance if have entries against CFR ZZZ even if balance is £0.00, please leave blank if school doesn’t have anything in this CFR code
B76: Fund 18 Cap Revenue | C76: ='YE Declaration'!L33 -> 0 | D76: Linked to Declaration tab. This figure will only be correct if you have copied and pasted the SBS Budget vs actuals original report cells into the BVA Drop table tab. Surplus as Positives, Deficits as Negatives
B77: Total | C77: =C76+C75+C74+C73+C72+C71+C70+C69+C68+C67+C66+C65 -> -211773.6 | D77: Surplus as Positives, Deficits as Negatives
A78: YE Balances | B78: Check to YE Declaration | C78: =C77-'YE Declaration'!M33 -> 0 | D78: May be different if schools have a balance on Fund 21, 23 or ZZZ. These will need to be discussed with Sam/Jonty to decide if school has accounted for these correctly. As these are not on the declaration tab or journal tabs
B79: YE Balance on Credit Card | C79: ='Balance Sheet Journal Template'!C35 -> 0 | D79: Per CEA / YE Balance Sheet Journal
B80: YE Balance on Cashflow Advance | C80: ='Balance Sheet Journal Template'!C43 -> 0 | D80: Per CEA and the YE Balance Sheet Journal
A81: Tracking | B81: Were there issues highlighted last month, that have still not been resolved?
A82: Feedback | B82: Additional Feedback | D82: Note down any other queries, errors or anomalies.
B83: Copied in FA? | C83: Not applicable at year end -this is below
B84: Date Feedback Sent to school and FA | C84: Not applicable at year end -this is below | D84: Input the date which feedback was sent to school.
B85: Feedback Email Saved | C85: Not applicable at year end -this is below | D85: Feedback email to be saved in feedback folder
A86: YEAR END ONLY | B86: Does SSCT BVA report match what schools have added to SBS Budget vs Actuals report tab
B87: If school has coded anything to the 888's code or 999's, do both codes added together total £0.00? | D87: CCC pay school for works to be completed via the funding statement, income in school gets coded to 888's-05. At year end the 888's & 999's codes should total to zero, this is because the costs will be accounted for in the CCC accounts. If they don’t total zero, school will need to enter a year end journal to zero the code, if they are sure the spend is correcly coded/not coded at all as invoice hasn't been entered. If received income in 888's & either not spent or spent part & expenditure is correctly coded, they will need to do a Receipt in Advance for the balance
B88: Does SMER include Aged Debt & Creditors report that matches the Balance Sheet totals? | D88: Not needed if creditor control account or debtor control accounts are showing as £0.00 If we cant get a report, we shouldn’t hold up journal entry if this is the only thing wrong with the SMER
B89: Have schools completed the Accrue & Prepayments tabs ?
B90: Do the Accrue & Prepayment tab totals match the CEA/Balance Sheet Accrue & Prepay code? | D90: Check difference cell shows £0 on reserves tabs
B91: Do the accruals and prepayments look correct? Correct values, descriptions match type of year end adjustment etc
B92: Has the Y/E Declaration tab been completed?
B93: Is the check on the Y/E Declaraion tab to Balance Sheet showing a zero variance? Cell C37 | D93: This should be, if it doesn’t please let Sam know asap and don’t feedback to schools until this is zero
B94: Revenue Journal Template - Have you Changed name in Cell B2 to school SMER relates to?
B95: Revenue Journal Template - is income as positive? | D95: THIS MUST BE POSITIVE. IF ITS NOT AND ALL OK WITH SMER, REMOVE CEA FROM SBS, IMPORT BY DESLECTING INCOME AS POSITIVE, THEN RE RUN REPORTS, ADD NEW REPORTS TO BVA TAB, SBS BVA TAB ETC
B96: Revenue Journal Template checks - are they ok (zero) in cells I1&2? | D96: If they are not, please tell Sam ASAP
B97: Capital Journal Template checks - are they ok (zero) in cells I1&2? | D97: If they are not, please tell Sam ASAP
B98: Balance Sheet Journal Template - Have you copied and pasted values your CEA Balance sheet codes & amounts into the yellow cells B5 to 29 & C5 to C29?
B99: Balance sheet journal tab - Are checks in C48, C49, M1 & M2 zero? | D99: If they are not, please tell Sam ASAP
B100: Are all checks ok on the Journal Checks tab? Are they zero? | D100: If they are not, please tell Sam ASAP
B101: CFR Tab - are checks in column DB to DI zero? | D101: If they are not, please tell Sam ASAP
B102: Ok / Issue? | D102: IF NO ISSUES, move the SMER to the OK folder. Then complete the Feedback tab. Do this by copying &pasting the YE declaration figures into it, then copy&paste the Assets and Liabilities section of the Trial Balance beside it. Remove the Fund Balances (opening bals) & amend the subtotals. Check both the YE declaration figure &the Trial Balance figures are the same.Now do a screen shot of SBS BvA report showing the totals-it should be the same figure. These should be included in the feedback email to the school and the SFA.
B103: Problems/Issues Details | D103: ADD DETAILS OF ALL ISSUES IN THE CELL TO THE LEFT. IF ISSUES and waiting for reply from school move this to the issues folder. Once Issues are resolved, save the final SMER in ok folder. Move all previous versions into the Ok folder but in the superseded folder within it
B104: Where is feedback email & SMER saved? Ok or Issues folder | D104: Complete feedback per the Year End Information tab
A105: Contact List Checks | B105: Schools FA
B106: Paid ICT | D106: Yes or No
B107: Can school close 24/25? If done, what date was it asked to? | D107: This isnt really applicable at YE as most system wont allow you to do the next year end without the previous year being closed
B108: Sent everything to us?
B109: On time?
B110: Completing correctly?
B116: The items contained within this list is a guide and if anything else is identified when completing the review of the SMER, this should be queried with the schools and should be resolved.
B118: If federated school (Kings, Queens & Trupington Fed) please do all of the checks, but when done please tell Sam before feeding back to school. She will need to change the Cost Centres and description of line to the correct school details on the journal tabs. She will also need to changeon the YE declaration tab the closing balance CFR B0X Code balances for committed spend if relating to federated schools that feeds the CFR tab.

Sheet Instructions
A1: Instructions - School Month End Reconciliation (SMER) Form 2025-26 | R1: Click here for 'SMER Summary 25-26' tab
A3: Please ensure you have posted all of your journals (including your Payroll Journals) before running any month end reports.
A5: Please also ensure you have entered your Opening Balance budgets on SBS before entering anything else into SBS by following this procedure:
A6: You will only need to enter the Opening Balances once.
A7: To add an Opening Balance in SBS, please go to: Budgeting > Overview > Opening Balances > Add
A12: Enter values into each field as required:
A13: · Type – select the type from the dropdown to determine the stream in which it will be shown (revenue, capital or extended).
A14: · Description – enter a description for the Opening Balance.
A15: · Value – enter the value. A deficit figure should be entered with a negative sign.
A16: The Value amount must equal the amount SSCT confirmed as your closing balances for each fund. These amounts also appear on your SMERs opening balances tab.
A17: This amount should also equal your actuals on your own finance system
A18: If they are not the same, please contact SSCT via the bank.account@cambridgeshire.gov.uk email address to discuss.
A19: At the moment, the Budget vs Actuals report isn't showing separate Opening Balances for each fund even if you add it in individually. So for now, please just add 3 entries in this screen; a total for revenue, one for capital and one for extended. Add a details saying Fund 04 £x, fund 05 £x Etc
A20: Click Save & Close.
A21: Note that Opening Balances are Budget-specific, meaning that the numbers you enter for each will be displayed in the Brought Forward section on reports in year 1 of the current Budget.
A24: There are 3 main steps when completing a standard School Month End Reconciliation (SMER) process:
A26: 1. | B26: Firstly, the below reports are to be downloaded from your school finance system for the period end:
B27: a. Cumulative Expense Analysis (CEA) – in CSV format
B29: FMS - Reports | General Ledger | Analysis CEA | Select Cost Centre bullet | Do not tick Exclude Balance Sheet Accounts | Tick all others | Select Period
B30: SAGE / XERO - Conversion sheet result page
B32: b. Fund Review – in excel format
B33: This needs to be copied and pasted onto the yellow 'Fund Review' tab within the SMER 25-26 excel file.
B35: FMS - Reports | General Ledger | Fund Review | Ensure in current Financial year
B37: SAGE / XERO - Text saying Opening balance detail in CEA tab
B39: c. Trial Balance IE Summary– in excel format
B40: This needs to be copied and pasted onto the yellow 'Trial Balance' tab within the SMER 25-26 excel file.
B42: FMS - Reports | General Ledger | Trial Balance | Trial balance by I & E and Balance Sheet | Summary | Select Period
B44: SAGE - Nominal Ledger Trial Balance - Summarised
B45: XERO - Trial balance report, showing all codes
B47: d. Aged Creditors and Aged Debtors reports
B48: - Please copy and paste these reports into the Aged Creditors and Aged Debtors tabs & complete sections 6 & 7 of the SMER Summary tab.
A49: After running these reports, you will need to manually amend the CEA report.
A51: The minimum columns needed on your CEA report are:
A52: Column Headers | C52: What should be included in this column
A53: BudgetCode | C53: Budget Ledger Code
A54: CostCentre | C54: Cost Centre Code
A55: Type | C55: Type in the word “Actuals” on each row
C56: This is new for the upgraded SBS, it will not automatically appear from your system
C58: You will need to manually add a column header called “Type”.
A59: Value | C59: This shows your Year to Date (YTD) actual values
A60: Descriptions | C60: Budget Ledger Code Description
A61: BudgetCodeFilter | C61: Your schools 4 number DFE number typed in every row (last 4 numbers)
C62: This is new for the upgraded SBS, it will not automatically appear from your system
C63: You will need to manually add a column header called “School ID” & type in your DFE number against every row.
A65: You do not need to delete any of the other columns you have on your CEA report, they will just be ignored when the report is imported into SBS.
A66: Please make sure your report includes column headers – it will make it a lot easier for you later in the process.
B68: Now you need to prepare the file/report for import. To do this, please do the below:
B69: 1) Remove any subtotals or blank lines, it is recommended to keep a header row on the file (Column headers)
B70: 2) Add a column called Type. Please type in the word “Actuals” under this column header on all rows. An easy way of doing this, is type Actuals on the first row under the column header Type, then copy this and paste values in all the other rows.
B71: 3) In the School ID column, add the last 4 numbers of your DFE number on each row under this column. An easy way of doing this, is type it on the first row, then copy this and paste values in all the other rows. The same DFE number needs to appear on all rows under the column header “School ID”.
B72: 4) Save the file as a CSV. Comma Delimited
B74: - This needs to be copied and pasted onto the yellow 'CEA' tab within the SMER 25-26 excel file. *Save this file for the SBS upload process*
B75: - This should be a report of all codes (including Balance Sheet codes) as at the relevant period
A77: 2. | B77: School Month End Reconciliation (SMER) Form, enables you to confirm and check the following month end reconciliations have been completed:
B79: a. VAT Owed
B80: b. NatWest Bank
B81: c. Payroll Control
B82: d. Opening Balances
A84: 3. | B84: Completing the School Month End Reconciiation (SMER) Form
B86: Section 1 - School Information
B87: - Enter the month end you are checking and reconciling from the drop down in cell D9.
B88: - Enter the last 4 digits of your schools DfE number into cell D11 or select from the drop down box.
B90: Section 2 - VAT Owed - Reconciliation
B108: The VAT tabs should show copied data from the VAT submittals for each quarter. These submittals are the reports run from FMS, saved into Excel format within your finance folders, as per your FMS training.
B109: You need to run the submittal as a PDF (as previously done before "Making Tax Digital" was available) before running the submittal into Excel format
B110: You need to copy / paste the data from the excel submittal into the relevant submittal tab (do this by "PASTE" rather than "PASTE SPECIAL")
B111: We ask you to type in the VAT to reclaim for each Submittal or short summary. Please do NOT copy/paste.
B112: The column on the reconciliations tab for “Outstanding” relates to whether each submittal is outstanding for refund or not. This allows you to keep a record of all the submittals, but only include the outstanding ones in the reconciliation of VAT due to your school.
B113: There is a yellow box in the VAT section to explain any differences left after the data has been entered.
B114: The submittals are the reports of the completed quarters, and the “VAT Short Summary – Present quarter” is for the Short Summary report for the existing quarter (Non-FMS schools need to complete equivalent reports)
B115: (for example if you are doing month end work on the 3rd October, you will have VAT submittals for Q1 and Q2, and a VAT Short Summary for the period October to December with only 3 days worth of VAT so far).
B116: Each months return should have a short summary for the existing calendar quarter
B118: FMS - Using the report saved onto the 'Trial Balance' tab, you need to enter both the Input and Output values onto the relevant VAT line.
B119: SAGE - VI total should be total of all Input VAT codes (which are all codes beginning with VEX), VO total should be all Output VAT code (beginning VIN)
B120: XERO - Please enter total of "VAT" code
B121: FMS & SAGE - VREFS figures should be taken from Column E of the CEA tab (not applicable for XERO)
B122: Section 3 - NatWest Bank - Reconciliation
B134: The NatWest Bank Reconcilaition allows you to check the bank statement against the bank balance within FMS.
B135: The FMS figure shows automatically, you just need to enter the figure from the bank statement, and the total of the “Unreconciled items” that is a list of items on your system that have not yet been through the bank.
B136: If you have Unreconciled Items, please add the details of these on the Bank - Unreconciled tab.
B137: This should all reconcile, but any difference can be explained in the yellow box.
B138: Please add a screen shot of your Bank Statement showing the balance you have entered in the reconciliation on the Bank Statement tab.
B139: Section 4 - Payroll Control - Reconciliation
B156: This is different to the SBS Payroll Reconciliation.
B157: This reconcilaition is checking your Payrol Control journal in FMS is correct and that you have entered and are being charged the correct amount through the bank for Payrol charges
B158: The payroll control reconciliation allows you to check that the pay costs that you are still expecting, match against the Payroll Control code. The yellow cells are the most likely items that may or may not need to be included in the calculation, but use this in the best way for you.
B159: We suggest that to find any differences, you check on the transactions for each month within a transactions list of code PAYROLL
B160: The total transactions for each month should show £0.
B161: If they do not, then investigate what has been missed, and if necessary contact SSCT for advice.
B162: Please add a copy of your latest EPM Summary report to the EPM Summary tab. The figures you enter in the Payrol Reconciliation should be shown on this report plus any historical balances (if you have any)
B164: Section 5 - Opening Balances - Reconciliation
B177: Using the CEA report you can complete the fund balances highlighted in yellow.
B178: Any Variances need to be investigated.
B179: Please contact SSCT if you have any concern or queries
B181: The Cumulative Expense Analysis (CEA) report needs to be uploaded into SBS, using the same report downloaded during step 1.
B183: You now need to upload the CEA downloaded and amended per the above instructions
B185: Go to Console > Monitoring > Actuals & Commitments
B196: It will bring up this screen:
B202: To the right, select the month and year as required, here:
I203: If you are importing the CEA that inlcludes the actuals for 1st April 25 to 31 January 26, please change this to January 26
B207: When importing your CEA please make sure you have selected the correct month in here before pressing Import:
B208: Once you are happy you have selected the correct month…..
B209: Click on Import, this will appear:
B211: Select the file by clicking in the paper clip box
B212: Then de-select the Income is Positive toggle (Make it grey) as our income figures on your CEA show as negative amounts, like this:
B214: Make sure you include Header rows (must be toggled blue)
B215: And when done this click continue
B216: If the header row matches the field required, it will be shown in bold, if not a ‘not mapped’ will show. Click on the fields to show a drop down and map accordingly.
B217: Click Import, a confirmation message will show the number of lines, check this is the number you were expecting, when happy, click import when ready.
B218: Message will show any errors or if import is successful, click done to close.
B220: Please Note Only approved Budget / Ledger Codes are available to use in SBS. If you are using a budget code not included on the Chart of Accounts, the upload will fail and you will need to select an available budget code, available codes are on the published Chart of Accounts or can be viewed on SBS (Budgeting>Overview >Coding Index). This will need to be corrected on the school finance system and the reports rerun.
B222: Once uploaded, you will now be able to view all your income and expenditure per CFR code either in the SBS system or by exporting into excel.
B223: Now review your forecasts
B224: When you have forecasted please complete the below
B226: Sections 6 & 7
B227: Please complete the SMER Summary tab and copy & paste the reports into the Aged Creditors & Aged Debtors tabs
B229: Section 8 - Checklist and Confirmation
I231: Fixed is now called Locked since the migration in August/September 24
I237: It is import you also complete this please
B244: You will need to do the following each month after entering the CEA into SBS & you are happy with the forecast in SBS:
B245: How to FIX/Lock a budget profile/planner
B246: In the legacy system you FIXED a budget profile/planner
B247: In the migrated SBS Fix is called LOCK.
B249: To lock a budget in the Migrated SBS, please go to: Console>Budgets>Management
B250: This will show all schools budgets. You can only view the ones for your school.
B251: In the search field, type your school name. This will just bring up the budgets you have access to.
B252: Select the budget you have just forecasted in and are happy with, by clicking on the square to the left of the name
B253: Now click on the 3 dots next to the search field
B254: Select Lock.
B255: You will then see a new budget appear, called the name you just locked plus (duplicate showing date and time). Click on this name.
B256: Click on Edit Budget shown to the right of the screen
B257: Click on the name field – delete name and rename.
B258: Then when happy with the new name, click on the blue save budget button on the right.
B259: We would like to see your budgets called: The Month & Year, the word “SMER” a “-“ & then your school name please.
B260: If you had just completed the forecast for August (eg in early September), you would be locking the budget called: August 25 SMER – name of your school, when you lock it, it would create an auto duplicate and you would be renaming it: Sept 25 SMER – school name.
B261: This would then be ready for you to upload the CEA into in early October 25 to show all income and spend for the period 1.4.25-30.9.25.
B262: Throughout the month of September 25 you can then amend any staff contracts, staff members etc in the budget called Sept 25 SMER – School name.
B265: Please do not archive/hide your last submitted SMER budget profile (the one you show in section 6)
B267: Complete all cells highlighted in yellow. Please note '6. Upload into SBS, checked and completed' is covered in the section above.
A269: 4. | B269: Then finally, submit your completed SMER form to Schools Strategy & Corporate Team

Sheet Timetable 2025-26
B1: School Funding & Month End Reconciliation Timetable 2025-26
B3: Month / Period End | C3: Funding Date – Transfer to School’s Bank Account | D3: Deadline for schools to complete period end procedure on financial system and SBS
B4: 2025-04-01 | C4: Tuesday 22 April 2025 | D4: Monday 19 May 2025 (Optional)
B5: 2025-05-01 | C5: Wednesday 21 May 2025 | D5: Tuesday 10 June 2025
B6: 2025-06-01 | C6: Friday 20 June 2025 | D6: Friday 18 July 2025
B7: 2025-07-01 | C7: Friday 18 July 2025 | D7: Monday 11 August 2025 (Optional)
B8: 2025-08-01 | C8: Thursday 21 August 2025 | D8: Thursday 11 September 2025
B9: 2025-09-01 | C9: Friday 19 September 2025 | D9: Thursday 9 October 2025
B10: 2025-10-01 | C10: Tuesday 21 October 2025 | D10: Friday 7 November 2025
B11: 2025-11-01 | C11: Friday 21 November 2025 | D11: Thursday 11 December 2025
B12: 2025-12-01 | C12: Friday 19 December 2025 | D12: Friday 9 January 2026
B13: 2026-01-01 | C13: Friday 16 January 2026 | D13: Friday 6 February 2026
B14: 2026-02-01 | C14: Friday 20 February 2026 | D14: Wednesday 11 March 2026
B15: March 26 (Year End) | C15: Wednesday 18 March 2026 | D15: Tuesday 24 March 2026
B17: All schools need to have completed their month end procedures by the date published above. If a school thinks they may not be able to report by the relevant deadline, they will need to contact the Schools Strategy & Corporate Team at the earliest opportunity to discuss the situation, please email bank.account@cambridgeshire.gov.uk.
B19: *The deadline for schools to submit their Year End return is on the 24th March 2026. Finance staff and Head Teachers will need to plan resources and workload accordingly to meet the deadline. Please notify us before the 24th March 2026 if any of your staff are unable to answer any questions re their Year End returns over the Easter Holidays. SSCT need to know this to enable them to complete the year end checking in accordance with CCC's closedown timetable. Please note that the Easter holidays for 2025/26 are from 30th March 2026 to 10th April 2026 (inclusive).

Sheet School Year End procedures
A1: Do the year end journals as per the guidance on Learn Together Latest News & Updates post 9.1.26 (https://www.cambslearntogether.co.uk/cambridgeshire-services-to-schools/cambridgeshire-schools-finance/cambridgeshire-latest-news-and-updates)
A2: Once happy everything has been included in the FY 25/26 correctly, do not enter anything else, then run all reports on your finance system
A3: Complete the SMER summary tab, investigate into any variances. Correct for what is found, and re run all reports again, and complete new SMER.
A4: Do CEA splits as previously instructed (see Procedure for Spitting CEA tab)
A5: Import both CEAs into SBS
A6: Check BVA's for both schools includes everything needed, and shows as you expect
A7: Once happy, export both BvAs as a table
A9: Copy & Paste into the SVS Budget vs Actuals QEM & SVS Budget vs Actuals QED tabs
A10: Copy & Paste both schools data into the relevant BVA Drop tabs
A11: Now check the totals on the YE declaration tabs look correct for each fund Eg: Does each funds Opening Balances on row 29 match what is on the opening balances tab? Does the In Year Movement figures on Row 30 on the YE Declaration tab look correct when comparing to the Original BVA? Does each funds YTD Actuals Income-Expenditure on the BvA report show the same total on the YE declaration tab row 30?
A12: Is there a difference on the YE Declaration tab in cell C37? If there is please investigate. If you cant find it, please email schoolmonthendreturns@cambridgeshire.gov.uk email address
A13: Please complete the committed section of the YE declaration tab
A14: Once all tabs have been completed, all reports have been included in SMER, please send your SMER to schoolmonthendreturns@cambridgeshire.gov.uk by the 24th March 2026 deadline.

Sheet Year End Info
A1: If there is missing reports, or report differences in rows 12-28, please return to school and ask them to re run all of the reports and complete a new SMER. We do not have time to check SMERs twice, so we need to send email to ask for new SMER and move on to the next
A2: If rows 12-28 inc are ok, continue to check the SMER. If we notice reconciliation differences, please do as you normally do, check all areas and feedback, but ask for these to be looked into and resolved as a matter of urgency please.
A4: Schools will need to import their latest YTD Actuals into SBS in the month of March (their Final YTD figures for the FY 25/26) They then need to run their Budget vs Actuals report, selecting Budget Month March They need to Export their Budget Vs Actuals report as a TABLE Copy and paste their final Budget Vs Actuals report showing their latest, final 25/26 YTD Actuals on to the SBS Budget vs Actuals report tab Then copy and paste columns A-O inclusive on the BVA drop tab
A5: You do not need to calculate the Fund Balances to record on the Checklist as you do normally. These are pre populated
A6: The YE declaration will do this for you using the formulas on the Summary tab… as long as the school has copied columns A-O inc of the SBS Budget vs Actuals report into the BVA Drop table tab.
A8: Journals to be entered at the end, once all schools have been checked please
A9: They can only be entered if all checks on the journals tabs and the journal check tab are ok
A13: If you are happy that the SMER is correct, and there are no issues please feedback:
A14: Thank you for submitting your year-end documents. I have reviewed your submission and I’m satisfied that your accounts are complete for 2025/26.
A15: You MUST NOT make any changes to your system.
A17: Below is the year-end balance statement of each fund for your school at the end of March 2026.
A19: Rows 19-29 should not be added included in the email, it’s the workings for rows 31-35 inclusive. The figures are Linked to the Declaration tab rows 25 to 33 (table). Please check they are as they should be and then highlight in green when done:
B21: Fund 01 | C21: Fund 02 | D21: Fund 08 | E21: Fund 22 | F21: Fund 24 | G21: - | H21: Fund 04 | I21: Fund 06 | J21: Fund 05 | K21: Fund 18 | L21: 25/26 Total (All Funds)
B22: Formula / Revenue | C22: Formula / Revenue | D22: Nursery (Day Care) | E22: Childrens Centres | F22: Community Focused Activities | H22: DFC | I22: DFC | J22: External Capital
B23: +Surplus -Deficit | C23: +Surplus -Deficit | D23: +Surplus -Deficit | E23: +Surplus -Deficit | F23: +Surplus -Deficit | H23: +Surplus -Deficit | I23: +Surplus -Deficit | J23: +Surplus -Deficit | K23: +Surplus -Deficit | L23: +Surplus -Deficit
B24: FD-01 | C24: FD-02 | D24: FD-08 | E24: FD-22 | F24: FD-24 | G24: - | H24: FD-04 | I24: FD-06 | J24: FD-05 | K24: FD-18
A25: ='YE Declaration'!B29 -> Opening Balance (+Surplus -Deficit) | B25: ='YE Declaration'!C29 -> 176505.36 | C25: ='YE Declaration'!D29 -> -468387.19 | D25: ='YE Declaration'!E29 -> 0 | E25: ='YE Declaration'!F29 -> 0 | F25: ='YE Declaration'!G29 -> 0 | G25: ='YE Declaration'!H29 ->  | H25: ='YE Declaration'!I29 -> 32962.48 | I25: ='YE Declaration'!J29 -> 47145.75 | J25: ='YE Declaration'!K29 -> 0 | K25: ='YE Declaration'!L29 -> 0 | L25: ='YE Declaration'!M29 -> -211773.6
A26: ='YE Declaration'!B30 -> In Year position (+Surplus -Deficit) | B26: ='YE Declaration'!C30 -> 0 | C26: ='YE Declaration'!D30 -> 0 | D26: ='YE Declaration'!E30 -> 0 | E26: ='YE Declaration'!F30 -> 0 | F26: ='YE Declaration'!G30 -> 0 | G26: ='YE Declaration'!H30 ->  | H26: ='YE Declaration'!I30 -> 0 | I26: ='YE Declaration'!J30 -> 0 | J26: ='YE Declaration'!K30 -> 0 | K26: ='YE Declaration'!L30 -> 0 | L26: ='YE Declaration'!M30 -> 0
A27: ='YE Declaration'!B31 -> Actual Cumulative Total (+Surplus -Deficit) | B27: ='YE Declaration'!C31 -> 176505.36 | C27: ='YE Declaration'!D31 -> -468387.19 | D27: ='YE Declaration'!E31 -> 0 | E27: ='YE Declaration'!F31 -> 0 | F27: ='YE Declaration'!G31 -> 0 | G27: ='YE Declaration'!H31 ->  | H27: ='YE Declaration'!I31 -> 32962.48 | I27: ='YE Declaration'!J31 -> 47145.75 | J27: ='YE Declaration'!K31 -> 0 | K27: ='YE Declaration'!L31 -> 0 | L27: ='YE Declaration'!M31 -> -211773.6
A28: ='YE Declaration'!B32 -> Adjustment for FUND08 & 24 (FNDX-01) | B28: ='YE Declaration'!C32 -> 0 | C28: ='YE Declaration'!D32 -> 0 | D28: ='YE Declaration'!E32 -> 0 | E28: ='YE Declaration'!F32 -> 0 | F28: ='YE Declaration'!G32 -> 0 | G28: ='YE Declaration'!H32 -> 0 | H28: ='YE Declaration'!I32 -> 0 | I28: ='YE Declaration'!J32 -> 0 | J28: ='YE Declaration'!K32 -> 0 | K28: ='YE Declaration'!L32 -> 0 | L28: ='YE Declaration'!M32 -> 0
A29: ='YE Declaration'!B33 -> Total Adjusted Fund Balances (Final figures) | B29: ='YE Declaration'!C33 -> 176505.36 | C29: ='YE Declaration'!D33 -> -468387.19 | D29: ='YE Declaration'!E33 -> 0 | E29: ='YE Declaration'!F33 -> 0 | F29: ='YE Declaration'!G33 -> 0 | G29: ='YE Declaration'!H33 ->  | H29: ='YE Declaration'!I33 -> 32962.48 | I29: ='YE Declaration'!J33 -> 47145.75 | J29: ='YE Declaration'!K33 -> 0 | K29: ='YE Declaration'!L33 -> 0 | L29: ='YE Declaration'!M33 -> -211773.6
B33: Fund 01 | C33: Fund 02 | D33: Fund 08 | E33: Fund 22 | F33: Fund 24 | G33: - | H33: Fund 04 | I33: Fund 06 | J33: Fund 05 | K33: Fund 18 | L33: 25/26 Total (All Funds)
B34: +Surplus -Deficit | C34: +Surplus -Deficit | D34: +Surplus -Deficit | E34: +Surplus -Deficit | F34: +Surplus -Deficit | H34: +Surplus -Deficit | I34: +Surplus -Deficit | J34: +Surplus -Deficit | K34: +Surplus -Deficit | L34: +Surplus -Deficit
B35: =B29 -> 176505.36 | C35: =C29 -> -468387.19 | D35: 0 | E35: 0 | F35: 0 | H35: =H29 -> 32962.48 | I35: =I29 -> 47145.75 | J35: 0 | K35: 0 | L35: -211773.6
A37: Please make sure these carry forwards are correctly entered into the budget prior to Governors approval.
A40: Your accounts must match these figures at the end of 31st March, and a PRELIMINARY close completed on 1st April please.
A43: If you have entered your Accruals and Prepayments on a Standard Journal, in the new financial year (in period 1 of 26/27) please remember to reverse your accruals and prepayments journals per the Accruals and Prepayments tabs instructions. If you have entered your Accruals and Prepayments on reversing journals, please check your period 1 balances on these codes are zero.
A45: If there are any problems or queries then please get in touch.

Sheet Funding Statement QED

Sheet Funding Statement QEM

Sheet SBS Budget vs Actuals QED

Sheet SBS Budget vs Actuals QEM

Sheet Sheet1 (hidden)
B1: Fund Balance with FNDSEN-08 & or 24 Adjustment
A4: FD01 B02 | B4: 0
A6: FD08 B06 | B6: 0
A7: FD22 B06 | B7: 0
A8: FD24 B06 | B8: 0
A10: FD04 B03 | B10: 0
A11: FD05 B05 | B11: 0
A12: FD18 B05 | B12: 0
A14: FD02 B02 | B14: 0
A15: FD06 B03 | B15: 0
A17: FD21 BKS | B17: 0
A18: FD23 BKS | B18: 0
A20: Total | B20: 0

Sheet Procedure for splitting CEA
A1: Please run and export/download the CEA from your finance system and copy and paste it into the CEA tab within the SMER
A3: For Info:
A4: PER YEAR END NOTES
A5: Queen Edith Primary School - Year End 2024/25 - Fund 01
A6: Queen Emma Primary School - Year End 2024/25 - Fund 02
A7: Queen Edith Primary School - Year End 2024/25 - Fund 08 | B7: TO BE SPLIT PER COST CENTRES PER EMAIL FROM STEPH 14.11.25 17.00
A8: Queen Edith Primary School - Year End 2024/25 - Fund 22
A9: Queen Edith Primary School - Year End 2024/25 - Fund 24
A10: Queen Edith Primary School Fund 04
A11: Queen Emma Primary School Fund 06
A13: Add a formula that shows each rows fund number into column P for all those that are 0's in column O
A27: This will identify the funds & therefore the schools
A28: For the 1's please add balance sheet in column P
A30: Make sure column E (Originally called Fund, showing your YTD Actuals) column totals £0
A31: If they do:
A32: Add up balance sheet codes
A33: Add up all non balance sheet codes
A34: Make sure totals are the same but opposite signage
A35: I do this by Pivot table
A37: Copy data (columns A-P)
A38: Paste "values" in tab called CEA QED
A39: Highlight tab data including column P.
A40: Now sort by column P
A41: Now copy the entries on the CEA QED tab and paste this as values into the tab called CEA QEM
A43: Now on CEA QEM remove rows with funds 1,8,22,24 &04 in column P
A44: Leaving only Funds 2, 6 & all balance sheet codes
A46: Now on CEA QED remove rows with funds 2, 6 & Balance sheet
A47: Leaving funds 1,8,22,24 &4
A48: Looking at the Cost Centres, move rows with Fund 08 codes with cost centres QEMNURSER to the CEA QEM tab.
A49: Make sure there are no blank rows within the data. Delete these rows if there are
A51: Now go to the CEA Checks tab
A52: If all variances are £0.00 then we are happy to go to next section. If they are not please investigate
A56: On each tab (CEA QEM & CEA QED only)
A57: Amend the column headers per previous instructions, shown below
A59: Column B column header needs to be changed to BudgetCode
A60: Column N column header needs to be changed to CostCentre
A61: Please add Type and BudgetCodeFilter to columns Q &R
A62: Type column header - against each row under this header type the word Actual
A63: Column Header Fund needs to be replaced by the word Value
A64: Column C column header needs to be changed to Descriptions
A65: BudgetCodeFilter column header - against each row under this header type the the below DFE numbers:
A66: CEA QEM Budget Code Filter is:
A67: 3946
A68: CEA QED Budget Code Filter is:
A69: 2333
A71: Check each tab has the correct funds in it.
A72: When you are happy it does, copy the CEA QEM tab, paste values on a new sheet, save as CSV and import into SBS.
A73: Copy the CEA QED tab, paste values on a new sheet, save as CSV and import into SBS.
A75: Instructions on how to do this is in the SSCT Training SharePoint folder, please email bank.account@cambridgeshire.gov.uk if you do not have access
A77: If you have any error messages when trying to import please email sbsqueries@cambridgeshire.gov.uk with your CEA and also a screen shot of the error message.

Sheet Original CEA

Sheet CEA QEM

Sheet CEA QED

Sheet CEA Checks
A2: Checks
A4: CEA - Income and Expenditure - Queen Fed | B4: =SUMIFS('Original CEA'!E:E,'Original CEA'!O:O,0) -> 0
A5: CEA - Balance Sheet - Queens Fed | B5: =SUMIFS('Original CEA'!E:E,'Original CEA'!O:O,1) -> 0
A6: Variance - Must be Zero | B6: =SUM(B4:B5) -> 0
A8: Trial Balance - Balance Sheet - Queens Fed | B8: =_xlfn.XLOOKUP("TOTAL BALANCE SHEET ",'Trial Balance'!B:B,'Trial Balance'!F:F) -> 
A9: Variance - Must be Zero | B9: =B8-B5 -> 
A11: CEA - Income and Expenditure - Q Edith | B11: =SUMIFS('CEA QED'!E:E,'CEA QED'!O:O,0) -> 0
A12: CEA - Income and Expenditure - Q Emma | B12: =SUMIFS('CEA QEM'!E:E,'CEA QEM'!O:O,0) -> 0
A13: Total | B13: =SUM(B11:B12) -> 0
A14: Variance - Must be Zero | B14: =B13-B4 -> 0
A16: CEA - Balance Sheet - Q Edith | B16: =SUMIFS('CEA QED'!E:E,'CEA QED'!O:O,1) -> 0
A17: CEA - Balance Sheet - Q Emma | B17: =SUMIFS('CEA QEM'!E:E,'CEA QEM'!O:O,1) -> 0
A18: Total | B18: =SUM(B16:B17) -> 0
A19: Variance - Must be Zero | B19: =B18-B5 -> 0

Sheet Fund Review

Sheet Trial Balance

Sheet Opening Balance
B1: Opening Balances 2025/26 | E1: Click here to review 'SMER Summary 25-26' tab
B3: DfE Number | C3: School Name
B4: ='SMER Summary 25-26'!D11 -> 2333 | C4: =IF(ISERROR(VLOOKUP(B4,'School Information'!A:B,2,FALSE)),"",VLOOKUP(B4,'School Information'!A:B,2,FALSE)) -> Queen Edith Primary School
B5: ='SMER Summary 25-26'!H15 -> 3946 | C5: =IF(ISERROR(VLOOKUP(B5,'School Information'!A:B,2,FALSE)),"",VLOOKUP(B5,'School Information'!A:B,2,FALSE)) -> Queen Emma Primary School
B7: Fund | C7: Fund Description | D7: School | E7: SSCT Confirmed Opening Balance
B8: Fund 01 | C8: Formula / Revenue | D8: =C4 -> Queen Edith Primary School | E8: =IF(ISNA(VLOOKUP($B$4,'School Information'!$A:$G,5,FALSE)),0,VLOOKUP($B$4,'School Information'!$A:$G,5,FALSE)) -> 176505.36
B9: Fund 02 | C9: Formula / Revenue *Federated Schools Only* | D9: =C5 -> Queen Emma Primary School | E9: =IF(ISNA(VLOOKUP($B$5,'School Information'!$A:$G,5,FALSE)),0,VLOOKUP($B$5,'School Information'!$A:$G,5,FALSE)) -> -468387.19
B10: Fund 21 | C10: Extended Schools (Bankers only) | D10: =$C$4&" / "&$C$5 -> Queen Edith Primary School / Queen Emma Primary School | E10: =(IF(ISNA(VLOOKUP($B$4,'School Information'!$A:$G,7,FALSE)),0,VLOOKUP($B$4,'School Information'!$A:$G,7,FALSE)))+(IF(ISNA(VLOOKUP($B$5,'School Information'!$A:$G,7,FALSE)),0,VLOOKUP($B$5,'School Information'!$A:$G,7,FALSE))) -> 0
B11: Fund 23 | C11: Cluster Activities (Banker Schools) | D11: =$C$4&" / "&$C$5 -> Queen Edith Primary School / Queen Emma Primary School | E11: =(IF(ISNA(VLOOKUP($B$4,'School Information'!$A:$I,9,FALSE)),0,VLOOKUP($B$4,'School Information'!$A:$I,9,FALSE)))+(IF(ISNA(VLOOKUP($B$5,'School Information'!$A:$I,9,FALSE)),0,VLOOKUP($B$5,'School Information'!$A:$I,9,FALSE))) -> 0
B12: Total Revenue | E12: =SUM(E8:E11) -> -291881.83
B13: Fund 08 | C13: Nursery (Day Care) | D13: =$C$4&" / "&$C$5 -> Queen Edith Primary School / Queen Emma Primary School | E13: =(IF(ISNA(VLOOKUP($B$4,'School Information'!$A:$J,6,FALSE)),0,VLOOKUP($B$4,'School Information'!$A:$J,6,FALSE)))+(IF(ISNA(VLOOKUP($B$5,'School Information'!$A:$J,6,FALSE)),0,VLOOKUP($B$5,'School Information'!$A:$J,6,FALSE))) -> 0
B14: Fund 22 | C14: Childrens Centres | D14: Queen Edith Primary School / Queen Emma Primary School | E14: =(IF(ISNA(VLOOKUP($B$4,'School Information'!$A:$J,8,FALSE)),0,VLOOKUP($B$4,'School Information'!$A:$J,8,FALSE)))+(IF(ISNA(VLOOKUP($B$5,'School Information'!$A:$J,8,FALSE)),0,VLOOKUP($B$5,'School Information'!$A:$J,8,FALSE))) -> 0
B15: Fund 24 | C15: Community Focused Activities | D15: Queen Edith Primary School / Queen Emma Primary School | E15: =(IF(ISNA(VLOOKUP($B$4,'School Information'!$A:$J,10,FALSE)),0,VLOOKUP($B$4,'School Information'!$A:$J,10,FALSE)))+(IF(ISNA(VLOOKUP($B$5,'School Information'!$A:$J,10,FALSE)),0,VLOOKUP($B$5,'School Information'!$A:$J,10,FALSE))) -> 0
B16: Total Community / Extended | E16: =SUM(E13:E15) -> 0
B17: Fund 04 | C17: Devolved Formula Capital | D17: =C4 -> Queen Edith Primary School | E17: =IF(ISNA(VLOOKUP($B$4,'School Information'!$A:$N,12,FALSE)),0,VLOOKUP($B$4,'School Information'!$A:$N,12,FALSE)) -> 32962.48
B18: Fund 06 | C18: Devolved Formula Capital *Federated Schools Only* | D18: =C5 -> Queen Emma Primary School | E18: =IF(ISNA(VLOOKUP($B$5,'School Information'!$A:$N,12,FALSE)),0,VLOOKUP($B$5,'School Information'!$A:$N,12,FALSE)) -> 47145.75
B19: Fund 05 | C19: Other Capital | D19: =$C$4&" / "&$C$5 -> Queen Edith Primary School / Queen Emma Primary School | E19: =(IF(ISNA(VLOOKUP($B$4,'School Information'!$A:$N,13,FALSE)),0,VLOOKUP($B$4,'School Information'!$A:$N,13,FALSE)))+(IF(ISNA(VLOOKUP($B$5,'School Information'!$A:$N,13,FALSE)),0,VLOOKUP($B$5,'School Information'!$A:$N,13,FALSE))) -> 0
B20: Fund 18 | C20: Capitalised Revenue | D20: Queen Edith Primary School / Queen Emma Primary School | E20: =(IF(ISNA(VLOOKUP($B$4,'School Information'!$A:$N,14,FALSE)),0,VLOOKUP($B$4,'School Information'!$A:$N,14,FALSE)))+(IF(ISNA(VLOOKUP($B$5,'School Information'!$A:$N,14,FALSE)),0,VLOOKUP($B$5,'School Information'!$A:$N,14,FALSE))) -> 0
B21: Total Capital | E21: =SUM(E17:E20) -> 80108.23
B22: Total (Revenue + Community + Capital) | E22: =SUM(E12,E16,E21) -> -211773.6

Sheet SMER Summary 25-26
A1: SSCTQUEENS25.1.26 V6
B2: School Month End Reconciliation (SMER) Form 2025-26
C3: All sections and cells highlighted in yellow need to be completed | G3: Click here for 'Instructions' tab
C4: Only enter data into yellow cells, please do NOT do this by copying/pasting cells
B7: 1. School Information
C9: Month End Reconciliation | D9: 2026-01-01
C11: DfE Number (last 4 digits only) | D11: 2333
C13: School Name | D13: =IF(ISERROR(VLOOKUP(D11,'School Information'!A:B,2,FALSE)),"",VLOOKUP(D11,'School Information'!A:B,2,FALSE)) -> Queen Edith Primary School | G13: School Finance System | H13: =IF(ISERROR(VLOOKUP(D11,'School Information'!A:H,4,FALSE)),"",VLOOKUP(D11,'School Information'!A:H,4,FALSE)) -> FMS
C15: Federated with | D15: =IF(ISERROR(VLOOKUP(H15,'School Information'!A:B,2,FALSE)),"N/A",VLOOKUP(H15,'School Information'!A:B,2,FALSE)) -> Queen Emma Primary School | G15: DfE Number | H15: =IF(ISERROR(VLOOKUP(D11,'School Information'!A:H,3,FALSE)),"N/A",VLOOKUP(D11,'School Information'!A:H,3,FALSE)) -> 3946
B18: 2. VAT Owed - Reconciliation
C20: Please include the submittal / short summary reports on the yellow tabs provided
C22: VAT Submittals / Short Summary Reports | F22: Value from Submittal tab | G22: Outstanding Y/N | H22: To be refunded
C24: Quarter 1 - VAT Submittal - April to June | H24: =IF(G24="N",0,F24) -> 0
C25: Quarter 2 - VAT Submittal - July to September | H25: 0
C26: Quarter 3 - VAT Submittal - October to December | H26: 0
C27: Quarter 4 - VAT Submittal - January to March | H27: 0
C28: VAT Short Summary - present / incomplete quarter | H28: 0
F29: Total VAT Owed to School | H29: =SUM(H24:H28) -> 0
C31: Please include the Trial Balance report on the yellow tab provided
C33: VAT on School Balance Sheet Codes | E33: Balance Sheet Code | F33: Description | G33: Balance | H33: Total
C34: VAT codes used by School | E34: VI | F34: VAT Input | H34: =G34 -> 0
C35: (do not include VFLOAT) | E35: VO | F35: VAT Output | H35: =G35 -> 0
E36: VREFS | F36: VAT Refunds | H36: 0
E37: VAT | F37: Total VAT (XERO) | H37: 0
F39: VAT on School Balance Sheet Codes | H39: =SUM(H34:H38) -> 0
D41: Variance between VAT Quarterly Reports and Balance Sheet Codes | H41: =H29-H39 -> 0
B43: Explain VAT Owed variance below
B46: 3. NatWest Bank - Reconciliation
C48: NatWest Balance from Bank Statement as at last day of period | F48: (enter as positive - unless overdrawn) | J48: Z Please take a screen shot of your Bank Statement showing balance and then paste into the Bank Statement Tab
C50: Balance Sheet Bank Account Balance - code | E50: BANKNW | H50: =_xlfn.XLOOKUP(E50,'Original CEA'!B:B,'Original CEA'!E:E) -> 
C52: Unreconciled Items (Please add details to the Bank - Unreconciled tab) | F52: (normally entered as positive)
D54: Total Should = £0.00 (Bank Statement = Balance Sheet + Unreconciled) | H54: =ROUND((H48-SUM(H50:H52)),2) -> 
B56: Explain NatWest Bank variance below
B59: 4. Payroll Control - Reconciliation
C61: Payroll Control total from Balance Sheet - code | E61: PAYROL | H61: =-_xlfn.XLOOKUP(E61,'Original CEA'!B:B,'Original CEA'!E:E) -> 
C63: Explained as follows:
C64: Due to Inland Revenue (HMRC) | E64: ( enter as positive ) | J64: Z Please copy and paste your EPM report in the EPM report showing the figure entered in here
C65: Due to Pension Scheme | E65: ( enter as positive ) | J65: Z Please copy and paste your EPM report in the EPM report showing the figure entered in here
C66: Due to Third Party Payments | E66: ( enter as positive ) | J66: Z Please copy and paste your EPM report in the EPM report showing the figure entered in here
C67: Due to Other | E67: ( enter as positive ) | J67: Z Please copy and paste your EPM report in the EPM report showing the figure entered in here
C68: Total Payroll Control Liabilities (should match total on code PAYROL) | H68: =SUM(H64:H67) -> 0
G70: Variance | H70: =IF(ISERROR(H61-H68),"",(H61-H68)) -> 
B72: Explain Payroll Control variance below. If £0 please say why. Eg all payroll, NI & pension costs have been entered and paid before the month end, therefore it is correct not to show a balance against PAYROL.
B75: 5. Opening Balances - Reconciliation | F75: Click here to review 'Opening Balance' tab
C77: Fund & Description | F77: Balance on School Finance System - CEA report figures. Please type as you see it on your CEA (same signage) | G77: SSCT Confirmed Opening Balance Surplus shown as a Positive Figure Deficit shown as a Negative Figure | H77: Variance
C79: 01 - Formula / Revenue | G79: ='Opening Balance'!E8 -> 176505.36 | H79: =F79+G79 -> 176505.36
C80: 02 - Formula / Revenue *Federated Schools Only* | G80: ='Opening Balance'!E9 -> -468387.19 | H80: =F80+G80 -> -468387.19
C81: 04 - Devolved Formula Capital | G81: ='Opening Balance'!E17 -> 32962.48 | H81: 32962.48
C82: 05 - Other Capital | G82: ='Opening Balance'!E19 -> 0 | H82: 0
C83: 06 - Devolved Formula Capital *Federated Schools Only* | G83: ='Opening Balance'!E18 -> 47145.75 | H83: 47145.75
C84: 08 - Nursery (Day Care) | G84: ='Opening Balance'!E13 -> 0 | H84: 0
C85: 18 - Capitalised Revenue | G85: ='Opening Balance'!E20 -> 0 | H85: 0
C86: 21 - Extended Schools (Bankers only) | G86: ='Opening Balance'!E10 -> 0 | H86: 0
C87: 23 - Cluster Activities (Banker Schools) | G87: ='Opening Balance'!E11 -> 0 | H87: 0
C88: 22 - Childrens Centres | G88: ='Opening Balance'!E14 -> 0 | H88: 0
C89: 24 - Community Focused Activities | G89: ='Opening Balance'!E15 -> 0 | H89: =F89+G89 -> 0
B93: 6. Aged Creditors check
C94: Have you included your Aged Creditors report on the Aged Creditors tab? If you haven't could you please do so now | J94: Yes | K94: No
C95: Aged Creditors report total
C96: Aged Creditors CEA total
C97: Aged Creditors Trial Balance Total
C98: Does your Aged Creditors report match your CEA/Trial Balance figure? If no, please add reason why below
B101: 7. Aged Debtors check
C102: Have you included your Aged Debtors report on the Aged Debtors tab? If you haven't could you please do so now
C103: Aged Debtors report total
C104: Aged Debtors CEA total
C105: Aged Debtors Trial Balance Total
C106: Does your Aged Debtors report match your CEA/Trial Balance figure? If no, please add reason why below
B110: 6. Checklist and Confirmation
C112: Action in SBS | E112: Name of 'Fixed (Locked)' Budget showing latest Forecast/Projected Outturn in SBS at the time of completing this SMER
C113: Please check your Budget vs Actuals forecast (Projected YE) figures
C114: Please check row 9's month has been selected correctly, then name the budget you have forecasted against as | F114: You should now have 2 budgets called: Last complete full month you have entered CEA for & Year - SMER- Queen Edith Last complete full month you have entered CEA for & Year - SMER- Queen Emma
C115: When happy with the forecast set the budget working profile to Locked, to show us your latest Projected Outturn
C117: I confirm all sections of this form are completed in full and all information provided is true and accurate.
C119: Completed Y / N | D119: Action | F119: Name
D120: 1. School Information
D121: 2. VAT Owed - Reconciliation
D122: 3. NatWest Bank - Reconciliation | F122: Position e.g. Finance Officer | H122: Date
D123: 4. Payroll Control - Reconciliation
D124: 5. Opening Balances - Reconciliation
D125: 6. Upload into SBS checked and completed
C129: When all sections of this form have been completed (including requested reports) and you've completed the upload into SBS, please save this file in your records with the school name and period name in the file title, then submit to Schools Strategy & Corporate Team (SSCT) using the below email address:
C130: schoolmonthendreturns@cambridgeshire.gov.uk

Sheet VATShortSummary-Present Quarter

Sheet Q1 | VAT Submittal

Sheet Q2 | VAT Submittal

Sheet Q3 | VAT Submittal

Sheet Q4 | VAT Submittal

Sheet Bank - Unreconciled

Sheet Bank Statement

Sheet EPM Summary report

Sheet ISB Figs (hidden)
A1: LAESTAB | D1: 19/20 | E1: 20/21 | F1: 21/22 | I1: 20/21 Post De-delegation and Education functions budget | K1: LAESTAB | L1: 20/21 Post De-delegation and Education functions budget
I2: 366953994.3 | L2: 366953994.3
A3: 8732000 | B3: Trumpington Meadows Primary School | C3: 978847.8796 | D3: =ROUND(C3,2) -> 978847.88 | E3: =VLOOKUP(A3,$K$3:$M$246,3,FALSE) -> 1064710.31 | F3: 1145878.66 | I3: 1064710.307 | K3: 8732000 | L3: 1064710.307 | M3: =ROUND(L3,2) -> 1064710.31 | O3: =VLOOKUP(K3,$A$3:$D$246,4,FALSE) -> 978847.88
A4: 8732001 | B4: Thorndown Primary School | C4: 1818240.136 | D4: =ROUND(C4,2) -> 1818240.14 | E4: =VLOOKUP(A4,$K$3:$M$246,3,FALSE) -> 2013608.91 | F4: 2274325 | I4: 2013608.913 | K4: 8732001 | L4: 2013608.913 | M4: =ROUND(L4,2) -> 2013608.91 | O4: =VLOOKUP(K4,$A$3:$D$246,4,FALSE) -> 1818240.14
A5: 8732002 | B5: Bassingbourn Primary School | C5: 1190283.758 | D5: 1190283.76 | E5: 1306842.33 | F5: 1536242.05 | I5: 1306842.33 | K5: 8732002 | L5: 1306842.33 | M5: 1306842.33 | O5: 1190283.76
A6: 8732004 | B6: Caldecote Primary School | C6: 723573.6796 | D6: 723573.68 | E6: 746884.6 | F6: 810873.64 | I6: 746884.5975 | K6: 8732004 | L6: 746884.5975 | M6: 746884.6 | O6: 723573.68
A7: 8732006 | B7: Cottenham Primary School | C7: 1887890.289 | D7: 1887890.29 | E7: 2032257.17 | F7: 2160130.32 | I7: 2032257.17 | K7: 8732006 | L7: 2032257.17 | M7: 2032257.17 | O7: 1887890.29
A8: 8732010 | B8: Fen Drayton Primary School | C8: 450494.8755 | D8: 450494.88 | E8: 433536.31 | F8: 439852.69 | I8: 433536.306 | K8: 8732010 | L8: 433536.306 | M8: 433536.31 | O8: 450494.88
A9: 8732011 | B9: Fowlmere Primary School | C9: 456680.4998 | D9: 456680.5 | E9: 427488.1 | F9: 484674.03 | I9: 427488.0958 | K9: 8732011 | L9: 427488.0958 | M9: 427488.1 | O9: 456680.5
A10: 8732012 | B10: Foxton Primary School | C10: 479011.393 | D10: 479011.39 | E10: 477243.43 | F10: 477469.86 | I10: 477243.4282 | K10: 8732012 | L10: 477243.4282 | M10: 477243.43 | O10: 479011.39
A11: 8732015 | B11: Girton Glebe Primary School | C11: 697153.972 | D11: 697153.97 | E11: 732153.69 | I11: 732153.689 | K11: 8732015 | L11: 732153.689 | M11: 732153.69 | O11: 697153.97
A12: 8732016 | B12: Great Abington Primary School | C12: 540593.43 | D12: 540593.43 | E12: 563054.42 | F12: 608034.78 | I12: 563054.4192 | K12: 8732016 | L12: 563054.4192 | M12: 563054.42 | O12: 540593.43
A13: 8732018 | B13: Harston and Newton Community Primary School | C13: 625023.6823 | D13: 625023.68 | E13: 591757.11 | F13: 618463.21 | I13: 591757.1082 | K13: 8732018 | L13: 591757.1082 | M13: 591757.11 | O13: 625023.68
A14: 8732028 | B14: Melbourn Primary School | C14: 1240949.082 | D14: 1240949.08 | E14: 1403898.75 | F14: 1544743.75 | I14: 1403898.75 | K14: 8732028 | L14: 1403898.75 | M14: 1403898.75 | O14: 1240949.08
A15: 8732029 | B15: Meldreth Primary School | C15: 695195.7401 | D15: 695195.74 | E15: 751289.45 | F15: 856709.87 | I15: 751289.4471 | K15: 8732029 | L15: 751289.4471 | M15: 751289.45 | O15: 695195.74
A16: 8732031 | B16: Over Primary School | C16: 913004.2212 | D16: 913004.22 | E16: 869532.57 | F16: 948726.25 | I16: 869532.57 | K16: 8732031 | L16: 869532.57 | M16: 869532.57 | O16: 913004.22
A17: 8732033 | B17: Pendragon Community Primary School | C17: 1321364.678 | D17: 1321364.68 | E17: 1427949.87 | F17: 1640266.2 | I17: 1427949.87 | K17: 8732033 | L17: 1427949.87 | M17: 1427949.87 | O17: 1321364.68
A18: 8732046 | B18: Swavesey Primary School | C18: 1064960.055 | D18: 1064960.06 | E18: 1102704.19 | F18: 1241047.7 | I18: 1102704.19 | K18: 8732046 | L18: 1102704.19 | M18: 1102704.19 | O18: 1064960.06
A19: 8732048 | B19: Waterbeach Community Primary School | C19: 1378670.383 | D19: 1378670.38 | E19: 1523322.89 | F19: 1806539.55 | I19: 1523322.89 | K19: 8732048 | L19: 1523322.89 | M19: 1523322.89 | O19: 1378670.38
A20: 8732054 | B20: Willingham Primary School | C20: 1138520.349 | D20: 1138520.35 | E20: 1169175.49 | F20: 1382707.5 | I20: 1169175.494 | K20: 8732054 | L20: 1169175.494 | M20: 1169175.49 | O20: 1138520.35
A21: 8732059 | B21: Meridian Primary School | C21: 716007.793 | D21: 716007.79 | E21: 721742.4 | F21: 816600.8 | I21: 721742.3981 | K21: 8732059 | L21: 721742.3981 | M21: 721742.4 | O21: 716007.79
A22: 8732060 | B22: Benwick Primary School | C22: 583261.5447 | D22: 583261.54 | E22: 525019.57 | F22: 561024.16 | I22: 525019.572 | K22: 8732060 | L22: 525019.572 | M22: 525019.57 | O22: 583261.54
A23: 8732064 | B23: Townley Primary School | C23: 469462.6952 | D23: 469462.7 | E23: 495481.77 | F23: 505260.99 | I23: 495481.7663 | K23: 8732064 | L23: 495481.7663 | M23: 495481.77 | O23: 469462.7
A24: 8732065 | B24: Coates Primary School | C24: 728167.4972 | D24: 728167.5 | E24: 742986.4 | F24: 786829.79 | I24: 742986.3978 | K24: 8732065 | L24: 742986.3978 | M24: 742986.4 | O24: 728167.5
A25: 8732066 | B25: Lionel Walden Primary School | C25: 834868.0859 | D25: 834868.09 | E25: 851411.11 | F25: 905042.65 | I25: 851411.1149 | K25: 8732066 | L25: 851411.1149 | M25: 851411.11 | O25: 834868.09
A26: 8732068 | B26: Friday Bridge Community Primary School | C26: 489320.4631 | D26: 489320.46 | E26: 516252.63 | F26: 530925.3 | I26: 516252.6334 | K26: 8732068 | L26: 516252.6334 | M26: 516252.63 | O26: 489320.46
A27: 8732070 | B27: Robert Arkenstall Primary School | C27: 1010391.185 | D27: 1010391.19 | E27: 1040653.79 | F27: 1151541.05 | I27: 1040653.79 | K27: 8732070 | L27: 1040653.79 | M27: 1040653.79 | O27: 1010391.19
A28: 8732074 | B28: Littleport Community Primary School | C28: 1633679.672 | D28: 1633679.67 | E28: 1689263.44 | F28: 1813474.88 | I28: 1689263.436 | K28: 8732074 | L28: 1689263.436 | M28: 1689263.44 | O28: 1633679.67
A29: 8732075 | B29: Manea Community Primary School | C29: 774140.4916 | D29: 774140.49 | E29: 845016.04 | F29: 1000262.91 | I29: 845016.037 | K29: 8732075 | L29: 845016.037 | M29: 845016.04 | O29: 774140.49
A30: 8732082 | B30: Beaupre Community Primary School | C30: 799809.5186 | D30: 799809.52 | E30: 804454.3 | F30: 839738.36 | I30: 804454.3022 | K30: 8732082 | L30: 804454.3022 | M30: 804454.3 | O30: 799809.52
A31: 8732083 | B31: Alderman Payne Primary School | C31: 481696.3469 | D31: 481696.35 | E31: 505758.98 | F31: 545176.15 | I31: 505758.9791 | K31: 8732083 | L31: 505758.9791 | M31: 505758.98 | O31: 481696.35
A32: 8732084 | B32: Stretham Community Primary School | C32: 697771.2267 | D32: 697771.23 | E32: 671109 | F32: 718626.1 | I32: 671108.9996 | K32: 8732084 | L32: 671108.9996 | M32: 671109 | O32: 697771.23
A33: 8732091 | B33: Clarkson Infants School | C33: 757897.2961 | D33: 757897.3 | E33: 819142.64 | F33: 884649.68 | I33: 819142.6391 | K33: 8732091 | L33: 819142.6391 | M33: 819142.64 | O33: 757897.3
A34: 8732107 | B34: Morley Memorial Primary School | C34: 1450824.737 | D34: 1450824.74 | E34: 1560526.8 | F34: 1696847 | I34: 1560526.8 | K34: 8732107 | L34: 1560526.8 | M34: 1560526.8 | O34: 1450824.74
A35: 8732109 | B35: Newnham Croft Primary School | C35: 872689.4729 | D35: 872689.47 | E35: 872982.04 | F35: 950902.6 | I35: 872982.0426 | K35: 8732109 | L35: 872982.0426 | M35: 872982.04 | O35: 872689.47
A36: 8732115 | B36: Shirley Community Primary School | C36: 1724964.586 | D36: 1724964.59 | E36: 1782021.26 | F36: 1819825.39 | I36: 1782021.259 | K36: 8732115 | L36: 1782021.259 | M36: 1782021.26 | O36: 1724964.59
A37: 8732118 | B37: Arbury Primary School | C37: 1627687.925 | D37: 1627687.92 | E37: 1728011.76 | F37: 1791250.02 | I37: 1728011.764 | K37: 8732118 | L37: 1728011.764 | M37: 1728011.76 | O37: 1627687.92
A38: 8732119 | B38: Colville Primary School | C38: 1116888.882 | D38: 1116888.88 | E38: 1125955.46 | F38: 1135567.51 | I38: 1125955.463 | K38: 8732119 | L38: 1125955.463 | M38: 1125955.46 | O38: 1116888.88
A39: 8732121 | B39: Mayfield Primary School | C39: 1514785.457 | D39: 1514785.46 | E39: 1563583.15 | F39: 1644122.35 | I39: 1563583.152 | K39: 8732121 | L39: 1563583.152 | M39: 1563583.15 | O39: 1514785.46
A40: 8732123 | B40: The Grove Primary School | C40: 1186674.182 | D40: 1186674.18 | E40: 1143968.96 | F40: 1123518.77 | I40: 1143968.956 | K40: 8732123 | L40: 1143968.956 | M40: 1143968.96 | O40: 1186674.18
A41: 8732202 | B41: The Icknield Primary School | C41: 653416.1748 | D41: 653416.17 | E41: 729509.95 | I41: 729509.9459 | K41: 8732202 | L41: 729509.9459 | M41: 729509.95 | O41: 653416.17
A42: 8732205 | B42: Hauxton Primary School | C42: 422107.9868 | D42: 422107.99 | E42: 433066.57 | F42: 487880.48 | I42: 433066.5685 | K42: 8732205 | L42: 433066.5685 | M42: 433066.57 | O42: 422107.99
A43: 8732208 | B43: Fenstanton and Hilton Primary School | C43: 902515.9672 | D43: 902515.97 | E43: 934849.96 | F43: 982053.53 | I43: 934849.9589 | K43: 8732208 | L43: 934849.9589 | M43: 934849.96 | O43: 902515.97
A44: 8732211 | B44: Hemingford Grey Primary School | C44: 1043392.624 | D44: 1043392.62 | E44: 1111389.42 | F44: 1256052.5 | I44: 1111389.42 | K44: 8732211 | L44: 1111389.42 | M44: 1111389.42 | O44: 1043392.62
A45: 8732212 | B45: Houghton Primary School | C45: 754150.4346 | D45: 754150.43 | E45: 751509.99 | F45: 780623.75 | I45: 751509.9878 | K45: 8732212 | L45: 751509.9878 | M45: 751509.99 | O45: 754150.43
A46: 8732214 | B46: Offord Primary School | C46: 456162.2409 | D46: 456162.24 | I46: 589218.903 | K46: 8732217 | L46: 589218.903 | M46: 589218.9 | O46: 561092.53
A47: 8732217 | B47: The Ashbeach Primary School | C47: 561092.5303 | D47: 561092.53 | E47: 589218.9 | F47: 599918.29 | I47: 1032910.622 | K47: 8732219 | L47: 1032910.622 | M47: 1032910.62 | O47: 981525.23
A48: 8732219 | B48: Priory Park Infant School & Playgroup | C48: 981525.2259 | D48: 981525.23 | E48: 1032910.62 | F48: 1045210.49 | I48: 479621.8077 | K48: 8732222 | L48: 479621.8077 | M48: 479621.81 | O48: 539804.56
A49: 8732221 | B49: Somersham Primary School | C49: 1005000.04 | D49: 1005000.04 | I49: 1298561.583 | K49: 8732232 | L49: 1298561.583 | M49: 1298561.58 | O49: 1228408.65
A50: 8732222 | B50: Spaldwick Community Primary School | C50: 539804.5645 | D50: 539804.56 | E50: 479621.81 | F50: 499150.24 | I50: 1313792.475 | K50: 8732239 | L50: 1313792.475 | M50: 1313792.47 | O50: 1216883.51
A51: 8732232 | B51: Westfield Junior School | C51: 1228408.655 | D51: 1228408.65 | E51: 1298561.58 | F51: 1345343.05 | I51: 708409.3496 | K51: 8732240 | L51: 708409.3496 | M51: 708409.35 | O51: 682660.25
A52: 8732239 | B52: Priory Junior School | C52: 1216883.514 | D52: 1216883.51 | E52: 1313792.47 | F52: 1443228.16 | I52: 753277.4043 | K52: 8732246 | L52: 753277.4043 | M52: 753277.4 | O52: 810082.36
A53: 8732240 | B53: Wyton on the Hill Community Primary School | C53: 682660.2468 | D53: 682660.25 | E53: 708409.35 | F53: 777623.6 | I53: 711152.0479 | K53: 8732254 | L53: 711152.0479 | M53: 711152.05 | O53: 675089.81
A54: 8732246 | B54: Eastfield Infant and Nursery School | C54: 810082.3569 | D54: 810082.36 | E54: 753277.4 | F54: 738091.18 | I54: 722500.5306 | K54: 8732255 | L54: 722500.5306 | M54: 722500.53 | O54: 673997.78
A55: 8732254 | B55: Yaxley Infant School | C55: 675089.8103 | D55: 675089.81 | E55: 711152.05 | F55: 713384.76 | I55: 430734.781 | K55: 8732260 | L55: 430734.781 | M55: 430734.78 | O55: 389750.9
A56: 8732255 | B56: Sawtry Infants' School | C56: 673997.7822 | D56: 673997.78 | E56: 722500.53 | F56: 737679.37 | I56: 1380863.02 | K56: 8732293 | L56: 1380863.02 | M56: 1380863.02 | O56: 1310690.81
A57: 8732256 | B57: Warboys Community Primary School | C57: 1034177.822 | D57: 1034177.82 | E57: 1070786.68 | I57: 968233.9754 | K57: 8732312 | L57: 968233.9754 | M57: 968233.98 | O57: 1006035.14
A58: 8732260 | B58: The Newton Community Primary School | C58: 389750.8971 | D58: 389750.9 | E58: 430734.78 | F58: 431445.49 | I58: 2149150.7 | K58: 8732315 | L58: 2149150.7 | M58: 2149150.7 | O58: 2120415.74
A59: 8732293 | B59: Little Paxton Primary School | C59: 1310690.815 | D59: 1310690.81 | E59: 1380863.02 | F59: 1556136.75 | I59: 2401355.89 | K59: 8732317 | L59: 2401355.89 | M59: 2401355.89 | O59: 2145603.9
A60: 8732312 | B60: Bewick Bridge Community Primary School | C60: 1006035.139 | D60: 1006035.14 | E60: 968233.98 | F60: 940358.79 | I60: 1695821.35 | K60: 8732321 | L60: 1695821.35 | M60: 1695821.35 | O60: 1519268.18
A61: 8732315 | B61: Hardwick and Cambourne Community Primary School | C61: 2120415.74 | D61: 2120415.74 | E61: 2149150.7 | F61: 2370131 | I61: 1739368.2 | K61: 8732327 | L61: 1739368.2 | M61: 1739368.2 | O61: 1660397.64
A62: 8732317 | B62: St Matthew's Primary School | C62: 2145603.904 | D62: 2145603.9 | E62: 2401355.89 | F62: 2597627.66 | I62: 1115772.52 | K62: 8732328 | L62: 1115772.52 | M62: 1115772.52 | O62: 1121265.33
A63: 8732321 | B63: Fourfields Community Primary School | C63: 1519268.178 | D63: 1519268.18 | E63: 1695821.35 | F63: 1899490.2 | I63: 902809.0753 | K63: 8732329 | L63: 902809.0753 | M63: 902809.08 | O63: 979894.69
A64: 8732327 | B64: Burwell Village College (Primary) | C64: 1660397.636 | D64: 1660397.64 | E64: 1739368.2 | F64: 1861784.55 | I64: 374728.1034 | K64: 8732331 | L64: 374728.1034 | M64: 374728.1 | O64: 360608.59
A65: 8732328 | B65: Fulbourn Primary School | C65: 1121265.334 | D65: 1121265.33 | E65: 1115772.52 | F65: 1281491.86 | I65: 1537854.413 | K65: 8732333 | L65: 1537854.413 | M65: 1537854.41 | O65: 1458599.06
A66: 8732329 | B66: Spring Meadow Infant School | C66: 979894.6934 | D66: 979894.69 | E66: 902809.08 | F66: 913411.49 | I66: 841045.3978 | K66: 8732335 | L66: 841045.3978 | M66: 841045.4 | O66: 822811.79
A67: 8732331 | B67: Kinderley Primary School | C67: 360608.5926 | D67: 360608.59 | E67: 374728.1 | F67: 411920.59 | I67: 1516565.142 | K67: 8732336 | L67: 1516565.142 | M67: 1516565.14 | O67: 1370441.48
A68: 8732333 | B68: Queen Edith Primary School | C68: 1458599.063 | D68: =ROUND(C68,2) -> 1458599.06 | E68: =VLOOKUP(A68,$K$3:$M$246,3,FALSE) -> 1537854.41 | F68: 1660131 | I68: 505348.8566 | K68: 8732442 | L68: 505348.8566 | M68: =ROUND(L68,2) -> 505348.86 | O68: =VLOOKUP(K68,$A$3:$D$246,4,FALSE) -> 474180.6
A69: 8732335 | B69: The Spinney Primary School | C69: 822811.7889 | D69: 822811.79 | E69: 841045.4 | F69: 888292.17 | I69: 1544904.3 | K69: 8732443 | L69: 1544904.3 | M69: 1544904.3 | O69: 1476895.9
A70: 8732336 | B70: Fawcett Primary School | C70: 1370441.476 | D70: 1370441.48 | E70: 1516565.14 | F70: 1576451.9 | I70: 1668067.56 | K70: 8732444 | L70: 1668067.56 | M70: 1668067.56 | O70: 1596973.02
A71: 8732442 | B71: Kettlefields Primary School | C71: 474180.5987 | D71: 474180.6 | E71: 505348.86 | F71: 560037.38 | I71: 1814447.934 | K71: 8732446 | L71: 1814447.934 | M71: 1814447.93 | O71: 1752192.64
A72: 8732443 | B72: Stukeley Meadows Primary School | C72: 1476895.898 | D72: 1476895.9 | E72: 1544904.3 | F72: 1734217.15 | I72: 1457018.281 | K72: 8732449 | L72: 1457018.281 | M72: 1457018.28 | O72: 1398416.07
A73: 8732444 | B73: Ely St John's Community Primary School | C73: 1596973.018 | D73: 1596973.02 | E73: 1668067.56 | F73: 1685108.6 | I73: 1323353.143 | K73: 8732452 | L73: 1323353.143 | M73: 1323353.14 | O73: 1284618.08
A74: 8732446 | B74: Kings Hedges Primary School | C74: 1752192.637 | D74: 1752192.64 | E74: 1814447.93 | F74: 1961239.76 | I74: 842405.726 | K74: 8732453 | L74: 842405.726 | M74: 842405.73 | O74: 798141.29
A75: 8732449 | B75: Monkfield Park Primary School | C75: 1398416.074 | D75: 1398416.07 | E75: 1457018.28 | F75: 1666605.1 | I75: 473034.8844 | K75: 8733001 | L75: 473034.8844 | M75: 473034.88 | O75: 442060.17
A76: 8732450 | B76: Abbey Meadows Primary School | C76: 1690858.6 | D76: 1690858.6 | I76: 466765.6003 | K76: 8733004 | L76: 466765.6003 | M76: 466765.6 | O76: 482372.41
A77: 8732452 | B77: Bushmead Primary School | C77: 1284618.076 | D77: 1284618.08 | E77: 1323353.14 | F77: 1458522.63 | I77: 556922.1978 | K77: 8733008 | L77: 556922.1978 | M77: 556922.2 | O77: 524920.63
A78: 8732453 | B78: Ridgefield Primary School | C78: 798141.2863 | D78: 798141.29 | E78: 842405.73 | F78: 896308.41 | I78: 574309.2209 | K78: 8733009 | L78: 574309.2209 | M78: 574309.22 | O78: 564052.58
A79: 8733001 | B79: Barrington CofE VC Primary School | C79: 442060.1715 | D79: 442060.17 | E79: 473034.88 | F79: 519765.1 | I79: 526562.7143 | K79: 8733011 | L79: 526562.7143 | M79: 526562.71 | O79: 533862.12
A80: 8733004 | B80: Burrough Green CofE Primary School | C80: 482372.4075 | D80: 482372.41 | E80: 466765.6 | F80: 500151.29 | I80: 264492.0111 | K80: 8733012 | L80: 264492.0111 | M80: 264492.01 | O80: 278499.19
A81: 8733008 | B81: Castle Camps Church of England (Controlled) Primary School | C81: 524920.6299 | D81: 524920.63 | E81: 556922.2 | F81: 594518.04 | I81: 1342071.4 | K81: 8733014 | L81: 1342071.4 | M81: 1342071.4 | O81: 1152936.02
A82: 8733009 | B82: Cheveley CofE Primary School | C82: 564052.577 | D82: 564052.58 | E82: 574309.22 | F82: 600494.76 | I82: 440661.526 | K82: 8733017 | L82: 440661.526 | M82: 440661.53 | O82: 437604.28
A83: 8733011 | B83: Coton Church of England (Voluntary Controlled) Primary School | C83: 533862.1243 | D83: 533862.12 | E83: 526562.71 | F83: 546745.56 | I83: 799929.1101 | K83: 8733022 | L83: 799929.1101 | M83: 799929.11 | O83: 769333.13
A84: 8733012 | B84: Dry Drayton CofE (C) Primary School | C84: 278499.1916 | D84: 278499.19 | E84: 264492.01 | F84: 361395.22 | I84: 705028.3436 | K84: 8733029 | L84: 705028.3436 | M84: 705028.34 | O84: 692582.73
A85: 8733014 | B85: Fordham CofE Primary School | C85: 1152936.016 | D85: 1152936.02 | E85: 1342071.4 | F85: 1631737.15 | I85: 797181.5774 | K85: 8733032 | L85: 797181.5774 | M85: 797181.58 | O85: 782729.39
A86: 8733017 | B86: Great Wilbraham CofE Primary School | C86: 437604.2815 | D86: 437604.28 | E86: 440661.53 | F86: 462480.48 | I86: 649973.5456 | K86: 8733035 | L86: 649973.5456 | M86: 649973.55 | O86: 620866.12
A87: 8733022 | B87: Isleham Church of England Primary School | C87: 769333.1256 | D87: 769333.13 | E87: 799929.11 | F87: 858337.9 | I87: 827758.3696 | K87: 8733041 | L87: 827758.3696 | M87: 827758.37 | O87: 783771.02
A88: 8733029 | B88: Steeple Morden CofE VC Primary School | C88: 692582.727 | D88: 692582.73 | E88: 705028.34 | F88: 787251.63 | I88: 801952.9121 | K88: 8733050 | L88: 801952.9121 | M88: 801952.91 | O88: 799372.02
A89: 8733032 | B89: William Westley Church of England VC Primary School | C89: 782729.3932 | D89: 782729.39 | E89: 797181.58 | F89: 896679.55 | I89: 1115124.66 | K89: 8733052 | L89: 1115124.66 | M89: 1115124.66 | O89: 1120958.56
A90: 8733035 | B90: Haslingfield Endowed Primary School | C90: 620866.1219 | D90: 620866.12 | E90: 649973.55 | F90: 682817.7 | I90: 448544.7824 | K90: 8733053 | L90: 448544.7824 | M90: 448544.78 | O90: 462041.47
A91: 8733041 | B91: Duxford Church of England Community Primary School | C91: 783771.0237 | D91: 783771.02 | E91: 827758.37 | F91: 857238.57 | I91: 521591.3579 | K91: 8733054 | L91: 521591.3579 | M91: 521591.36 | O91: 466914.3
A92: 8733050 | B92: Cherry Hinton Church of England Voluntary Controlled Primary School | C92: 799372.0191 | D92: 799372.02 | E92: 801952.91 | F92: 865228.44 | I92: 1148705.96 | K92: 8733058 | L92: 1148705.96 | M92: 1148705.96 | O92: 1086063.52
A93: 8733052 | B93: Sutton CofE VC Primary School | C93: 1120958.561 | D93: 1120958.56 | E93: 1115124.66 | F93: 1130949.25 | I93: 762960.8118 | K93: 8733061 | L93: 762960.8118 | M93: 762960.81 | O93: 751466.08
A94: 8733053 | B94: Little Thetford CofE VC Primary School | C94: 462041.4686 | D94: 462041.47 | E94: 448544.78 | F94: 467970.26 | I94: 459257.923 | K94: 8733065 | L94: 459257.923 | M94: 459257.92 | O94: 424221.07
A95: 8733054 | B95: Wilburton CofE Primary School | C95: 466914.2985 | D95: 466914.3 | E95: 521591.36 | F95: 579285.72 | I95: 298425.8422 | K95: 8733066 | L95: 298425.8422 | M95: 298425.84 | O95: 290121.14
A96: 8733058 | B96: The Rackham Church of England Primary School | C96: 1086063.515 | D96: 1086063.52 | E96: 1148705.96 | F96: 1181121.05 | I96: 584150.8623 | K96: 8733067 | L96: 584150.8623 | M96: 584150.86 | O96: 541482.99
A97: 8733061 | B97: Alconbury CofE Primary School | C97: 751466.0818 | D97: 751466.08 | E97: 762960.81 | F97: 835657.15 | I97: 528102.77 | K97: 8733068 | L97: 528102.77 | M97: 528102.77 | O97: 539381.82
A98: 8733065 | B98: Folksworth CofE Primary School | C98: 424221.0734 | D98: 424221.07 | E98: 459257.92 | F98: 485908.27 | I98: 773611.2355 | K98: 8733071 | L98: 773611.2355 | M98: 773611.24 | O98: 766290.2
A99: 8733066 | B99: Great Gidding CofE Primary School | C99: 290121.1403 | D99: 290121.14 | E99: 298425.84 | F99: 329805.92 | I99: 756412.0416 | K99: 8733074 | L99: 756412.0416 | M99: 756412.04 | O99: 743010.59
A100: 8733067 | B100: Barnabas Oley CofE Primary School | C100: 541482.9926 | D100: 541482.99 | E100: 584150.86 | F100: 639891.96 | I100: 359490.7153 | K100: 8733081 | L100: 359490.7153 | M100: 359490.72 | O100: 342955.36
A101: 8733068 | B101: Great Paxton CofE Primary School | C101: 539381.8183 | D101: 539381.82 | E101: 528102.77 | F101: 518020.98 | I101: 450709.5969 | K101: 8733301 | L101: 450709.5969 | M101: 450709.6 | O101: 420522.13
A102: 8733070 | B102: Holme CofE Primary School | C102: 461742.3908 | D102: 461742.39 | E102: 476349.6 | I102: 954386.4573 | K102: 8733302 | L102: 954386.4573 | M102: 954386.46 | O102: 746138.83
A103: 8733071 | B103: Holywell CofE Primary School | C103: 766290.2023 | D103: 766290.2 | E103: 773611.24 | F103: 810234.4 | I103: 528830.8694 | K103: 8733308 | L103: 528830.8694 | M103: 528830.87 | O103: 508156
A104: 8733074 | B104: Eynesbury CofE C Primary School | C104: 743010.5875 | D104: 743010.59 | E104: 756412.04 | F104: 743836.09 | I104: 783848.3284 | K104: 8733310 | L104: 783848.3284 | M104: 783848.33 | O104: 741567.08
A105: 8733081 | B105: Brington CofE Primary School | C105: 342955.3602 | D105: 342955.36 | E105: 359490.72 | F105: 480987.22 | I105: 674911.8134 | K105: 8733317 | L105: 674911.8134 | M105: 674911.81 | O105: 625024.21
A106: 8733301 | B106: Barton CofE VA Primary School | C106: 420522.1322 | D106: 420522.13 | E106: 450709.6 | F106: 474870.66 | I106: 756081.3757 | K106: 8733325 | L106: 756081.3757 | M106: 756081.38 | O106: 666566.15
A107: 8733302 | B107: Pathfinder Primary School | C107: 746138.8283 | D107: 746138.83 | E107: 954386.46 | I107: 480166.1046 | K107: 8733331 | L107: 480166.1046 | M107: 480166.1 | O107: 480264.14
A108: 8733308 | B108: Elsworth CofE VA Primary School | C108: 508156.0031 | D108: 508156 | E108: 528830.87 | F108: 550259.57 | I108: 484220.8925 | K108: 8733350 | L108: 484220.8925 | M108: 484220.89 | O108: 485457.29
A109: 8733310 | B109: Great and Little Shelford CofE (Aided) Primary School | C109: 741567.0797 | D109: 741567.08 | E109: 783848.33 | F109: 860947.1 | I109: 749981.1862 | K109: 8733356 | L109: 749981.1862 | M109: 749981.19 | O109: 771560.01
A110: 8733317 | B110: Linton CofE Infant School | C110: 625024.2126 | D110: 625024.21 | E110: 674911.81 | F110: 695661.25 | I110: 1126515.999 | K110: 8733358 | L110: 1126515.999 | M110: 1126516 | O110: 1151292.64
A111: 8733321 | B111: Oakington CofE VA Primary School | C111: 534142.5111 | D111: 534142.51 | I111: 833397.004 | K111: 8733360 | L111: 833397.004 | M111: 833397 | O111: 799352.54
A112: 8733325 | B112: Teversham CofE VA Primary School | C112: 666566.1519 | D112: 666566.15 | E112: 756081.38 | F112: 840451.4 | I112: 581687.4045 | K112: 8733368 | L112: 581687.4045 | M112: 581687.4 | O112: 539489.71
A113: 8733331 | B113: Petersfield CofE Aided Primary School | C113: 480264.1399 | D113: 480264.14 | E113: 480166.1 | F113: 532595.5 | I113: 443894.7173 | K113: 8733373 | L113: 443894.7173 | M113: 443894.72 | O113: 457146.29
A114: 8733350 | B114: Park Street CofE Primary School | C114: 485457.291 | D114: 485457.29 | E114: 484220.89 | F114: 470710.78 | I114: 790308.323 | K114: 8733384 | L114: 790308.323 | M114: 790308.32 | O114: 738448.67
A115: 8733352 | B115: St Luke's CofE Primary School | C115: 765755.1678 | D115: 765755.17 | I115: 1613248.32 | K115: 8733386 | L115: 1613248.32 | M115: 1613248.32 | O115: 1508392.03
A116: 8733356 | B116: St Pauls CofE VA Primary School | C116: 771560.0107 | D116: 771560.01 | E116: 749981.19 | F116: 726271.77 | I116: 1541156.02 | K116: 8733389 | L116: 1541156.02 | M116: 1541156.02 | O116: 1444329.6
A117: 8733358 | B117: St Philip's CofE Aided Primary School | C117: 1151292.636 | D117: 1151292.64 | E117: 1126516 | F117: 1207941.51 | I117: 878594.0765 | K117: 8733390 | L117: 878594.0765 | M117: 878594.08 | O117: 866920.46
A118: 8733360 | B118: St Alban's Catholic Primary School | C118: 799352.5359 | D118: 799352.54 | E118: 833397 | F118: 886513.73 | I118: 1393278.12 | K118: 8733392 | L118: 1393278.12 | M118: 1393278.12 | O118: 1346830.42
A119: 8733366 | B119: St Laurence's Catholic Primary School | C119: 1119289.438 | D119: 1119289.44 | E119: 1176607.4 | I119: 1797785.74 | K119: 8733942 | L119: 1797785.74 | M119: 1797785.74 | O119: 1563649.04
A120: 8733368 | B120: The Elton CofE Primary School of the Foundation of Frances and Jane Proby | C120: 539489.7116 | D120: 539489.71 | E120: 581687.4 | F120: 614451.28 | I120: 1384071.49 | K120: 8733943 | L120: 1384071.49 | M120: 1384071.49 | O120: 1249301.75
A121: 8733373 | B121: Abbots Ripton CofE Primary School | C121: 457146.2851 | D121: 457146.29 | E121: 443894.72 | F121: 490487.71 | I121: 1933539.538 | K121: 8733945 | L121: 1933539.538 | M121: 1933539.54 | O121: 1855433.77
A122: 8733384 | B122: St Anne's CofE Primary School | C122: 738448.6743 | D122: 738448.67 | E122: 790308.32 | F122: 872104.48 | I122: 1489742.414 | K122: 8733946 | L122: 1489742.414 | M122: 1489742.41 | O122: 1492263.19
A123: 8733386 | B123: Milton Road Primary School | C123: 1508392.025 | D123: 1508392.03 | E123: 1613248.32 | F123: 1792562.35 | I123: 632495.2471 | K123: 8735200 | L123: 632495.2471 | M123: 632495.25 | O123: 616381.76
A124: 8733389 | B124: The Vine Inter-Church Primary School | C124: 1444329.599 | D124: 1444329.6 | E124: 1541156.02 | F124: 1692664.25 | I124: 1073861.498 | K124: 8734028 | L124: 1073861.498 | M124: 1073861.5 | O124: 440374.25
A125: 8733390 | B125: Orchard Park Community Primary School | C125: 866920.4609 | D125: 866920.46 | E125: 878594.08 | F125: 936701.94 | I125: 1027670.294 | K125: 8732005 | L125: 1027670.294 | M125: 1027670.29 | O125: 950994.87
A126: 8733392 | B126: Wheatfields Primary School | C126: 1346830.416 | D126: 1346830.42 | E126: 1393278.12 | F126: 1460393.9 | I126: 1204089 | K126: 8732007 | L126: 1204089 | M126: 1204089 | O126: 1043299.37
A127: 8733942 | B127: Brampton Village Primary School | C127: 1563649.042 | D127: 1563649.04 | E127: 1797785.74 | F127: 2230173.4 | I127: 871131 | K127: 8732008 | L127: 871131 | M127: 871131 | O127: 820489.92
A128: 8733943 | B128: The Bellbird Primary School | C128: 1249301.748 | D128: 1249301.75 | E128: 1384071.49 | F128: 1675047.2 | I128: 755541.4321 | K128: 8732009 | L128: 755541.4321 | M128: 755541.43 | O128: 743622.11
A129: 8733945 | B129: Huntingdon Primary School | C129: 1855433.773 | D129: 1855433.77 | E129: 1933539.54 | F129: 1922388.82 | I129: 776793.4381 | K129: 8732013 | L129: 776793.4381 | M129: 776793.44 | O129: 834899.82
A130: 8733946 | B130: Queen Emma Primary School | C130: 1492263.19 | D130: 1492263.19 | E130: 1489742.41 | F130: 1669061.04 | I130: 1185490 | K130: 8732014 | L130: 1185490 | M130: 1185490 | O130: 1057123.85
A131: 8735200 | B131: St Helen's Primary School | C131: 616381.7573 | D131: 616381.76 | E131: 632495.25 | F131: 715496.4 | I131: 1637762.712 | K131: 8732019 | L131: 1637762.712 | M131: 1637762.71 | O131: 1580473.23
A132: 8732005 | B132: Winhills Primary Academy | C132: 950994.8714 | D132: =ROUND(C132,2) -> 950994.87 | E132: =VLOOKUP(A132,$K$3:$M$246,3,FALSE) -> 1027670.29 | I132: 1170034.462 | K132: 8732020 | L132: 1170034.462 | M132: =ROUND(L132,2) -> 1170034.46 | O132: =VLOOKUP(K132,$A$3:$D$246,4,FALSE) -> 1111822.57
A133: 8732007 | B133: Hatton Park Primary School | C133: 1043299.365 | D133: 1043299.37 | E133: 1204089 | I133: 431675.3321 | K133: 8732021 | L133: 431675.3321 | M133: 431675.33 | O133: 432526.4
A134: 8732008 | B134: The Shade Primary School | C134: 820489.9241 | D134: 820489.92 | E134: 871131 | I134: 1110999.255 | K134: 8732022 | L134: 1110999.255 | M134: 1110999.26 | O134: 1133381.21
A135: 8732009 | B135: Fen Ditton Primary School | C135: 743622.1082 | D135: 743622.11 | E135: 755541.43 | I135: 369581.2235 | K135: 8732023 | L135: 369581.2235 | M135: 369581.22 | O135: 321615.72
A136: 8732013 | B136: Chesterton Primary School | C136: 834899.8193 | D136: 834899.82 | E136: 776793.44 | I136: 1487363 | K136: 8732024 | L136: 1487363 | M136: 1487363 | O136: 1165993.6
A137: 8732014 | B137: Gamlingay First School | C137: 1057123.85 | D137: 1057123.85 | E137: 1185490 | I137: 773564.7244 | K137: 8732025 | L137: 773564.7244 | M137: 773564.72 | O137: 799384.88
A138: 8732019 | B138: The Round House Primary Academy | C138: 1580473.234 | D138: 1580473.23 | E138: 1637762.71 | I138: 1577009.05 | K138: 8732026 | L138: 1577009.05 | M138: 1577009.05 | O138: 1554272
A139: 8732020 | B139: Ramnoth Junior School | C139: 1111822.567 | D139: 1111822.57 | E139: 1170034.46 | I139: 830844.0196 | K139: 8732027 | L139: 830844.0196 | M139: 830844.02 | O139: 783657.77
A140: 8732021 | B140: Kennett Primary School | C140: 432526.402 | D140: 432526.4 | E140: 431675.33 | I140: 439315.5624 | K140: 8732030 | L140: 439315.5624 | M140: 439315.56 | O140: 405995.46
A141: 8732022 | B141: The Nene Infant & Nursery School | C141: 1133381.207 | D141: 1133381.21 | E141: 1110999.26 | I141: 1079625.415 | K141: 8732032 | L141: 1079625.415 | M141: 1079625.42 | O141: 998178.62
A142: 8732023 | B142: Kimbolton Primary Academy | C142: 321615.7168 | D142: 321615.72 | E142: 369581.22 | I142: 1767874 | K142: 8732034 | L142: 1767874 | M142: 1767874 | O142: 1554042.56
A143: 8732024 | B143: Isle of Ely Primary School | C143: 1165993.599 | D143: 1165993.6 | E143: 1487363 | I143: 753039.5256 | K143: 8732036 | L143: 753039.5256 | M143: 753039.53 | O143: 629968.98
A144: 8732025 | B144: Meadow Primary School | C144: 799384.8817 | D144: 799384.88 | E144: 773564.72 | I144: 808279.4854 | K144: 8732037 | L144: 808279.4854 | M144: 808279.49 | O144: 579074.51
A145: 8732026 | B145: Kingsfield Primary School | C145: 1554272.003 | D145: 1554272 | E145: 1577009.05 | I145: 586675.7088 | K145: 8732038 | L145: 586675.7088 | M145: 586675.71 | O145: 636928.24
A146: 8732027 | B146: William de Yaxley Church of England Academy | C146: 783657.7728 | D146: 783657.77 | E146: 830844.02 | I146: 787206.2629 | K146: 8732040 | L146: 787206.2629 | M146: 787206.26 | O146: 756694.49
A147: 8732030 | B147: Mepal and Witcham Church of England Primary School | C147: 405995.4552 | D147: 405995.46 | E147: 439315.56 | I147: 749688.4534 | K147: 8732041 | L147: 749688.4534 | M147: 749688.45 | O147: 727144.78
A148: 8732032 | B148: St Peter's CofE Aided Junior School | C148: 998178.6226 | D148: 998178.62 | E148: 1079625.42 | I148: 291105.8994 | K148: 8732042 | L148: 291105.8994 | M148: 291105.9 | O148: 284765.48
A149: 8732034 | B149: University of Cambridge Primary School | C149: 1554042.559 | D149: 1554042.56 | E149: 1767874 | I149: 1809462.468 | K149: 8732044 | L149: 1809462.468 | M149: 1809462.47 | O149: 1921878.29
A150: 8732036 | B150: Godmanchester Bridge Academy | C150: 629968.9833 | D150: 629968.98 | E150: 753039.53 | I150: 976508.4288 | K150: 8732045 | L150: 976508.4288 | M150: 976508.43 | O150: 910043.55
A151: 8732037 | B151: Ermine Street Church Academy | C151: 579074.5108 | D151: 579074.51 | E151: 808279.49 | I151: 1970272 | K151: 8732049 | L151: 1970272 | M151: 1970272 | O151: 1842176.37
A152: 8732038 | B152: St Mary's Church of England Primary School St Neots | C152: 636928.2389 | D152: 636928.24 | E152: 586675.71 | I152: 582883.5041 | K152: 8732050 | L152: 582883.5041 | M152: 582883.5 | O152: 556974.76
A153: 8732040 | B153: Wisbech St Mary CofE Academy | C153: 756694.4853 | D153: 756694.49 | E153: 787206.26 | I153: 1059932.581 | K153: 8732051 | L153: 1059932.581 | M153: 1059932.58 | O153: 813493.28
A154: 8732041 | B154: Stapleford Community Primary School | C154: 727144.78 | D154: 727144.78 | E154: 749688.45 | I154: 701386.2764 | K154: 8732052 | L154: 701386.2764 | M154: 701386.28 | O154: 677391.38
A155: 8732042 | B155: Guilden Morden CofE Primary Academy | C155: 284765.4777 | D155: 284765.48 | E155: 291105.9 | I155: 541641.999 | K155: 8732053 | L155: 541641.999 | M155: 541642 | O155: 508221.35
A156: 8732044 | B156: Orchards Church of England Primary School | C156: 1921878.292 | D156: 1921878.29 | E156: 1809462.47 | I156: 556805.9921 | K156: 8732055 | L156: 556805.9921 | M156: 556805.99 | O156: 528021.1
A157: 8732045 | B157: Hartford Junior School | C157: 910043.5475 | D157: 910043.55 | E157: 976508.43 | I157: 788603.3775 | K157: 8732057 | L157: 788603.3775 | M157: 788603.38 | O157: 751389.86
A158: 8732049 | B158: The Weatheralls Primary School | C158: 1842176.375 | D158: 1842176.37 | E158: 1970272 | I158: 1058983 | K158: 8732058 | L158: 1058983 | M158: 1058983 | O158: 1073443.45
A159: 8732050 | B159: Thomas Eaton Primary Academy | C159: 556974.7646 | D159: 556974.76 | E159: 582883.5 | I159: 383416.5584 | K159: 8732061 | L159: 383416.5584 | M159: 383416.56 | O159: 377626.73
A160: 8732051 | B160: Trumpington Park Primary School | C160: 813493.2764 | D160: 813493.28 | E160: 1059932.58 | I160: 485142.2318 | K160: 8732067 | L160: 485142.2318 | M160: 485142.23 | O160: 501254.47
A161: 8732052 | B161: Downham Feoffees Primary Academy | C161: 677391.3797 | D161: 677391.38 | E161: 701386.28 | I161: 728489.2668 | K161: 8732071 | L161: 728489.2668 | M161: 728489.27 | O161: 731828.14
A162: 8732053 | B162: Murrow Primary Academy | C162: 508221.3547 | D162: 508221.35 | E162: 541642 | I162: 865968.268 | K162: 8732072 | L162: 865968.268 | M162: 865968.27 | O162: 837196.17
A163: 8732055 | B163: Farcet CofE (C) Primary School | C163: 528021.1019 | D163: 528021.1 | E163: 556805.99 | I163: 427340.4443 | K163: 8732073 | L163: 427340.4443 | M163: 427340.44 | O163: 421803.21
A164: 8732057 | B164: Ditton Lodge Primary School | C164: 751389.8564 | D164: 751389.86 | E164: 788603.38 | I164: 1559689.255 | K164: 8732076 | L164: 1559689.255 | M164: 1559689.25 | O164: 1473454.64
A165: 8732058 | B165: Bar Hill Community Primary School | C165: 1073443.447 | D165: 1073443.45 | E165: 1058983 | I165: 1175570.521 | K165: 8732078 | L165: 1175570.521 | M165: 1175570.52 | O165: 1175675.38
A166: 8732061 | B166: Earith Primary School | C166: 377626.7309 | D166: 377626.73 | E166: 383416.56 | I166: 3006092.818 | K166: 8732079 | L166: 3006092.818 | M166: 3006092.82 | O166: 2719105.45
A167: 8732067 | B167: Gorefield Primary School | C167: 501254.4713 | D167: 501254.47 | E167: 485142.23 | I167: 480069.4119 | K167: 8732081 | L167: 480069.4119 | M167: 480069.41 | O167: 463474.77
A168: 8732071 | B168: Stilton Church of England Primary Academy | C168: 731828.1419 | D168: 731828.14 | E168: 728489.27 | I168: 702295.4673 | K168: 8732086 | L168: 702295.4673 | M168: 702295.47 | P168: St Lukes | Q168: 2019-03-01 | R168: was 3352 | S168: 8732086
A169: 8732072 | B169: Leverington Primary Academy | C169: 837196.175 | D169: 837196.17 | E169: 865968.27 | I169: 2346664.155 | K169: 8732087 | L169: 2346664.155 | M169: 2346664.15 | O169: 2148270.08
A170: 8732073 | B170: Wintringham Primary Academy | C170: 421803.2108 | D170: 421803.21 | E170: 427340.44 | I170: 638166.7486 | K170: 8732088 | L170: 638166.7486 | M170: 638166.75 | O170: 563898.25
A171: 8732076 | B171: Burrowmoor Primary School | C171: 1473454.635 | D171: 1473454.64 | E171: 1559689.25 | I171: 946174.855 | K171: 8732089 | L171: 946174.855 | M171: 946174.85 | P171: Somersham | Q171: 2019-04-01 | R171: was 2221 | S171: 8732089
A172: 8732078 | B172: Thongsley Fields Primary and Nursery School | C172: 1175675.382 | D172: 1175675.38 | E172: 1175570.52 | I172: 952576.1726 | K172: 8732092 | L172: 952576.1726 | M172: 952576.17 | O172: 1000726.96
A173: 8732079 | B173: Westwood Primary School | C173: 2719105.451 | D173: 2719105.45 | E173: 3006092.82 | I173: 1594865.749 | K173: 8732094 | L173: 1594865.749 | M173: 1594865.75 | O173: 1522644.6
A174: 8732081 | B174: Swaffham Prior Church of England Academy | C174: 463474.7711 | D174: 463474.77 | E174: 480069.41 | I174: 534696.7409 | K174: 8732096 | L174: 534696.7409 | M174: 534696.74 | P174: Oakington | Q174: 2019-05-01 | R174: was 3321 | S174: 8732096
A175: 8732087 | B175: Alderman Jacobs School | C175: 2148270.085 | D175: 2148270.08 | E175: 2346664.15 | I175: 411324.6985 | K175: 8732098 | L175: 411324.6985 | M175: 411324.7 | P175: Offord | Q175: 2019-09-01 | R175: was 2214 | S175: 8732098
A176: 8732088 | B176: New Road Primary School | C176: 563898.2473 | D176: 563898.25 | E176: 638166.75 | I176: 1027259 | K176: 8732200 | L176: 1027259 | M176: 1027259 | O176: 978136.82
A177: 8732092 | B177: Elm Road Primary School | C177: 1000726.961 | D177: 1000726.96 | E177: 952576.17 | I177: 938553.1557 | K177: 8732204 | L177: 938553.1557 | M177: 938553.16 | O177: 863146.72
A178: 8732094 | B178: Peckover Primary School | C178: 1522644.604 | D178: 1522644.6 | E178: 1594865.75 | I178: 1683341.736 | K178: 8732206 | L178: 1683341.736 | M178: 1683341.74 | O178: 1593676.85
A179: 8732200 | B179: Bottisham Community Primary School | C179: 978136.8243 | D179: 978136.82 | E179: 1027259 | I179: 1468216 | K179: 8732209 | L179: 1468216 | M179: 1468216 | O179: 1366315.91
A180: 8732204 | B180: Linton Heights Junior School | C180: 863146.7186 | D180: 863146.72 | E180: 938553.16 | I180: 404191.357 | K180: 8732210 | L180: 404191.357 | M180: 404191.36 | O180: 375633.38
A181: 8732206 | B181: Cavalry Primary School | C181: 1593676.846 | D181: 1593676.85 | E181: 1683341.74 | I181: 849328.3228 | K181: 8732216 | L181: 849328.3228 | M181: 849328.32 | O181: 703587.99
A182: 8732209 | B182: Godmanchester Community Academy | C182: 1366315.912 | D182: 1366315.91 | E182: 1468216 | I182: 971650.234 | K182: 8732218 | L182: 971650.234 | M182: 971650.23 | O182: 912654.5
A183: 8732210 | B183: Great Staughton Primary School | C183: 375633.3848 | D183: 375633.38 | E183: 404191.36 | I183: 853008.7369 | K183: 8732220 | L183: 853008.7369 | M183: 853008.74 | O183: 791389.51
A184: 8732216 | B184: Ramsey Spinning Infant School | C184: 703587.9898 | D184: 703587.99 | E184: 849328.32 | I184: 730279.5681 | K184: 8732226 | L184: 730279.5681 | M184: 730279.57 | O184: 710823.34
A185: 8732218 | B185: Ramsey Junior School | C185: 912654.4979 | D185: 912654.5 | E185: 971650.23 | I185: 766014.4882 | K185: 8732252 | L185: 766014.4882 | M185: 766014.49 | O185: 721546.07
A186: 8732220 | B186: Sawtry Junior Academy | C186: 791389.5135 | D186: 791389.51 | E186: 853008.74 | I186: 1070786.677 | K186: 8732256 | L186: 1070786.677 | M186: 1070786.68 | O186: 1034177.82
A187: 8732226 | B187: Upwood Primary Academy | C187: 710823.3376 | D187: 710823.34 | E187: 730279.57 | I187: 811812.4986 | K187: 8732257 | L187: 811812.4986 | M187: 811812.5 | O187: 770754.3
A188: 8732252 | B188: Hartford Infant School | C188: 721546.0732 | D188: 721546.07 | E188: 766014.49 | I188: 1562610 | K188: 8732318 | L188: 1562610 | M188: 1562610 | O188: 1308177.41
A189: 8732257 | B189: Middlefield Primary Academy | C189: 770754.2971 | D189: 770754.3 | E189: 811812.5 | I189: 1242677 | K189: 8732319 | L189: 1242677 | M189: 1242677 | O189: 1119788.46
A190: 8732318 | B190: Histon and Impington Junior School | C190: 1308177.408 | D190: 1308177.41 | E190: 1562610 | I190: 1266210.254 | K190: 8732447 | L190: 1266210.254 | M190: 1266210.25 | O190: 1076613.2
A191: 8732319 | B191: Histon and Impington Infant School | C191: 1119788.457 | D191: 1119788.46 | E191: 1242677 | I191: 1553220.141 | K191: 8732448 | L191: 1553220.141 | M191: 1553220.14 | O191: 1526760.5
A192: 8732447 | B192: Millfield Primary School | C192: 1076613.201 | D192: 1076613.2 | E192: 1266210.25 | I192: 735507.0634 | K192: 8732451 | L192: 735507.0634 | M192: 735507.06 | O192: 741363.12
A193: 8732448 | B193: Glebelands Primary Academy | C193: 1526760.499 | D193: 1526760.5 | E193: 1553220.14 | I193: 424134.8897 | K193: 8733000 | L193: 424134.8897 | M193: 424134.89 | O193: 409354.22
A194: 8732451 | B194: Cromwell Academy | C194: 741363.1192 | D194: 741363.12 | E194: 735507.06 | I194: 780391 | K194: 8733002 | L194: 780391 | M194: 780391 | O194: 756246.09
A195: 8733000 | B195: Babraham CofE (VC) Primary School | C195: 409354.2174 | D195: 409354.22 | E195: 424134.89 | I195: 1428793 | K195: 8733026 | L195: 1428793 | M195: 1428793 | O195: 1342025.09
A196: 8733002 | B196: Bourn CofE Primary Academy | C196: 756246.0885 | D196: =ROUND(C196,2) -> 756246.09 | E196: =VLOOKUP(A196,$K$3:$M$246,3,FALSE) -> 780391 | I196: 442785.477 | K196: 8733037 | L196: 442785.477 | M196: =ROUND(L196,2) -> 442785.48 | O196: =VLOOKUP(K196,$A$3:$D$246,4,FALSE) -> 418749.3
A197: 8733026 | B197: Milton Church of England Primary School | C197: 1342025.091 | D197: 1342025.09 | E197: 1428793 | I197: 873720.9083 | K197: 8733046 | L197: 873720.9083 | M197: 873720.91 | O197: 852577.34
A198: 8733046 | B198: Elm CofE Primary School | C198: 852577.3421 | D198: 852577.34 | E198: 873720.91 | I198: 401861.1632 | K198: 8733056 | L198: 401861.1632 | M198: 401861.16 | O198: 396417
A199: 8733056 | B199: Guyhirn CofE VC Primary School | C199: 396417.0013 | D199: 396417 | E199: 401861.16 | I199: 1159116 | K199: 8733063 | L199: 1159116 | M199: 1159116 | O199: 998099.67
A200: 8733063 | B200: Buckden CofE Primary School | C200: 998099.6705 | D200: 998099.67 | E200: 1159116 | I200: 476349.6012 | K200: 8733070 | L200: 476349.6012 | M200: 476349.6 | O200: 461742.39
... 46 more rows

Sheet Unreconciled Items (hidden)

Sheet AGED CREDITORS
A1: Please copy and paste your report into here. If you don’t have a balance on your Balance Sheet please add a note on here saying Zero Balance

Sheet AGED DEBTORS
A1: Please copy and paste your report into here. If you don’t have a balance on your Balance Sheet please add a note on here saying Zero Balance

Sheet Accruals - Liabilities
A1: School: | H1: Notes on completion of form (completed during calendar month March)
H2: Please enter all of your 25/26 Accruals journals as a "Normal Journal" in period 12 of 25/26 in the format shown in grey in this form.
A3: Total of all Accruals below | D3: =SUM(D12:D27)+SUM(D33:D48) -> 0 | H3: Enter figures on this sheet as positives
A4: Accruals on balance sheet | F4: This MUST be a credit figure on balance sheet (Againts code ACCRUE) | H4: You will then need to reverse them by entering the opposite journal entries into period 1 of 26/27 as a "Normal Journal".
A5: Difference | D5: =D3+D4 -> 0 | F5: The breakdown below must match the total accruals journals (ACCRUE on balance sheet)
A6: =IF(D5>0,"CHECK ENTRIES BELOW MATCH EXAMPLE AND INSTRUCTIONS TO THE RIGHT. THE DETAILS ON THIS TAB SHOULD MATCH WHAT HAS BEEN ENTERED ON YOUR JOURNAL",IF(D5<0,"CHECK ENTRIES BELOW MATCH EXAMPLE AND INSTRUCTIONS TO THE RIGHT. THE DETAILS ON THIS TAB SHOULD MATCH WHAT HAS BEEN ENTERED ON YOUR JOURNAL","")) ->  | H6: After entering the journal into period 1 of 26/27, please check your ACCRUE code is zero.
H7: PLEASE DO NOT ACCRUE FOR CCC TRANSACTIONS
A8: YEAR END RESERVE - ACCRUALS (PAYABLES) 2025/26 (ALSO KNOWN AS CREDITORS)
F9: PURPOSE: TO PUT THE EXPENSE INTO THE CORRECT FINANCIAL YEAR
A10: Ledger Code (inc. Fund number) | B10: Is Ledger Code Correct? | C10: Cost Centre | D10: Amount £/p Excluding VAT | E10: Has the Purchase invoice/Expense already been entered in the Financial Year 25/26? Please add Yes or No to the below | F10: Supplier name and description of goods/services and invoice number where known | H10: PLEASE DO NOT ACCRUE FOR CCC TRANSACTIONS
A11: eg 14013500-01 | B11: If No, please discuss with SSCT | C11: cc 111GEN | D11: eg 2,510.53 | E11: If the answer is Yes - this should not be included in this section | F11: eg ESPO - Furniture for classroom received 28th March 2026 - inv 1234, invoice not entered in Financial Year 2025/26 (will be entered in FY 26/27) | H11: Form to be used for EXPENDITURE only eg: an order has been raised and goods received but the school has not yet been invoiced.
B12: =_xlfn.IFNA(VLOOKUP(A12,'SBS Codes'!A:E,5,FALSE),"NO") -> .
B13: =_xlfn.IFNA(VLOOKUP(A13,'SBS Codes'!A:E,5,FALSE),"NO") -> . | H13: 25/26 Journal format
B14: =_xlfn.IFNA(VLOOKUP(A14,'SBS Codes'!A:E,5,FALSE),"NO") -> . | H14: Debit - Expenditure code
B15: =_xlfn.IFNA(VLOOKUP(A15,'SBS Codes'!A:E,5,FALSE),"NO") -> . | H15: Credit - Accruals (code ACCRUE)
B16: =_xlfn.IFNA(VLOOKUP(A16,'SBS Codes'!A:E,5,FALSE),"NO") -> .
B17: =_xlfn.IFNA(VLOOKUP(A17,'SBS Codes'!A:E,5,FALSE),"NO") -> . | H17: All goods must have been received by 31st March
B18: =_xlfn.IFNA(VLOOKUP(A18,'SBS Codes'!A:E,5,FALSE),"NO") -> . | H18: All columns should be completed, and figure must exactly match figure being reserved in the journal
B19: =_xlfn.IFNA(VLOOKUP(A19,'SBS Codes'!A:E,5,FALSE),"NO") -> . | H19: All year end Accruals and Prepayment manual journals need to be ‘reversed’ in period 1 of the new financial year, in this case 2026/27. You need to enter an opposing journal into period 1 of 2026/27 to do this, please do not delete your original journal. When entering into your financial system, please match the format examples shown in grey on this tab
B20: =_xlfn.IFNA(VLOOKUP(A20,'SBS Codes'!A:E,5,FALSE),"NO") -> .
B21: =_xlfn.IFNA(VLOOKUP(A21,'SBS Codes'!A:E,5,FALSE),"NO") -> .
B22: =_xlfn.IFNA(VLOOKUP(A22,'SBS Codes'!A:E,5,FALSE),"NO") -> .
B23: =_xlfn.IFNA(VLOOKUP(A23,'SBS Codes'!A:E,5,FALSE),"NO") -> . | H23: Journals to be completed in period 1 of the financial year 26/27:
B24: =_xlfn.IFNA(VLOOKUP(A24,'SBS Codes'!A:E,5,FALSE),"NO") -> . | H24: Credit - Expenditure Code
B25: =_xlfn.IFNA(VLOOKUP(A25,'SBS Codes'!A:E,5,FALSE),"NO") -> . | H25: Debit - Accruals (Code ACCRUE)
B26: =_xlfn.IFNA(VLOOKUP(A26,'SBS Codes'!A:E,5,FALSE),"NO") -> .
B27: =_xlfn.IFNA(VLOOKUP(A27,'SBS Codes'!A:E,5,FALSE),"NO") -> .
A28: School:
A29: YEAR END RESERVE - ACCRUALS (RECEIPTS IN ADVANCE) 2025/26 (ALSO KNOWN AS DEFERRED INCOME)
F30: PURPOSE : TO PUT INCOME INTO THE CORRECT FINANCIAL YEAR | H30: PLEASE DO NOT ACCRUE FOR CCC TRANSACTIONS
A31: Ledger Code (inc. Fund number) | B31: Is Ledger Code Correct? | C31: Cost Centre | D31: Amount £/p Excluding VAT | E31: Received Income/Entered Sales Invoice in FY 25/26 in Advance? Please answer: Yes or No | F31: Customer name and description of goods/services and inv/ref number where known | H31: Form to be used for RECEIPTS IN ADVANCE only eg: Income has been received for an event which relates to the following financial year.
A32: eg 65086238-01 | B32: If No, please discuss with SSCT | C32: cc 111GEN | D32: eg 2,754.23 | E32: Have you Received Income/Entered Sales Invoice in FY 25/26 in advance (for Activity in the next financial year)? | F32: eg- Income for School Trip (Entered in Financial Year 25/26), relating to Trip to Upware in July 2026 - Class 2B (26 pupils) | H32: 25/26 Journal format
B33: =_xlfn.IFNA(VLOOKUP(A33,'SBS Codes'!G:K,5,FALSE),"NO") -> . | H33: Debit - Income code
B34: =_xlfn.IFNA(VLOOKUP(A34,'SBS Codes'!G:K,5,FALSE),"NO") -> . | H34: Credit - Accruals (Code ACCRUE)
B35: =_xlfn.IFNA(VLOOKUP(A35,'SBS Codes'!G:K,5,FALSE),"NO") -> .
B36: =_xlfn.IFNA(VLOOKUP(A36,'SBS Codes'!G:K,5,FALSE),"NO") -> . | H36: Income ALREADY RECEIVED, BUT relating to a service that won't take place until after 31st March (eg school trips)
B37: =_xlfn.IFNA(VLOOKUP(A37,'SBS Codes'!G:K,5,FALSE),"NO") -> . | H37: All columns should be completed, and figure must exactly match figure being reserved in the journal
B38: =_xlfn.IFNA(VLOOKUP(A38,'SBS Codes'!G:K,5,FALSE),"NO") -> . | H38: All year end Accruals and Prepayment manual journals need to be ‘reversed’ in period 1 of the new financial year, in this case 2026/27. You need to enter an opposing journal into period 1 of 2026/27 to do this, please do not delete your original journal. When entering into your financial system, please match the format examples shown in grey on this tab
B39: =_xlfn.IFNA(VLOOKUP(A39,'SBS Codes'!G:K,5,FALSE),"NO") -> .
B40: =_xlfn.IFNA(VLOOKUP(A40,'SBS Codes'!G:K,5,FALSE),"NO") -> .
B41: =_xlfn.IFNA(VLOOKUP(A41,'SBS Codes'!G:K,5,FALSE),"NO") -> .
B42: =_xlfn.IFNA(VLOOKUP(A42,'SBS Codes'!G:K,5,FALSE),"NO") -> . | H42: Journals to be completed in period 1 of the financial year 26/27:
B43: =_xlfn.IFNA(VLOOKUP(A43,'SBS Codes'!G:K,5,FALSE),"NO") -> . | H43: Credit - Income Code
B44: =_xlfn.IFNA(VLOOKUP(A44,'SBS Codes'!G:K,5,FALSE),"NO") -> . | H44: Debit - Accruals (Code ACCRUE)
B45: =_xlfn.IFNA(VLOOKUP(A45,'SBS Codes'!G:K,5,FALSE),"NO") -> .
B46: =_xlfn.IFNA(VLOOKUP(A46,'SBS Codes'!G:K,5,FALSE),"NO") -> . | H46: After entering the journals into 26/27, please check your ACCRUE code is zero.
B47: =_xlfn.IFNA(VLOOKUP(A47,'SBS Codes'!G:K,5,FALSE),"NO") -> .
B48: =_xlfn.IFNA(VLOOKUP(A48,'SBS Codes'!G:K,5,FALSE),"NO") -> .

Sheet Prepayments - Assets
A1: School: | H1: Notes on completion of form (completed during calendar month March)
H2: Please enter all of your 25/26 Prepayment journals as a "Normal Journal" in period 12 of 25/26 in the format shown in grey in this form.
A3: Total of all Prepayments below | D3: =SUM(D12:D30)+SUM(D37:D52) -> 0 | H3: Enter figures on this sheet as positives
A4: Prepayments on balance sheet | F4: This MUST be a debit figure on balance sheet (Against code PREPAY) | H4: You will then need to reverse them by entering the opposite journal entries into period 1 of 26/27 as a "Normal Journal". After entering the journal into period 1 of 26/27, please check your PREPAY code is zero.
A5: Difference | D5: =D3-D4 -> 0 | F5: The breakdown below must match the total prepayments journals (PREPAY on balance sheet)
A6: =IF(D5>0,"CHECK ENTRIES BELOW MATCH EXAMPLE AND INSTRUCTIONS TO THE RIGHT. THE DETAILS ON THIS TAB SHOULD MATCH WHAT HAS BEEN ENTERED ON YOUR JOURNAL",IF(D5<0,"CHECK ENTRIES BELOW MATCH EXAMPLE AND INSTRUCTIONS TO THE RIGHT. THE DETAILS ON THIS TAB SHOULD MATCH WHAT HAS BEEN ENTERED ON YOUR JOURNAL","")) ->  | H6: PLEASE DO NOT ACCRUE FOR CCC TRANSACTIONS
A8: YEAR END RESERVE - PREPAYMENTS (RECEIVABLES) 2025/26 (ALSO KNOWN AS DEBTORS OR ACCRUED INCOME)
A9: PURPOSE :TO PUT INCOME INTO THE CORRECT FINANCIAL YEAR
A10: Ledger Code (inc. Fund number) | B10: Is Ledger Code Correct? | C10: Cost Centre | D10: Amount £/p Excluding VAT | E10: Has the Sales invoice/Income already been entered in the Financial Year 25/26? Please add Yes or No to the below | F10: Customer name and description of goods/services and inv/ref number where known | H10: Form to be used for INCOME DUE BUT NOT YET RECEIVED eg: Outstanding lettings / any other amounts usually received directly
A11: eg 63586700-01 | B11: If No, please discuss with SSCT | C11: eg cc 111GEN | D11: eg £2,800.50 | E11: If the answer is Yes - this should not be included on here | F11: eg Faraway Tennis Club - Hire of hall - Oct 25 - Mar 26 (20 sessions) inv 456 - invoice entered in Financial Year 26/27 | H11: PLEASE DO NOT ACCRUE FOR CCC TRANSACTIONS
B12: =_xlfn.IFNA(VLOOKUP(A12,'SBS Codes'!G:K,5,FALSE),"NO") -> .
B13: =_xlfn.IFNA(VLOOKUP(A13,'SBS Codes'!G:K,5,FALSE),"NO") -> . | H13: 25/26 Journal format
B14: =_xlfn.IFNA(VLOOKUP(A14,'SBS Codes'!G:K,5,FALSE),"NO") -> . | H14: Credit - Income code
B15: =_xlfn.IFNA(VLOOKUP(A15,'SBS Codes'!G:K,5,FALSE),"NO") -> . | H15: Debit - Prepayment code (Code PREPAY)
B16: =_xlfn.IFNA(VLOOKUP(A16,'SBS Codes'!G:K,5,FALSE),"NO") -> . | H16: All income must have been due on or before 31st March
B17: =_xlfn.IFNA(VLOOKUP(A17,'SBS Codes'!G:K,5,FALSE),"NO") -> . | H17: All columns MUST be completed, and figure must exactly match figure being reserved in the journal
B18: =_xlfn.IFNA(VLOOKUP(A18,'SBS Codes'!G:K,5,FALSE),"NO") -> . | H18: If you have used Accounts receivable (AR) to raise the invoices already, there is no need to raise a Prepayments (Receivables)
B19: =_xlfn.IFNA(VLOOKUP(A19,'SBS Codes'!G:K,5,FALSE),"NO") -> . | H19: All year end Accruals and Prepayment manual journals need to be ‘reversed’ in period 1 of the new financial year, in this case 2026/27. You need to enter an opposing journal into period 1 of 2026/27 to do this, please do not delete your original journal. When entering into your financial system, please match the format examples shown in grey on this tab
B20: =_xlfn.IFNA(VLOOKUP(A20,'SBS Codes'!G:K,5,FALSE),"NO") -> .
B21: =_xlfn.IFNA(VLOOKUP(A21,'SBS Codes'!G:K,5,FALSE),"NO") -> . | H21: Journals to be completed in period 1 of the financial year 26/27:
B22: =_xlfn.IFNA(VLOOKUP(A22,'SBS Codes'!G:K,5,FALSE),"NO") -> . | H22: Debit - Income Code
B23: =_xlfn.IFNA(VLOOKUP(A23,'SBS Codes'!G:K,5,FALSE),"NO") -> . | H23: Credit - Prepayment Code (Code PREPAY)
B24: =_xlfn.IFNA(VLOOKUP(A24,'SBS Codes'!G:K,5,FALSE),"NO") -> .
B25: =_xlfn.IFNA(VLOOKUP(A25,'SBS Codes'!G:K,5,FALSE),"NO") -> .
B26: =_xlfn.IFNA(VLOOKUP(A26,'SBS Codes'!G:K,5,FALSE),"NO") -> .
B27: =_xlfn.IFNA(VLOOKUP(A27,'SBS Codes'!G:K,5,FALSE),"NO") -> .
B28: =_xlfn.IFNA(VLOOKUP(A28,'SBS Codes'!G:K,5,FALSE),"NO") -> .
B29: =_xlfn.IFNA(VLOOKUP(A29,'SBS Codes'!G:K,5,FALSE),"NO") -> .
B30: =_xlfn.IFNA(VLOOKUP(A30,'SBS Codes'!G:K,5,FALSE),"NO") -> .
A32: School:
A33: YEAR END RESERVE - PREPAYMENTS (PAYMENTS IN ADVANCE) 2025/26
A34: PURPOSE: TO PUT THE EXPENSE INTO THE CORRECT FINANCIAL YEAR
A35: Ledger Code (inc. Fund number) | B35: Is Ledger Code Correct? | C35: Cost Centre | D35: Amount £/p Excluding VAT | E35: Has Purchase invoice/payment been entered in FY 25/26 for goods/services in advance for next finanical year? Please answer: Yes or No | F35: Supplier name and description of goods/services and invoice number where known | H35: Form to be used for PAYMENTS IN ADVANCE only eg: Deposits paid for educational visits happening during the following financial year
A36: eg 42537223-01 | B36: If No, please discuss with SSCT | C36: eg cc 111GEN | D36: eg £2,650.25 | E36: If no, this should not be entered below | F36: eg Payment by school in Financial Year 25/26 to provider of Trip to Upware - taking place July 2026 - Class 2B (26 pupils) | H36: PLEASE DO NOT ACCRUE FOR CCC TRANSACTIONS
B37: =_xlfn.IFNA(VLOOKUP(A37,'SBS Codes'!A:E,5,FALSE),"NO") -> .
B38: =_xlfn.IFNA(VLOOKUP(A38,'SBS Codes'!A:E,5,FALSE),"NO") -> . | H38: 25/26 Journal format
B39: =_xlfn.IFNA(VLOOKUP(A39,'SBS Codes'!A:E,5,FALSE),"NO") -> . | H39: Credit - Expenditure code
B40: =_xlfn.IFNA(VLOOKUP(A40,'SBS Codes'!A:E,5,FALSE),"NO") -> . | H40: Debit - Prepayment code (Code PREPAY)
B41: =_xlfn.IFNA(VLOOKUP(A41,'SBS Codes'!A:E,5,FALSE),"NO") -> .
B42: =_xlfn.IFNA(VLOOKUP(A42,'SBS Codes'!A:E,5,FALSE),"NO") -> . | H42: All goods or services relate to the new financial year
B43: =_xlfn.IFNA(VLOOKUP(A43,'SBS Codes'!A:E,5,FALSE),"NO") -> . | H43: All columns MUST be completed, and figure must exactly match figure being reserved in the journal
